{"text_format":"1","workbook":"xlsx","n_sheets":8,"sheets":["Setup","ALMD","MD","OoP","PrepOP","tables","matches","e-efoa"],"not_rendered":{"charts":0,"images":0,"macros":1,"external_links":0,"defined_names":13,"comments":0,"pivot_tables":0},"unopened":[],"bounds":{"document_bytes":16777216,"sheet_cells":100000,"rows_first":2000,"rows_last":500,"rows_between":2000,"halvings":0,"cell_chars":16384,"cell_head_chars":4096},"cells_cut":0,"cells_raw":0,"read":"whole","date_system":"1900"}

{"sheet":"Setup","index":0,"n_rows":31,"n_cols":26,"rows_kept":31,"cut":false,"hidden":false,"merged":[[1,3,2,3],[10,19,11,19],[15,19,15,20],[16,19,16,20]]}
["Singles",16,null,"Θέσεις","seed"]
["Draw16_S",null,null,"3-4",{"$f":"VALUE(LEFT(F2,1))","v":4},"4 3"]
["Διοργανωτής: ","ΣΤ' ΕΝΩΣΗ",null,null,{"$f":"VALUE(RIGHT(F2,1))","v":3},null,null,null,null,null,null,null,null,null,null,null,null,null,null,null,null,null,null,null,null,"Tour lookup"]
["Έδρα αγώνων: ","ΣΑ ΤΡΙΠΟΛΗΣ",null,null,null,null,null,null,null,null,null,null,null,null,null,null,null,null,null,null,null,null,null,null,null,{"$f":"$B$8","v":43232}]
["grade: ","Ε3",null,null,null,null,null,null,null,null,null,null,null,null,null,null,null,null,null,null,null,null,null,null,null,{"$f":"TRIM(IF(OR($B$5=\"Παν\",$B$5=\"ΠανΑΓ\",$B$5=\"Open\",$B$5=\"OpenΑΓ\"),$B$5&\" (\"&VLOOKUP($B$4,tables!$X:$Z,3,FALSE)&\")\"&\" \"&$B$13,$B$7&\" (\"&VLOOKUP($B$4,tables!$X:$Z,3,FALSE)&\")\"))","v":"Ε3 19η (ΣΤ)"}]
["Κατηγορία: ","Κ14",null,null,null,null,null,null,null,null,null,null,null,null,null,null,null,null,null,"Tournament ID",null,null,null,null,null,{"$f":"VLOOKUP($B$4,tables!$X:$Z,2,FALSE)","v":294}]
["Τίτλος Τουρνουά: ","Ε3 19η",null,"1 2 3 4 14 15 7 9 12 10 6 11 16 8 13 5 ",null,null,null,null,null,null,null,null,null,null,null,null,null,null,null,{"$f":"$Z$9","v":{"$error":"#N/A"}},null,null,null,null,null,"S"]
["Έναρξη Κ.Τ.: ","2018-05-12",null,"1 2 3 4 ",null,null,null,null,null,null,null,null,null,null,null,null,null,null,null,{"$f":"LOWER(B21)","v":"ε3 19η στ κ14 s md"},null,null,null,null,null,{"$f":"TRIM(IF(SUBSTITUTE($B$6,\"1\",\"\")<>$B$6,SUBSTITUTE(UPPER($B$6),\"D\",\"\"),\"\"))","v":"Κ14"}]
["Λήξη τουρνουά: ","2018-05-13",null,"0 0 0 0 0 0 0 0 0 0 0 0 0 0 0 0 0 0 0 0 0 0 0 0 0 0 0 0 0 0 0 0 0 0 0 0 0 0 0 0  ",null,null,null,null,null,null,null,null,null,null,null,null,null,null,null,null,null,null,null,null,null,{"$f":"VLOOKUP($Z$4&$Z$5&$Z$6&$Z$7&$Z$8,tables!$AI:$AQ,9,FALSE)","v":{"$error":"#N/A"}}]
["Βδομάδα: ",{"$f":"\"βδ.: \"&TEXT(WEEKNUM(B8,2),\"00\")&\"η\"","v":"βδ.: 19η"},null,null,null,null,null,null,null,null,null,null,null,null,null,null,null,null,null,null,null,null,null,null,null,{"$f":"VLOOKUP(B6,tables!AS1:AT51,2,FALSE)","v":10}]
["Επιδιατητής: ","ΚΑΛΟΓΡΗ Σ",null,0,"seed","space pos","Index","Value",null,null,null,null,null,null,null,null,null,null,null,"γραφή σκορ: ","62 76(4)"]
["Τηλέφωνο τουρνουά: ",null,null,{"$f":"IF(E12=\"-\",\"-\",IF(E12>0,D11+1,0))","v":1},{"$f":"IF(F12>0,VALUE(MID($D$7,1,F12-1)),\"-\")","v":1},{"$f":"IF(LEN($D$7)>1,FIND(\" \",$D$7,1),0)","v":2},1,1,null,null,null,null,null,null,null,null,null,null,null,null,"wo ret med"]
[{"$f":"IF(SUBSTITUTE($B$6,\"1\",\"\")<>$B$6, SUBSTITUTE(SUBSTITUTE(SUBSTITUTE(SUBSTITUTE(SUBSTITUTE(UPPER(LEFT($B$6)),\"A\",\"B\"),\"Α\",\"B\"),\"K\",\"G\"),\"Κ\",\"G\"),\"Μ\",\"X\"),\"\")","v":"G"},{"$f":"IF(SUBSTITUTE($B$6,\"1\",\"\")<>$B$6,VALUE(SUBSTITUTE(SUBSTITUTE(SUBSTITUTE(SUBSTITUTE(SUBSTITUTE(UPPER(LEFT($B$6,3)),\"A\",\"\"),\"Α\",\"\"),\"K\",\"\"),\"Κ\",\"\"),\"Μ\",\"\")), $B$6)","v":14},null,{"$f":"IF(E13=\"-\",\"-\",IF(E13>0,D12+1,0))","v":2},{"$f":"IF(F13>0,VALUE(MID($D$7,F12+1,F13-F12-1)),\"-\")","v":2},{"$f":"IF(AND(F12>0,LEN($D$7)>F12+1),FIND(\" \",$D$7,F12+1),0)","v":4},2,2]
[null,null,null,{"$f":"IF(E14=\"-\",\"-\",IF(E14>0,D13+1,0))","v":3},3,6,3,3]
[null,null,null,{"$f":"IF(E15=\"-\",\"-\",IF(E15>0,D14+1,0))","v":4},{"$f":"IF(F15>0,VALUE(MID($D$7,F14+1,F15-F14-1)),\"-\")","v":4},8,4,4]
[null,null,null,5,{"$f":"IF(F16>0,VALUE(MID($D$7,F15+1,F16-F15-1)),\"-\")","v":14},11,5,14,null,null,null,null,null,null,null,null,null,null,null," msg "]
["Χωρίς νίκη βαθμοί γύρου: ","17_32",null,6,{"$f":"IF(F17>0,VALUE(MID($D$7,F16+1,F17-F16-1)),\"-\")","v":15},14,6,15,null,null,null,null,null,null,null,null,null,null,null,{"$f":"IF(NOW()>B22,\"Invalid program!\",\"\")","v":""}]
["Πλήθος bye (0-7): ",{"$f":"COUNTBLANK(ALMD!D3:D18)","v":0},null,7,7,16,7,7]
["Θέσεις seeded: ",4,null,8,9,18,8,9]
[null,null,null,9,12,21,9,12]
["Όνομα Excel αρχείου: ",{"$f":"LOWER(IF(SUBSTITUTE($B$6,\"1\",\"\")<>$B$6,$B$5&\" \"&MID($B$10,6,2)&\"η \"&VLOOKUP($B$4,tables!$X:$Z,3,FALSE)&\" \"&LEFT($B$6)&$B$13&\" S MD\",$B$5&\" \"&MID($B$10,6,2)&\"η \"&VLOOKUP($B$4,tables!$X:$Z,3,FALSE)&\" \"&$B$13&\" S MD\"))","v":"ε3 19η στ κ14 s md"},null,10,10,24,10,10]
["exp.","2018-05-31",null,11,6,26,11,6]
[null,null,null,12,11,29,12,11]
["Κλήρωση MD: ","2018-05-12T12:00:21",null,13,16,32,13,16]
[null,null,null,14,8,34,14,8]
[null,null,null,15,13,37,15,13]
[null,null,null,16,5,39,16,5]
[{"$f":"RandNumbers(3,4)","v":"3 4"}]
[{"$f":"LEFT(D9,$B$18*2)&LEFT(D8,$B$19*2)& RandNumbers($B$19+1,16-$B$18)&\" \"","v":"1 2 3 4 10 8 11 13 9 7 15 6 5 14 12 16 "}]
[]
[null,null," "]

{"sheet":"ALMD","index":1,"n_rows":28,"n_cols":12,"rows_kept":28,"cut":false,"hidden":false,"merged":[[21,1,21,4]]}
[{"$f":"Setup!$B$3&\", \"&Setup!$B$7&\", \"&Setup!$B$4&\", \"&DAY(Setup!$B$8)&\"/\"&MONTH(Setup!$B$8)&\"-\"&DAY(Setup!$B$9)&\"/\"&MONTH(Setup!$B$9)&\"/\"&YEAR(Setup!$B$9)","v":"ΣΤ' ΕΝΩΣΗ, Ε3 19η, ΣΑ ΤΡΙΠΟΛΗΣ, 12/5-13/5/2018"},null,null,null,null,null,null,{"$f":"Setup!$B$6&\" /md\"","v":"Κ14 /md"},{"$f":"Setup!$B$6&\" /md\"","v":"Κ14 /md"}]
["α/α","από","Α.Μ.","Ονοματεπώνυμο","Γέννηση","Σύλλογος","βαθμοί","Τηλέφωνο","Υπογραφή","SortPts","Rnd"]
[1,null,26198,"ΛΑΜΠΡΟΠΟΥΛΟΥ ΒΑΣΙΛΙΚΗ","2004-01-05","ΑΕΚ ΤΡΙΠΟΛΗΣ",121,null,null,{"$f":"IF(D3>\" \",G3+K3,0)","v":121.00426255266308},4.262552663076266E-3,{"$f":"TRIM(IF(LEN(D3)<2,\"\",LEFT(D3,MIN(20,FIND(\" \",D3)-1))&MID(D3,FIND(\" \",D3),2)&\" (\"&LEFT(F3,12)&\")\"))","v":"ΛΑΜΠΡΟΠΟΥΛΟΥ Β (ΑΕΚ ΤΡΙΠΟΛΗΣ)"}]
[2,null,37585,"ΣΤΡΑΤΗ ΓΕΩΡΓΙΑ-ΑΝΔΡΙΑΝΑ","2005-08-18","ΑΟΑ ΠΑΤΡΩΝ",95,null,null,95.004360551519554,4.3605515195584204E-3,{"$f":"TRIM(IF(LEN(D4)<2,\"\",LEFT(D4,MIN(20,FIND(\" \",D4)-1))&MID(D4,FIND(\" \",D4),2)&\" (\"&LEFT(F4,12)&\")\"))","v":"ΣΤΡΑΤΗ Γ (ΑΟΑ ΠΑΤΡΩΝ)"}]
[3,null,37337,"ΔΕΛΗ ΜΑΡΙΑ","2004-08-26","ΡΗΓΑΣ ΑΟΑ ΑΡΓΟΛΙΔΑΣ",65.5,null,null,65.502882863068635,2.8828630686324008E-3,"ΔΕΛΗ Μ (ΡΗΓΑΣ ΑΟΑ ΑΡ)"]
[4,"alt",90169,"ΑΣΕΝΟΒΑ ΓΚΕΡΓΚΑΝΑ","2005-06-29","ΟΑ ΚΑΛΑΜΑΤΑΣ",52.1,null,null,52.101346797690589,1.346797690590734E-3,"ΑΣΕΝΟΒΑ Γ (ΟΑ ΚΑΛΑΜΑΤΑΣ)"]
[5,null,33668,"ΚΑΛΤΕΖΙΩΤΗ ΕΛΕΝΗ-ΜΑΡΙΑ","2004-05-17","ΣΑ ΤΡΙΠΟΛΗΣ",45.5,null," ",45.5010143343629,1.0143343628999575E-3,"ΚΑΛΤΕΖΙΩΤΗ Ε (ΣΑ ΤΡΙΠΟΛΗΣ)"]
[6,"alt",38948,"ΠΑΠΑΚΩΝΣΤΑΝΤΙΝΟΥ ΜΑΡΙΑ-ΙΩΑΝΝΑ","2006-11-09","ΟΑ ΚΑΛΑΜΑΤΑΣ",43,null,null,43.000350667560085,3.5066756008767511E-4,"ΠΑΠΑΚΩΝΣΤΑΝΤΙΝΟΥ Μ (ΟΑ ΚΑΛΑΜΑΤΑΣ)"]
[7,null,35659,"ΜΑΚΡΥΓΕΩΡΓΟΥ ΧΡΙΣΤΙΝΑ","2005-06-13","ΑΟΑ ΠΑΤΡΩΝ",40,null,null,40.000071128963697,7.1128963695924738E-5,"ΜΑΚΡΥΓΕΩΡΓΟΥ Χ (ΑΟΑ ΠΑΤΡΩΝ)"]
[8,null,39327,"ΜΠΟΥΖΟΥ ΕΛΕΝΗ-ΙΩΑΝΝΑ","2005-03-08","ΣΑ ΤΡΙΠΟΛΗΣ",28.5,null,null,28.500167224922873,1.6722492287120925E-4,"ΜΠΟΥΖΟΥ Ε (ΣΑ ΤΡΙΠΟΛΗΣ)"]
[9,null,36781,"ΚΟΚΚΙΝΟΥ ΑΙΚΑΤΕΡΙΝΗ","2004-08-26","ΧΡΥΣΟΣ ΟΑ",28,null,null,28.003266814777025,3.2668147770229909E-3,"ΚΟΚΚΙΝΟΥ Α (ΧΡΥΣΟΣ ΟΑ)"]
[10,null,38845,"ΤΣΙΛΙΜΠΗ ΔΗΜΗΤΡΑ-ΑΙΚΑΤΕΡΙΝΗ","2005-10-14","ΡΗΓΑΣ ΑΟΑ ΑΡΓΟΛΙΔΑΣ",18.3,null,null,18.30360659916597,3.6065991659683656E-3,"ΤΣΙΛΙΜΠΗ Δ (ΡΗΓΑΣ ΑΟΑ ΑΡ)"]
[11,null,38401,"ΚΛΑΟΥΔΑΤΟΥ ΔΑΝΑΗ","2007-03-17","ΧΡΥΣΟΣ ΟΑ",16.8,null,null,16.802654682160014,2.6546821600119813E-3,"ΚΛΑΟΥΔΑΤΟΥ Δ (ΧΡΥΣΟΣ ΟΑ)"]
[12,null,34396,"ΜΗΤΡΟΠΟΥΛΟΥ ΑΘΑΝΑΣΙΑ","2005-01-21","ΣΑ ΤΡΙΠΟΛΗΣ",15,null,null,15.000168296628045,1.6829662804435948E-4,"ΜΗΤΡΟΠΟΥΛΟΥ Α (ΣΑ ΤΡΙΠΟΛΗΣ)"]
[13,null,40340,"ΝΙΚΟΛΑΚΟΠΟΥΛΟΥ ΑΝΝΑ-ΜΑΡΙΑ","2006-03-05","ΧΡΥΣΟΣ ΟΑ",13.8,null,null,13.802883644553757,2.883644553756253E-3,"ΝΙΚΟΛΑΚΟΠΟΥΛΟΥ Α (ΧΡΥΣΟΣ ΟΑ)"]
[14,null,40747,"ΤΟΥΜΠΑΝΙΑΡΗ ΜΑΡΙΑ","2005-06-13","ΟΑ ΚΟΡΙΝΘΟΥ",4.5,null,null,4.5010275728218527,1.0275728218524381E-3,"ΤΟΥΜΠΑΝΙΑΡΗ Μ (ΟΑ ΚΟΡΙΝΘΟΥ)"]
[15,null,41973,"ΣΑΚΚΕΛΑΡΟΠΟΥΛΟΥ ΕΥΑΓΓΕΛΙΑ","2006-02-27","ΧΡΥΣΟΣ ΟΑ",2.4,null,null,2.4044327713168525,4.4327713168524057E-3,"ΣΑΚΚΕΛΑΡΟΠΟΥΛΟΥ Ε (ΧΡΥΣΟΣ ΟΑ)"]
[16,null,40755,"ΣΤΟΚΑ ΕΛΕΝΗ","2007-03-20","ΑΟ ΠΟΣΕΙΔΩΝ ΛΟΥΤΡΑΚΙΟΥ",1.5,null,null,1.5000662242148735,6.622421487342997E-5,"ΣΤΟΚΑ Ε (ΑΟ ΠΟΣΕΙΔΩΝ )"]
[]
[null,null,null,null,null,null,null,"επιδιαιτητής: "]
[null,null,null,null,null,null,null,{"$f":"Setup!$B$11","v":"ΚΑΛΟΓΡΗ Σ"}]
[null,"Walk-over"]
[null,"α/α","Α.Μ.","Ονοματεπώνυμο","med"]
[null,1]
[null,2]
[null,3]
[null,4]
[null,5]

{"sheet":"MD","index":2,"n_rows":44,"n_cols":22,"rows_kept":44,"cut":false,"hidden":false,"merged":[[2,9,2,11],[0,0,0,17]]}
[{"$f":"Setup!$B$3&\", \"&Setup!$B$7&\", \"&Setup!$B$4&\", \"&DAY(Setup!$B$8)&\"/\"&MONTH(Setup!$B$8)&\"-\"&DAY(Setup!$B$9)&\"/\"&MONTH(Setup!$B$9)&\"/\"&YEAR(Setup!$B$9)","v":"ΣΤ' ΕΝΩΣΗ, Ε3 19η, ΣΑ ΤΡΙΠΟΛΗΣ, 12/5-13/5/2018"},null,null,null,null,null,null,null,null,null,null,null,null,null,null,null,null,null,null,null,{"$f":"Setup!B6","v":"Κ14"},{"$f":"\"bye: \"&COUNTIF(J5:J20,\"bye\")","v":"bye: 0"}]
[null,{"$f":"Setup!$B$18","v":0},null,null,null,null,null,null,{"$f":"\"αλλαγές: \"&TEXT(HOUR(NOW()),\"00\")&\":\"&TEXT(MINUTE(NOW()),\"00\")&\", \"&DAY(TODAY())&\"/\"&MONTH(TODAY())&\"/\"&YEAR(TODAY())","v":"αλλαγές: 18:18, 23/5/2018"}]
[null,null,null,null,null,null,null,null,null,16,null,null,null,null,8,null,null,4,null,null,2]
["α/α",null,"ByeOrder","ByeSum","ByeCnt","από","seed","Pts","Α.Μ.","Ονοματεπώνυμο","επώνυμο","Σύλλογος"]
[1,1,null,null,0,{"$f":"IF(NOT($G5=\"-\"),VLOOKUP($G5,ALMD!$A$3:$H$18,2,FALSE),\"\")","v":0},{"$f":"VLOOKUP($B5,Setup!$G$12:$H$27,2,FALSE)","v":1},{"$f":"IF($G5>0,VLOOKUP($G5,ALMD!$A$3:$H$18,7,FALSE),0)","v":121},{"$f":"IF(Setup!$B$24=\"\",0,IF($G5>0,VLOOKUP($G5,ALMD!$A$3:$H$18,3,FALSE),0))","v":26198},{"$f":"IF($I5>0,VLOOKUP($I5,ALMD!$C$3:$H$18,2,FALSE),\"bye\")","v":"ΛΑΜΠΡΟΠΟΥΛΟΥ ΒΑΣΙΛΙΚΗ"},{"$f":"IF(NOT(I5>0),\"\",LEFT(J5,MIN(15,FIND(\" \",J5)-1))&MID(J5,FIND(\" \",J5),2))","v":"ΛΑΜΠΡΟΠΟΥΛΟΥ Β"},{"$f":"IF($I5>0,VLOOKUP($I5,ALMD!$C$3:$H$18,4,FALSE),\"\")","v":"ΑΕΚ ΤΡΙΠΟΛΗΣ"},1,{"$f":"IF(OR(M5=1,M5=2),IF(M5=1,I5,I6),\"\")","v":26198},{"$f":"IF(OR(M5=1,M5=2),IF(M5=1,K5,K6),\"\")","v":"ΛΑΜΠΡΟΠΟΥΛΟΥ Β"}]
[2,{"$f":"1-D6+4","v":5},1,{"$f":"E6","v":0},{"$f":"IF($B$2>=C6,1,0)","v":0},{"$f":"IF(NOT($G6=\"-\"),VLOOKUP($G6,ALMD!$A$3:$H$18,2,FALSE),\"\")","v":0},{"$f":"IF($B$2>=C6,\"-\",VLOOKUP($B6,Setup!$G$12:$H$27,2,FALSE))","v":14},{"$f":"IF(NOT($G6=\"-\"),VLOOKUP($G6,ALMD!$A$3:$H$18,7,FALSE),0)","v":4.5},{"$f":"IF(Setup!$B$24=\"\",0,IF(NOT($G6=\"-\"),VLOOKUP($G6,ALMD!$A$3:$H$18,3,FALSE),0))","v":40747},{"$f":"IF($I6>0,VLOOKUP($I6,ALMD!$C$3:$H$18,2,FALSE),\"bye\")","v":"ΤΟΥΜΠΑΝΙΑΡΗ ΜΑΡΙΑ"},{"$f":"IF(NOT(I6>0),\"\",LEFT(J6,MIN(15,FIND(\" \",J6)-1))&MID(J6,FIND(\" \",J6),2))","v":"ΤΟΥΜΠΑΝΙΑΡΗ Μ"},{"$f":"IF($I6>0,VLOOKUP($I6,ALMD!$C$3:$H$18,4,FALSE),\"\")","v":"ΟΑ ΚΟΡΙΝΘΟΥ"},null,null,"40 40",1,{"$f":"IF(OR(P6=1,P6=2),IF(P6=1,N5,N7),\"\")","v":26198},{"$f":"IF(OR(P6=1,P6=2),IF(OR(AND(O6=\"\",I5>0,I6>0),AND(O8=\"\",I7>0,I8>0)),\"* αποτέλεσμα! *\",IF(P6=1,O5,O7)),\"\")","v":"ΛΑΜΠΡΟΠΟΥΛΟΥ Β"}]
[3,{"$f":"2-D7+4","v":6},null,{"$f":"D6+E7","v":0},0,{"$f":"IF(NOT($G7=\"-\"),VLOOKUP($G7,ALMD!$A$3:$H$18,2,FALSE),\"\")","v":0},{"$f":"VLOOKUP($B7,Setup!$G$12:$H$27,2,FALSE)","v":15},{"$f":"IF($G7>0,VLOOKUP($G7,ALMD!$A$3:$H$18,7,FALSE),0)","v":2.4},{"$f":"IF(Setup!$B$24=\"\",0,IF($G7>0,VLOOKUP($G7,ALMD!$A$3:$H$18,3,FALSE),0))","v":41973},{"$f":"IF($I7>0,VLOOKUP($I7,ALMD!$C$3:$H$18,2,FALSE),\"bye\")","v":"ΣΑΚΚΕΛΑΡΟΠΟΥΛΟΥ ΕΥΑΓΓΕΛΙΑ"},"ΣΑΚΚΕΛΑΡΟΠΟΥΛΟΥ Ε",{"$f":"IF($I7>0,VLOOKUP($I7,ALMD!$C$3:$H$18,4,FALSE),\"\")","v":"ΧΡΥΣΟΣ ΟΑ"},2,{"$f":"IF(OR(M7=1,M7=2),IF(M7=1,I7,I8),\"\")","v":35659},{"$f":"IF(OR(M7=1,M7=2),IF(M7=1,K7,K8),\"\")","v":"ΜΑΚΡΥΓΕΩΡΓΟΥ Χ"},null,null,"41 42"]
[4,{"$f":"3-D8+4","v":7},7,0,{"$f":"IF($B$2>=C8,1,0)","v":0},{"$f":"IF(NOT($G8=\"-\"),VLOOKUP($G8,ALMD!$A$3:$H$18,2,FALSE),\"\")","v":0},{"$f":"IF($B$2>=C8,\"-\",VLOOKUP($B8,Setup!$G$12:$H$27,2,FALSE))","v":7},{"$f":"IF(NOT($G8=\"-\"),VLOOKUP($G8,ALMD!$A$3:$H$18,7,FALSE),0)","v":40},{"$f":"IF(Setup!$B$24=\"\",0,IF(NOT($G8=\"-\"),VLOOKUP($G8,ALMD!$A$3:$H$18,3,FALSE),0))","v":35659},{"$f":"IF($I8>0,VLOOKUP($I8,ALMD!$C$3:$H$18,2,FALSE),\"bye\")","v":"ΜΑΚΡΥΓΕΩΡΓΟΥ ΧΡΙΣΤΙΝΑ"},"ΜΑΚΡΥΓΕΩΡΓΟΥ Χ",{"$f":"IF($I8>0,VLOOKUP($I8,ALMD!$C$3:$H$18,4,FALSE),\"\")","v":"ΑΟΑ ΠΑΤΡΩΝ"},null,null,"40 41",null,null,null,1,{"$f":"IF(OR(S8=1,S8=2),IF(S8=1,Q6,Q10),\"\")","v":26198},{"$f":"IF(OR(S8=1,S8=2),IF(OR(AND(R7=\"\",N5>0,N7>0),AND(R11=\"\",N9>0,N11>0)),\"* αποτέλεσμα! *\",IF(S8=1,R6,R10)),\"\")","v":"ΛΑΜΠΡΟΠΟΥΛΟΥ Β"}]
[5,{"$f":"VALUE(Setup!E2)","v":4},null,0,0,{"$f":"IF(NOT($G9=\"-\"),VLOOKUP($G9,ALMD!$A$3:$H$18,2,FALSE),\"\")","v":"alt"},{"$f":"VLOOKUP($B9,Setup!$G$12:$H$27,2,FALSE)","v":4},{"$f":"IF($G9>0,VLOOKUP($G9,ALMD!$A$3:$H$18,7,FALSE),0)","v":52.1},{"$f":"IF(Setup!$B$24=\"\",0,IF($G9>0,VLOOKUP($G9,ALMD!$A$3:$H$18,3,FALSE),0))","v":90169},{"$f":"IF($I9>0,VLOOKUP($I9,ALMD!$C$3:$H$18,2,FALSE),\"bye\")","v":"ΑΣΕΝΟΒΑ ΓΚΕΡΓΚΑΝΑ"},"ΑΣΕΝΟΒΑ Γ",{"$f":"IF($I9>0,VLOOKUP($I9,ALMD!$C$3:$H$18,4,FALSE),\"\")","v":"ΟΑ ΚΑΛΑΜΑΤΑΣ"},1,{"$f":"IF(OR(M9=1,M9=2),IF(M9=1,I9,I10),\"\")","v":90169},{"$f":"IF(OR(M9=1,M9=2),IF(M9=1,K9,K10),\"\")","v":"ΑΣΕΝΟΒΑ Γ"},null,null,null,null,null,"61 61"]
[6,{"$f":"4-D10+4","v":8},{"$f":"IF(Setup!E2=3,3,4)","v":4},0,{"$f":"IF($B$2>=C10,1,0)","v":0},{"$f":"IF(NOT($G10=\"-\"),VLOOKUP($G10,ALMD!$A$3:$H$18,2,FALSE),\"\")","v":0},{"$f":"IF($B$2>=C10,\"-\",VLOOKUP($B10,Setup!$G$12:$H$27,2,FALSE))","v":9},{"$f":"IF(NOT($G10=\"-\"),VLOOKUP($G10,ALMD!$A$3:$H$18,7,FALSE),0)","v":28},{"$f":"IF(Setup!$B$24=\"\",0,IF(NOT($G10=\"-\"),VLOOKUP($G10,ALMD!$A$3:$H$18,3,FALSE),0))","v":36781},{"$f":"IF($I10>0,VLOOKUP($I10,ALMD!$C$3:$H$18,2,FALSE),\"bye\")","v":"ΚΟΚΚΙΝΟΥ ΑΙΚΑΤΕΡΙΝΗ"},"ΚΟΚΚΙΝΟΥ Α",{"$f":"IF($I10>0,VLOOKUP($I10,ALMD!$C$3:$H$18,4,FALSE),\"\")","v":"ΧΡΥΣΟΣ ΟΑ"},null,null,"41 40",1,{"$f":"IF(OR(P10=1,P10=2),IF(P10=1,N9,N11),\"\")","v":90169},{"$f":"IF(OR(P10=1,P10=2),IF(OR(AND(O10=\"\",I9>0,I10>0),AND(O12=\"\",I11>0,I12>0)),\"* αποτέλεσμα! *\",IF(P10=1,O9,O11)),\"\")","v":"ΑΣΕΝΟΒΑ Γ"}]
[7,{"$f":"5-D11+4","v":9},5,0,{"$f":"IF($B$2>=C11,1,0)","v":0},{"$f":"IF(NOT($G11=\"-\"),VLOOKUP($G11,ALMD!$A$3:$H$18,2,FALSE),\"\")","v":0},{"$f":"IF($B$2>=C11,\"-\",VLOOKUP($B11,Setup!$G$12:$H$27,2,FALSE))","v":12},{"$f":"IF(NOT($G11=\"-\"),VLOOKUP($G11,ALMD!$A$3:$H$18,7,FALSE),0)","v":15},{"$f":"IF(Setup!$B$24=\"\",0,IF(NOT($G11=\"-\"),VLOOKUP($G11,ALMD!$A$3:$H$18,3,FALSE),0))","v":34396},{"$f":"IF($I11>0,VLOOKUP($I11,ALMD!$C$3:$H$18,2,FALSE),\"bye\")","v":"ΜΗΤΡΟΠΟΥΛΟΥ ΑΘΑΝΑΣΙΑ"},"ΜΗΤΡΟΠΟΥΛΟΥ Α",{"$f":"IF($I11>0,VLOOKUP($I11,ALMD!$C$3:$H$18,4,FALSE),\"\")","v":"ΣΑ ΤΡΙΠΟΛΗΣ"},1,{"$f":"IF(OR(M11=1,M11=2),IF(M11=1,I11,I12),\"\")","v":34396},{"$f":"IF(OR(M11=1,M11=2),IF(M11=1,K11,K12),\"\")","v":"ΜΗΤΡΟΠΟΥΛΟΥ Α"},null,null,"41 42"]
[8,{"$f":"6-D12+4","v":10},null,0,0,{"$f":"IF(NOT($G12=\"-\"),VLOOKUP($G12,ALMD!$A$3:$H$18,2,FALSE),\"\")","v":0},{"$f":"VLOOKUP($B12,Setup!$G$12:$H$27,2,FALSE)","v":10},{"$f":"IF($G12>0,VLOOKUP($G12,ALMD!$A$3:$H$18,7,FALSE),0)","v":18.3},{"$f":"IF(Setup!$B$24=\"\",0,IF($G12>0,VLOOKUP($G12,ALMD!$A$3:$H$18,3,FALSE),0))","v":38845},{"$f":"IF($I12>0,VLOOKUP($I12,ALMD!$C$3:$H$18,2,FALSE),\"bye\")","v":"ΤΣΙΛΙΜΠΗ ΔΗΜΗΤΡΑ-ΑΙΚΑΤΕΡΙΝΗ"},"ΤΣΙΛΙΜΠΗ Δ",{"$f":"IF($I12>0,VLOOKUP($I12,ALMD!$C$3:$H$18,4,FALSE),\"\")","v":"ΡΗΓΑΣ ΑΟΑ ΑΡΓΟΛΙΔΑΣ"},null,null,"41 53",null,null,null,1,{"$f":"IF(OR(S12=1,S12=2),IF(S12=1,T8,T16),\"\")","v":26198},{"$f":"IF(OR(S12=1,S12=2),IF(S12=1,U8,U16),\"\")","v":"ΛΑΜΠΡΟΠΟΥΛΟΥ Β"}]
[9,{"$f":"VALUE(Setup!E3)","v":3},null,0,0,{"$f":"IF(NOT($G13=\"-\"),VLOOKUP($G13,ALMD!$A$3:$H$18,2,FALSE),\"\")","v":0},{"$f":"VLOOKUP($B13,Setup!$G$12:$H$27,2,FALSE)","v":3},{"$f":"IF($G13>0,VLOOKUP($G13,ALMD!$A$3:$H$18,7,FALSE),0)","v":65.5},{"$f":"IF(Setup!$B$24=\"\",0,IF($G13>0,VLOOKUP($G13,ALMD!$A$3:$H$18,3,FALSE),0))","v":37337},{"$f":"IF($I13>0,VLOOKUP($I13,ALMD!$C$3:$H$18,2,FALSE),\"bye\")","v":"ΔΕΛΗ ΜΑΡΙΑ"},"ΔΕΛΗ Μ",{"$f":"IF($I13>0,VLOOKUP($I13,ALMD!$C$3:$H$18,4,FALSE),\"\")","v":"ΡΗΓΑΣ ΑΟΑ ΑΡΓΟΛΙΔΑΣ"},2,{"$f":"IF(OR(M13=1,M13=2),IF(M13=1,I13,I14),\"\")","v":38948},{"$f":"IF(OR(M13=1,M13=2),IF(M13=1,K13,K14),\"\")","v":"ΠΑΠΑΚΩΝΣΤΑΝΤΙΝΟ Μ"},null,null,null,null,null,"61 64"]
[10,{"$f":"7-D14+4","v":11},{"$f":"IF(Setup!E2=3,4,3)","v":3},0,{"$f":"IF($B$2>=C14,1,0)","v":0},{"$f":"IF(NOT($G14=\"-\"),VLOOKUP($G14,ALMD!$A$3:$H$18,2,FALSE),\"\")","v":"alt"},{"$f":"IF($B$2>=C14,\"-\",VLOOKUP($B14,Setup!$G$12:$H$27,2,FALSE))","v":6},{"$f":"IF(NOT($G14=\"-\"),VLOOKUP($G14,ALMD!$A$3:$H$18,7,FALSE),0)","v":43},{"$f":"IF(Setup!$B$24=\"\",0,IF(NOT($G14=\"-\"),VLOOKUP($G14,ALMD!$A$3:$H$18,3,FALSE),0))","v":38948},{"$f":"IF($I14>0,VLOOKUP($I14,ALMD!$C$3:$H$18,2,FALSE),\"bye\")","v":"ΠΑΠΑΚΩΝΣΤΑΝΤΙΝΟΥ ΜΑΡΙΑ-ΙΩΑΝΝΑ"},"ΠΑΠΑΚΩΝΣΤΑΝΤΙΝΟ Μ",{"$f":"IF($I14>0,VLOOKUP($I14,ALMD!$C$3:$H$18,4,FALSE),\"\")","v":"ΟΑ ΚΑΛΑΜΑΤΑΣ"},null,null,"54(1) 40",1,{"$f":"IF(OR(P14=1,P14=2),IF(P14=1,N13,N15),\"\")","v":38948},{"$f":"IF(OR(P14=1,P14=2),IF(OR(AND(O14=\"\",I13>0,I14>0),AND(O16=\"\",I15>0,I16>0)),\"* αποτέλεσμα! *\",IF(P14=1,O13,O15)),\"\")","v":"ΠΑΠΑΚΩΝΣΤΑΝΤΙΝΟ Μ"}]
[11,{"$f":"8-D15+4","v":12},null,0,0,{"$f":"IF(NOT($G15=\"-\"),VLOOKUP($G15,ALMD!$A$3:$H$18,2,FALSE),\"\")","v":0},{"$f":"VLOOKUP($B15,Setup!$G$12:$H$27,2,FALSE)","v":11},{"$f":"IF($G15>0,VLOOKUP($G15,ALMD!$A$3:$H$18,7,FALSE),0)","v":16.8},{"$f":"IF(Setup!$B$24=\"\",0,IF($G15>0,VLOOKUP($G15,ALMD!$A$3:$H$18,3,FALSE),0))","v":38401},{"$f":"IF($I15>0,VLOOKUP($I15,ALMD!$C$3:$H$18,2,FALSE),\"bye\")","v":"ΚΛΑΟΥΔΑΤΟΥ ΔΑΝΑΗ"},"ΚΛΑΟΥΔΑΤΟΥ Δ",{"$f":"IF($I15>0,VLOOKUP($I15,ALMD!$C$3:$H$18,4,FALSE),\"\")","v":"ΧΡΥΣΟΣ ΟΑ"},1,{"$f":"IF(OR(M15=1,M15=2),IF(M15=1,I15,I16),\"\")","v":38401},{"$f":"IF(OR(M15=1,M15=2),IF(M15=1,K15,K16),\"\")","v":"ΚΛΑΟΥΔΑΤΟΥ Δ"},null,null,"40 40"]
[12,{"$f":"9-D16+4","v":13},6,0,{"$f":"IF($B$2>=C16,1,0)","v":0},{"$f":"IF(NOT($G16=\"-\"),VLOOKUP($G16,ALMD!$A$3:$H$18,2,FALSE),\"\")","v":0},{"$f":"IF($B$2>=C16,\"-\",VLOOKUP($B16,Setup!$G$12:$H$27,2,FALSE))","v":16},{"$f":"IF(NOT($G16=\"-\"),VLOOKUP($G16,ALMD!$A$3:$H$18,7,FALSE),0)","v":1.5},{"$f":"IF(Setup!$B$24=\"\",0,IF(NOT($G16=\"-\"),VLOOKUP($G16,ALMD!$A$3:$H$18,3,FALSE),0))","v":40755},{"$f":"IF($I16>0,VLOOKUP($I16,ALMD!$C$3:$H$18,2,FALSE),\"bye\")","v":"ΣΤΟΚΑ ΕΛΕΝΗ"},"ΣΤΟΚΑ Ε",{"$f":"IF($I16>0,VLOOKUP($I16,ALMD!$C$3:$H$18,4,FALSE),\"\")","v":"ΑΟ ΠΟΣΕΙΔΩΝ ΛΟΥΤΡΑΚΙΟΥ"},null,null,"41 53",null,null,null,2,{"$f":"IF(OR(S16=1,S16=2),IF(S16=1,Q14,Q18),\"\")","v":37585},{"$f":"IF(OR(S16=1,S16=2),IF(OR(AND(R15=\"\",N13>0,N15>0),AND(R19=\"\",N17>0,N19>0)),\"* αποτέλεσμα! *\",IF(S16=1,R14,R18)),\"\")","v":"ΣΤΡΑΤΗ Γ"}]
[13,{"$f":"10-D17+4","v":14},null,0,0,{"$f":"IF(NOT($G17=\"-\"),VLOOKUP($G17,ALMD!$A$3:$H$18,2,FALSE),\"\")","v":0},{"$f":"VLOOKUP($B17,Setup!$G$12:$H$27,2,FALSE)","v":8},{"$f":"IF($G17>0,VLOOKUP($G17,ALMD!$A$3:$H$18,7,FALSE),0)","v":28.5},{"$f":"IF(Setup!$B$24=\"\",0,IF($G17>0,VLOOKUP($G17,ALMD!$A$3:$H$18,3,FALSE),0))","v":39327},{"$f":"IF($I17>0,VLOOKUP($I17,ALMD!$C$3:$H$18,2,FALSE),\"bye\")","v":"ΜΠΟΥΖΟΥ ΕΛΕΝΗ-ΙΩΑΝΝΑ"},"ΜΠΟΥΖΟΥ Ε",{"$f":"IF($I17>0,VLOOKUP($I17,ALMD!$C$3:$H$18,4,FALSE),\"\")","v":"ΣΑ ΤΡΙΠΟΛΗΣ"},2,{"$f":"IF(OR(M17=1,M17=2),IF(M17=1,I17,I18),\"\")","v":40340},{"$f":"IF(OR(M17=1,M17=2),IF(M17=1,K17,K18),\"\")","v":"ΝΙΚΟΛΑΚΟΠΟΥΛΟΥ Α"},null,null,null,null,null,"62 62"]
[14,{"$f":"11-D18+4","v":15},8,0,{"$f":"IF($B$2>=C18,1,0)","v":0},{"$f":"IF(NOT($G18=\"-\"),VLOOKUP($G18,ALMD!$A$3:$H$18,2,FALSE),\"\")","v":0},{"$f":"IF($B$2>=C18,\"-\",VLOOKUP($B18,Setup!$G$12:$H$27,2,FALSE))","v":13},{"$f":"IF(NOT($G18=\"-\"),VLOOKUP($G18,ALMD!$A$3:$H$18,7,FALSE),0)","v":13.8},{"$f":"IF(Setup!$B$24=\"\",0,IF(NOT($G18=\"-\"),VLOOKUP($G18,ALMD!$A$3:$H$18,3,FALSE),0))","v":40340},{"$f":"IF($I18>0,VLOOKUP($I18,ALMD!$C$3:$H$18,2,FALSE),\"bye\")","v":"ΝΙΚΟΛΑΚΟΠΟΥΛΟΥ ΑΝΝΑ-ΜΑΡΙΑ"},"ΝΙΚΟΛΑΚΟΠΟΥΛΟΥ Α",{"$f":"IF($I18>0,VLOOKUP($I18,ALMD!$C$3:$H$18,4,FALSE),\"\")","v":"ΧΡΥΣΟΣ ΟΑ"},null,null,"40 42",2,{"$f":"IF(OR(P18=1,P18=2),IF(P18=1,N17,N19),\"\")","v":37585},{"$f":"IF(OR(P18=1,P18=2),IF(OR(AND(O18=\"\",I17>0,I18>0),AND(O20=\"\",I19>0,I20>0)),\"* αποτέλεσμα! *\",IF(P18=1,O17,O19)),\"\")","v":"ΣΤΡΑΤΗ Γ"}]
[15,{"$f":"12-D19+4","v":16},2,0,{"$f":"IF($B$2>=C19,1,0)","v":0},{"$f":"IF(NOT($G19=\"-\"),VLOOKUP($G19,ALMD!$A$3:$H$18,2,FALSE),\"\")","v":0},{"$f":"IF($B$2>=C19,\"-\",VLOOKUP($B19,Setup!$G$12:$H$27,2,FALSE))","v":5},{"$f":"IF(NOT($G19=\"-\"),VLOOKUP($G19,ALMD!$A$3:$H$18,7,FALSE),0)","v":45.5},{"$f":"IF(Setup!$B$24=\"\",0,IF(NOT($G19=\"-\"),VLOOKUP($G19,ALMD!$A$3:$H$18,3,FALSE),0))","v":33668},{"$f":"IF($I19>0,VLOOKUP($I19,ALMD!$C$3:$H$18,2,FALSE),\"bye\")","v":"ΚΑΛΤΕΖΙΩΤΗ ΕΛΕΝΗ-ΜΑΡΙΑ"},"ΚΑΛΤΕΖΙΩΤΗ Ε",{"$f":"IF($I19>0,VLOOKUP($I19,ALMD!$C$3:$H$18,4,FALSE),\"\")","v":"ΣΑ ΤΡΙΠΟΛΗΣ"},2,{"$f":"IF(OR(M19=1,M19=2),IF(M19=1,I19,I20),\"\")","v":37585},{"$f":"IF(OR(M19=1,M19=2),IF(M19=1,K19,K20),\"\")","v":"ΣΤΡΑΤΗ Γ"},null,null,"40 40"]
[16,2,null,0,0,{"$f":"IF(NOT($G20=\"-\"),VLOOKUP($G20,ALMD!$A$3:$H$18,2,FALSE),\"\")","v":0},{"$f":"VLOOKUP($B20,Setup!$G$12:$H$27,2,FALSE)","v":2},{"$f":"IF($G20>0,VLOOKUP($G20,ALMD!$A$3:$H$18,7,FALSE),0)","v":95},{"$f":"IF(Setup!$B$24=\"\",0,IF($G20>0,VLOOKUP($G20,ALMD!$A$3:$H$18,3,FALSE),0))","v":37585},{"$f":"IF($I20>0,VLOOKUP($I20,ALMD!$C$3:$H$18,2,FALSE),\"bye\")","v":"ΣΤΡΑΤΗ ΓΕΩΡΓΙΑ-ΑΝΔΡΙΑΝΑ"},"ΣΤΡΑΤΗ Γ",{"$f":"IF($I20>0,VLOOKUP($I20,ALMD!$C$3:$H$18,4,FALSE),\"\")","v":"ΑΟΑ ΠΑΤΡΩΝ"},null,null,"41 41"]
[null,null,null,null,null,null,null,null,null,null,null,null,null,null," ",null,null," ",null,null," "]
[]
[]
[null,null,null,null,null,null,null,null,null,"seeded players"]
[null,null,null,null,null,null,null,null,null,{"$f":"\"1. \" & IF(Setup!B19>0,LEFT(ALMD!D3,FIND(\" \",ALMD!D3)+1),\"\")","v":"1. ΛΑΜΠΡΟΠΟΥΛΟΥ Β"}]
[null,null,null,null,null,null,null,null,null,{"$f":"\"2. \" & IF(Setup!B19>1,LEFT(ALMD!D4,FIND(\" \",ALMD!D4)+1),\"\")","v":"2. ΣΤΡΑΤΗ Γ"},null,null,null,null,null,null,null,"επιδιαιτητής"]
[null,null,null,null,null,null,null,null,null,{"$f":"\"3. \" & IF(Setup!B19>2,LEFT(ALMD!D5,FIND(\" \",ALMD!D5)+1),\"\")","v":"3. ΔΕΛΗ Μ"},null,null,null,null,null,null,null,{"$f":"IF(Setup!$B$11>\" \",Setup!$B$11,\"ΧΩΡΙΣ ΑΔΕΙΑ ΧΡΗΣΗΣ\")","v":"ΚΑΛΟΓΡΗ Σ"}]
[null,null,null,null,null,null,null,null,null,{"$f":"\"4. \" & IF(Setup!B19>3,LEFT(ALMD!D6,FIND(\" \",ALMD!D6)+1),\"\")","v":"4. ΑΣΕΝΟΒΑ Γ"}]
[]
[]
[]
[]
[]
[]
[]
[]
[]
[]
[]
[null,null,null,null,null,null,null,null,null,"BoldPlayers"]
[null,null,null,null,null,null,null,null,null,{"$f":"IF(Setup!$B$19>0,LEFT(ALMD!D3,FIND(\" \",ALMD!D3)+1))","v":"ΛΑΜΠΡΟΠΟΥΛΟΥ Β"}]
[null,null,null,null,null,null,null,null,null,{"$f":"IF(Setup!$B$19>1,LEFT(ALMD!D4,FIND(\" \",ALMD!D4)+1))","v":"ΣΤΡΑΤΗ Γ"}]
[null,null,null,null,null,null,null,null,null,{"$f":"IF(Setup!$B$19>2,LEFT(ALMD!D5,FIND(\" \",ALMD!D5)+1))","v":"ΔΕΛΗ Μ"}]
[null,null,null,null,null,null,null,null,null,{"$f":"IF(Setup!$B$19>3,LEFT(ALMD!D6,FIND(\" \",ALMD!D6)+1))","v":"ΑΣΕΝΟΒΑ Γ"}]

{"sheet":"OoP","index":3,"n_rows":30,"n_cols":6,"rows_kept":30,"cut":false,"hidden":false,"merged":[]}
["ΣΤ' ΕΝΩΣΗ, Ε3 19η, ΣΑ ΤΡΙΠΟΛΗΣ, 12/5-13/5 (Κ14)"]
["ΚΑΛΟΓΡΗ Σ"]
[null,null,"Πρόγραμμα αγώνων"]
[]
[null,null,"Round 16",null,null,"info"]
["ΩΡΑ","Κτγρ.","Αθλητής-Σύλλογος",null,"Αθλητής-Σύλλογος"]
["Έναρξη","Κ14 R16","ΛΑΜΠΡΟΠΟΥΛΟΥ Β (ΑΕΚ ΤΡΙΠΟΛΗΣ)","-","ΤΟΥΜΠΑΝΙΑΡΗ Μ (ΟΑ ΚΟΡΙΝΘΟΥ)"]
[null,"Κ14 R16","ΣΑΚΚΕΛΑΡΟΠΟΥΛΟΥ Ε (ΧΡΥΣΟΣ ΟΑ)","-","ΜΑΚΡΥΓΕΩΡΓΟΥ Χ (ΑΟΑ ΠΑΤΡΩΝ)"]
[null,"Κ14 R16","ΑΣΕΝΟΒΑ Γ (ΟΑ ΚΑΛΑΜΑΤΑΣ)","-","ΚΟΚΚΙΝΟΥ Α (ΧΡΥΣΟΣ ΟΑ)"]
[null,"Κ14 R16","ΜΗΤΡΟΠΟΥΛΟΥ Α (ΣΑ ΤΡΙΠΟΛΗΣ)","-","ΤΣΙΛΙΜΠΗ Δ (ΡΗΓΑΣ ΑΟΑ ΑΡ)"]
["όχι πριν","Κ14 R16","ΔΕΛΗ Μ (ΡΗΓΑΣ ΑΟΑ ΑΡ)",null,"ΠΑΠΑΚΩΝΣΤΑΝΤΙΝΟΥ Μ (ΟΑ ΚΑΛΑΜΑΤΑΣ)"]
[null,"Κ14 R16","ΚΛΑΟΥΔΑΤΟΥ Δ (ΧΡΥΣΟΣ ΟΑ)",null,"ΣΤΟΚΑ Ε (ΑΟ ΠΟΣΕΙΔΩΝ )"]
[null,"Κ14 R16","ΜΠΟΥΖΟΥ Ε (ΣΑ ΤΡΙΠΟΛΗΣ)",null,"ΝΙΚΟΛΑΚΟΠΟΥΛΟΥ Α (ΧΡΥΣΟΣ ΟΑ)"]
[null,"Κ14 R16","ΚΑΛΤΕΖΙΩΤΗ Ε (ΣΑ ΤΡΙΠΟΛΗΣ)",null,"ΣΤΡΑΤΗ Γ (ΑΟΑ ΠΑΤΡΩΝ)"]
[]
[null,null,"Round 8",null,null,"info"]
["ΩΡΑ","Κτγρ.","Αθλητής-Σύλλογος",null,"Αθλητής-Σύλλογος"]
["Έναρξη","Κ14 R8","ΛΑΜΠΡΟΠΟΥΛΟΥ Β (ΑΕΚ ΤΡΙΠΟΛΗΣ)","-","ΜΑΚΡΥΓΕΩΡΓΟΥ Χ (ΑΟΑ ΠΑΤΡΩΝ)"]
[null,"Κ14 R8","ΑΣΕΝΟΒΑ Γ (ΟΑ ΚΑΛΑΜΑΤΑΣ)","-","ΜΗΤΡΟΠΟΥΛΟΥ Α (ΣΑ ΤΡΙΠΟΛΗΣ)"]
[null,"Κ14 R8","ΠΑΠΑΚΩΝΣΤΑΝΤΙΝΟΥ Μ (ΟΑ ΚΑΛΑΜΑΤΑΣ)","-","ΚΛΑΟΥΔΑΤΟΥ Δ (ΧΡΥΣΟΣ ΟΑ)"]
[null,"Κ14 R8","ΝΙΚΟΛΑΚΟΠΟΥΛΟΥ Α (ΧΡΥΣΟΣ ΟΑ)","-","ΣΤΡΑΤΗ Γ (ΑΟΑ ΠΑΤΡΩΝ)"]
[]
[null,null,"Ημιτελικοί",null,null,"info"]
["ΩΡΑ","Κτγρ.","Αθλητής-Σύλλογος",null,"Αθλητής-Σύλλογος"]
["Έναρξη","Κ14 Ημιτελ","ΛΑΜΠΡΟΠΟΥΛΟΥ Β (ΑΕΚ ΤΡΙΠΟΛΗΣ)",null,"ΑΣΕΝΟΒΑ Γ (ΟΑ ΚΑΛΑΜΑΤΑΣ)"]
[null,"Κ14 Ημιτελ","ΠΑΠΑΚΩΝΣΤΑΝΤΙΝΟΥ Μ (ΟΑ ΚΑΛΑΜΑΤΑΣ)",null,"ΣΤΡΑΤΗ Γ (ΑΟΑ ΠΑΤΡΩΝ)"]
[]
[null,null,"Τελικός",null,null,"info"]
["ΩΡΑ","Κτγρ.","Αθλητής-Σύλλογος",null,"Αθλητής-Σύλλογος"]
["Έναρξη","Κ14 Τελ.","ΛΑΜΠΡΟΠΟΥΛΟΥ Β (ΑΕΚ ΤΡΙΠΟΛΗΣ)",null,"ΣΤΡΑΤΗ Γ (ΑΟΑ ΠΑΤΡΩΝ)"]

{"sheet":"PrepOP","index":4,"n_rows":30,"n_cols":6,"rows_kept":30,"cut":false,"hidden":true,"merged":[]}
[{"$f":"Setup!$B$3&\", \"&Setup!$B$7&\", \"&Setup!$B$4&\", \"&DAY(Setup!$B$8)&\"/\"&MONTH(Setup!$B$8)&\"-\"&DAY(Setup!$B$9)&\"/\"&MONTH(Setup!$B$9)& \" (\" & Setup!B6 & \")\"","v":"ΣΤ' ΕΝΩΣΗ, Ε3 19η, ΣΑ ΤΡΙΠΟΛΗΣ, 12/5-13/5 (Κ14)"}]
[{"$f":"Setup!$B$11","v":"ΚΑΛΟΓΡΗ Σ"}]
[null,null,"Πρόγραμμα αγώνων"]
[]
[null,null,"Round 16",null,null,"info"]
["ΩΡΑ","Κτγρ.","Αθλητής-Σύλλογος",null,"Αθλητής-Σύλλογος"]
["Έναρξη",{"$f":"Setup!$B$6&\" R16\"","v":"Κ14 R16"},{"$f":"IF(LEN(MD!I5)<2,\"\",VLOOKUP(MD!I5,ALMD!$C:$L,10,FALSE))","v":"ΛΑΜΠΡΟΠΟΥΛΟΥ Β (ΑΕΚ ΤΡΙΠΟΛΗΣ)"},{"$f":"IF(OR(C7=\"\",E7=\"\"),\" \",\"-\")","v":"-"},{"$f":"IF(LEN(MD!I6)<2, \"\",VLOOKUP(MD!I6,ALMD!$C:$L,10,FALSE))","v":"ΤΟΥΜΠΑΝΙΑΡΗ Μ (ΟΑ ΚΟΡΙΝΘΟΥ)"}]
[null,{"$f":"Setup!$B$6&\" R16\"","v":"Κ14 R16"},{"$f":"IF(LEN(MD!I7)<2,\"\",VLOOKUP(MD!I7,ALMD!$C:$L,10,FALSE))","v":"ΣΑΚΚΕΛΑΡΟΠΟΥΛΟΥ Ε (ΧΡΥΣΟΣ ΟΑ)"},{"$f":"IF(OR(C8=\"\",E8=\"\"),\" \",\"-\")","v":"-"},{"$f":"IF(LEN(MD!I8)<2, \"\",VLOOKUP(MD!I8,ALMD!$C:$L,10,FALSE))","v":"ΜΑΚΡΥΓΕΩΡΓΟΥ Χ (ΑΟΑ ΠΑΤΡΩΝ)"}]
[null,{"$f":"Setup!$B$6&\" R16\"","v":"Κ14 R16"},{"$f":"IF(LEN(MD!I9)<2,\"\",VLOOKUP(MD!I9,ALMD!$C:$L,10,FALSE))","v":"ΑΣΕΝΟΒΑ Γ (ΟΑ ΚΑΛΑΜΑΤΑΣ)"},"-",{"$f":"IF(LEN(MD!I10)<2,\"\",VLOOKUP(MD!I10,ALMD!$C:$L,10,FALSE))","v":"ΚΟΚΚΙΝΟΥ Α (ΧΡΥΣΟΣ ΟΑ)"}]
[null,{"$f":"Setup!$B$6&\" R16\"","v":"Κ14 R16"},{"$f":"IF(LEN(MD!I11)<2,\"\",VLOOKUP(MD!I11,ALMD!$C:$L,10,FALSE))","v":"ΜΗΤΡΟΠΟΥΛΟΥ Α (ΣΑ ΤΡΙΠΟΛΗΣ)"},"-",{"$f":"IF(LEN(MD!I12)<2,\"\",VLOOKUP(MD!I12,ALMD!$C:$L,10,FALSE))","v":"ΤΣΙΛΙΜΠΗ Δ (ΡΗΓΑΣ ΑΟΑ ΑΡ)"}]
["όχι πριν",{"$f":"Setup!$B$6&\" R16\"","v":"Κ14 R16"},{"$f":"IF(LEN(MD!I13)<2,\"\",VLOOKUP(MD!I13,ALMD!$C:$L,10,FALSE))","v":"ΔΕΛΗ Μ (ΡΗΓΑΣ ΑΟΑ ΑΡ)"},null,{"$f":"IF(LEN(MD!I14)<2,\"\",VLOOKUP(MD!I14,ALMD!$C:$L,10,FALSE))","v":"ΠΑΠΑΚΩΝΣΤΑΝΤΙΝΟΥ Μ (ΟΑ ΚΑΛΑΜΑΤΑΣ)"}]
[null,{"$f":"Setup!$B$6&\" R16\"","v":"Κ14 R16"},{"$f":"IF(LEN(MD!I15)<2,\"\",VLOOKUP(MD!I15,ALMD!$C:$L,10,FALSE))","v":"ΚΛΑΟΥΔΑΤΟΥ Δ (ΧΡΥΣΟΣ ΟΑ)"},null,{"$f":"IF(LEN(MD!I16)<2,\"\",VLOOKUP(MD!I16,ALMD!$C:$L,10,FALSE))","v":"ΣΤΟΚΑ Ε (ΑΟ ΠΟΣΕΙΔΩΝ )"}]
[null,{"$f":"Setup!$B$6&\" R16\"","v":"Κ14 R16"},{"$f":"IF(LEN(MD!I17)<2,\"\",VLOOKUP(MD!I17,ALMD!$C:$L,10,FALSE))","v":"ΜΠΟΥΖΟΥ Ε (ΣΑ ΤΡΙΠΟΛΗΣ)"},null,{"$f":"IF(LEN(MD!I18)<2,\"\",VLOOKUP(MD!I18,ALMD!$C:$L,10,FALSE))","v":"ΝΙΚΟΛΑΚΟΠΟΥΛΟΥ Α (ΧΡΥΣΟΣ ΟΑ)"}]
[null,{"$f":"Setup!$B$6&\" R16\"","v":"Κ14 R16"},{"$f":"IF(LEN(MD!I19)<2,\"\",VLOOKUP(MD!I19,ALMD!$C:$L,10,FALSE))","v":"ΚΑΛΤΕΖΙΩΤΗ Ε (ΣΑ ΤΡΙΠΟΛΗΣ)"},null,{"$f":"IF(LEN(MD!I20)<2,\"\",VLOOKUP(MD!I20,ALMD!$C:$L,10,FALSE))","v":"ΣΤΡΑΤΗ Γ (ΑΟΑ ΠΑΤΡΩΝ)"}]
[]
[null,null,"Round 8",null,null,"info"]
["ΩΡΑ","Κτγρ.","Αθλητής-Σύλλογος",null,"Αθλητής-Σύλλογος"]
["Έναρξη",{"$f":"Setup!$B$6&\" R8\"","v":"Κ14 R8"},{"$f":"IF(LEN(MD!N5)<2,\"\",VLOOKUP(MD!N5,ALMD!$C:$L,10,FALSE))","v":"ΛΑΜΠΡΟΠΟΥΛΟΥ Β (ΑΕΚ ΤΡΙΠΟΛΗΣ)"},{"$f":"IF(OR(C18=\"\",E18=\"\"),\" \",\"-\")","v":"-"},{"$f":"IF(LEN(MD!N7)<2,\"\",VLOOKUP(MD!N7,ALMD!$C:$L,10,FALSE))","v":"ΜΑΚΡΥΓΕΩΡΓΟΥ Χ (ΑΟΑ ΠΑΤΡΩΝ)"}]
[null,{"$f":"Setup!$B$6&\" R8\"","v":"Κ14 R8"},{"$f":"IF(LEN(MD!N9)<2,\"\",VLOOKUP(MD!N9,ALMD!$C:$L,10,FALSE))","v":"ΑΣΕΝΟΒΑ Γ (ΟΑ ΚΑΛΑΜΑΤΑΣ)"},{"$f":"IF(OR(C19=\"\",E19=\"\"),\" \",\"-\")","v":"-"},{"$f":"IF(LEN(MD!N11)<2,\"\",VLOOKUP(MD!N11,ALMD!$C:$L,10,FALSE))","v":"ΜΗΤΡΟΠΟΥΛΟΥ Α (ΣΑ ΤΡΙΠΟΛΗΣ)"}]
[null,{"$f":"Setup!$B$6&\" R8\"","v":"Κ14 R8"},{"$f":"IF(LEN(MD!N13)<2,\"\",VLOOKUP(MD!N13,ALMD!$C:$L,10,FALSE))","v":"ΠΑΠΑΚΩΝΣΤΑΝΤΙΝΟΥ Μ (ΟΑ ΚΑΛΑΜΑΤΑΣ)"},{"$f":"IF(OR(C20=\"\",E20=\"\"),\" \",\"-\")","v":"-"},{"$f":"IF(LEN(MD!N15)<2,\"\",VLOOKUP(MD!N15,ALMD!$C:$L,10,FALSE))","v":"ΚΛΑΟΥΔΑΤΟΥ Δ (ΧΡΥΣΟΣ ΟΑ)"}]
[null,{"$f":"Setup!$B$6&\" R8\"","v":"Κ14 R8"},{"$f":"IF(LEN(MD!N17)<2,\"\",VLOOKUP(MD!N17,ALMD!$C:$L,10,FALSE))","v":"ΝΙΚΟΛΑΚΟΠΟΥΛΟΥ Α (ΧΡΥΣΟΣ ΟΑ)"},{"$f":"IF(OR(C21=\"\",E21=\"\"),\" \",\"-\")","v":"-"},{"$f":"IF(LEN(MD!N19)<2,\"\",VLOOKUP(MD!N19,ALMD!$C:$L,10,FALSE))","v":"ΣΤΡΑΤΗ Γ (ΑΟΑ ΠΑΤΡΩΝ)"}]
[]
[null,null,"Ημιτελικοί",null,null,"info"]
["ΩΡΑ","Κτγρ.","Αθλητής-Σύλλογος",null,"Αθλητής-Σύλλογος"]
["Έναρξη",{"$f":"Setup!$B$6&\" Ημιτελ\"","v":"Κ14 Ημιτελ"},{"$f":"IF(LEN(MD!Q6)<2,\"\",VLOOKUP(MD!Q6,ALMD!$C:$L,10,FALSE))","v":"ΛΑΜΠΡΟΠΟΥΛΟΥ Β (ΑΕΚ ΤΡΙΠΟΛΗΣ)"},null,{"$f":"IF(LEN(MD!Q10)<2,\"\",VLOOKUP(MD!Q10,ALMD!$C:$L,10,FALSE))","v":"ΑΣΕΝΟΒΑ Γ (ΟΑ ΚΑΛΑΜΑΤΑΣ)"}]
[null,{"$f":"Setup!$B$6&\" Ημιτελ\"","v":"Κ14 Ημιτελ"},{"$f":"IF(LEN(MD!Q14)<2,\"\",VLOOKUP(MD!Q14,ALMD!$C:$L,10,FALSE))","v":"ΠΑΠΑΚΩΝΣΤΑΝΤΙΝΟΥ Μ (ΟΑ ΚΑΛΑΜΑΤΑΣ)"},null,{"$f":"IF(LEN(MD!Q18)<2,\"\",VLOOKUP(MD!Q18,ALMD!$C:$L,10,FALSE))","v":"ΣΤΡΑΤΗ Γ (ΑΟΑ ΠΑΤΡΩΝ)"}]
[]
[null,null,"Τελικός",null,null,"info"]
["ΩΡΑ","Κτγρ.","Αθλητής-Σύλλογος",null,"Αθλητής-Σύλλογος"]
["Έναρξη",{"$f":"Setup!$B$6&\" Τελ.\"","v":"Κ14 Τελ."},{"$f":"IF(LEN(MD!T8)<2,\"\",VLOOKUP(MD!T8,ALMD!$C:$L,10,FALSE))","v":"ΛΑΜΠΡΟΠΟΥΛΟΥ Β (ΑΕΚ ΤΡΙΠΟΛΗΣ)"},null,{"$f":"IF(LEN(MD!T16)<2,\"\",VLOOKUP(MD!T16,ALMD!$C:$L,10,FALSE))","v":"ΣΤΡΑΤΗ Γ (ΑΟΑ ΠΑΤΡΩΝ)"}]

{"sheet":"tables","index":5,"n_rows":511,"n_cols":46,"rows_kept":511,"cut":false,"hidden":true,"merged":[]}
["RndIndx","random","FixRandom",null,null,null,"33-64","17-32","9-16","5-8","3-4","2ος","1ος",null,null,"Categories","Juniors","Serniors",null,null,null,"Tours",null,"Clubs","Id","Union",null,"Organizers",null,"Referees",null,"key","pts18",null,"KEY TourDetails","Date","TourName","CLUBid","CLUB","TYPE","GRP","GRPid","TDid",null,"Group","GroupID"]
[1,{"$f":"RAND()/222","v":2.4559059480094587E-3},4.262552663076266E-3,null,null,"Ε1-12",null,5,7.5,10,15,25,30,null,null,null,"Α10","m35",null,null,null,"Παν",null,null,null,null,null,null,null,null,null,"Ε1S-12-1st",30,null,{"$f":"AJ2&AK2&AL2&AN2&AO2","v":"43113Ε3 2η (Β)152Sα12"},"2018-01-13","Ε3 2η (Β)",152,"ΟΑ ΚΑΛΑΜΑΡΙΑΣ","S","α12",5,3305,null,"Α10",3]
[2,{"$f":"RAND()/222","v":3.2035634551897951E-3},4.3605515195584204E-3,null,null,"Ε1-14",null,10,15,20,30,50,60,null,null,"Α12","Α12","m40",null,null,null,"Ε3",null,"ΑΑ ΑΙΓΑΛΕΩ",366,"Θ",null,"ΕΦΟΑ",null,"Θα-ανακοινωθεί",null,"Ε1S-12-2nd",25,null,{"$f":"AJ3&AK3&AL3&AN3&AO3","v":"43113Ε3 2η (Β)152Sα16"},"2018-01-13","Ε3 2η (Β)",152,"ΟΑ ΚΑΛΑΜΑΡΙΑΣ","S","α16",7,3306,null,"Κ10",4]
[3,{"$f":"RAND()/222","v":6.1931344018901612E-4},2.8828630686324008E-3,null,null,"Ε1-16",null,20,30,40,60,100,120,null,null,"Α14","Α14","m45",null,null,null,"Ε4",null,"ΑΑ ΑΛΜΠΑΤΡΟΣ",124,"Β",null,"Α' ΕΝΩΣΗ",null,"ΑΛΕΞΙΟΥ Δ",null,"Ε1S-12-3_4",15,null,"43113Ε3 2η (Β)152Sκ12","2018-01-13","Ε3 2η (Β)",152,"ΟΑ ΚΑΛΑΜΑΡΙΑΣ","S","κ12",9,3307,null,"Α12",5]
[4,{"$f":"RAND()/222","v":1.6432032500026752E-3},1.346797690590734E-3,null,null,"Ε1-18",null,25,37.5,50,75,125,150,null,null,"Α16","Α16","m50",null,null,null,"Open",null,"ΑΑ ΚΕΡΚΥΡΑΣ",201,"Δ",null,"Β' ΕΝΩΣΗ",null,"ΑΜΟΥΤΖΟΓΛΟΥ Κ",null,"Ε1S-12-5_8",10,null,"43113Ε3 2η (Β)152Sκ16","2018-01-13","Ε3 2η (Β)",152,"ΟΑ ΚΑΛΑΜΑΡΙΑΣ","S","κ16",11,3308,null,"Α14",6]
[5,{"$f":"RAND()/222","v":4.1373892141346111E-3},1.0143343628999575E-3,null,null,"Ε2-12",null,2.5,4,5,7.5,12.5,15,null,null,"Α18","Α18","m55",null,null,null,"ΠανΑΓ",null,"ΑΑ ΝΑΟΥΣΑΣ",169,"Γ",null,"Γ' ΕΝΩΣΗ",null,"ΑΞΑΡΛΗ Ν",null,"Ε1S-12-9_16",7.5,null,"43120Ε3 4η (Δ)217Sα12","2018-01-20","Ε3 4η (Δ)",217,"ΟΑ ΑΡΤΑΣ","S","α12",5,3309,null,"Α16",7]
[6,{"$f":"RAND()/222","v":1.1450211821161047E-3},3.5066756008767511E-4,null,null,"Ε2-14",null,5,7.5,10,15,25,30,null,null,"Κ12","Κ10","m60",null,null,null,"OpenΑΓ",null,"ΑΑΑ ΑΛΙΜΟΥ",407,"ΙΑ",null,"Δ' ΕΝΩΣΗ",null,"ΒΑΒΙΤΣΑ Π",null,"Ε1S-12-17_32",1,null,"43120Ε3 4η (Δ)217Sα16","2018-01-20","Ε3 4η (Δ)",217,"ΟΑ ΑΡΤΑΣ","S","α16",7,3310,null,"Α18",8]
[7,1.2446583352070334E-3,7.1128963695924738E-5,null,null,"Ε2-16",null,10,16,20,30,50,60,null,null,"Κ14","Κ12","m65",null,null,null,null,null,"ΑΓΟ ΒΟΛΟΥ",470,"Ε",null,"Ε' ΕΝΩΣΗ",null,"ΒΑΒΟΥΡΑΚΗ Ε",null,"Ε1S-12-q8",2,null,"43120Ε3 4η (Δ)217Sκ12","2018-01-20","Ε3 4η (Δ)",217,"ΟΑ ΑΡΤΑΣ","S","κ12",9,3311,null,"Κ12",9]
[8,2.9585751844011811E-3,1.6722492287120925E-4,null,null,"Ε3-12",0.5,1.5,2.4,3,4.5,7.5,9,null,null,"Κ16","Κ14","m70",null,null,null,null,null,"ΑΓΟ ΕΥΡΥΑΛΗ ΓΛΥΦΑΔΑΣ",408,"ΙΑ",null,"ΣΤ' ΕΝΩΣΗ",null,"ΒΑΚΟΥΦΑΡΗΣ Δ",null,"Ε1S-12-q16",2,null,"43120Ε3 4η (Δ)217Sκ16","2018-01-20","Ε3 4η (Δ)",217,"ΟΑ ΑΡΤΑΣ","S","κ16",11,3312,null,"Κ14",10]
[9,9.692823996250515E-4,3.2668147770229909E-3,null,null,"Ε3-14",1,3,4.5,6,9,15,18,null,null,"Κ18","Κ16","m75",null,null,null,null,null,"ΑΓΟ ΘΕΣΠΡΩΤΙΚΟΥ",202,"Δ",null,"Ζ' ΕΝΩΣΗ",null,"ΒΑΛΤΑΔΩΡΟΣ Δ",null,"Ε1S-12-q8/2",1,null,"43120Ε3 3η (Ε)244Sα12","2018-01-20","Ε3 3η (Ε)",244,"ΟΑ ΜΑΓΝΗΣΙΑΣ","S","α12",5,3313,null,"Κ16",11]
[10,4.0607895777925781E-3,3.6065991659683656E-3,null,null,"Ε3-16",2,6,9.6,12,18,30,36,null,null,"Α10","Κ18","w35",null,null,null,null,null,"ΑΓΟ ΝΑΥΠΑΚΤΟΥ",203,"Δ",null,"Η' ΕΝΩΣΗ",null,"ΒΑΛΤΑΔΩΡΟΣ Μ",null,"Ε1S-12-q32",1,null,"43120Ε3 3η (Ε)244Sα16","2018-01-20","Ε3 3η (Ε)",244,"ΟΑ ΜΑΓΝΗΣΙΑΣ","S","α16",7,3314,null,"Κ18",12]
[11,4.0682804281227898E-4,2.6546821600119813E-3,null,null,"Ε4-12",0.2,0.5,1,1.2,1.7,3.2,3.7,null,null,"Κ10","ΑΝΔ","w40",null,null,null,null,null,"ΑΓΟ ΦΙΛΙΠΠΙΑΔΑΣ",204,"Δ",null,"Θ' ΕΝΩΣΗ",null,"ΒΑΧΑΡΙΔΗΣ Γ",null,"Ε1S-12-33_64",0,null,"43120Ε3 3η (Ε)244Sκ12","2018-01-20","Ε3 3η (Ε)",244,"ΟΑ ΜΑΓΝΗΣΙΑΣ","S","κ12",9,3315,null,"Α12 Δ",13]
[12,7.0642843584451786E-4,1.6829662804435948E-4,null,null,"Ε4-14",0.5,1.2,1.8,2.5,3.7,6.2,7.5,null,null,"Ανδ","ΓΥΝ","w45",null,null,null,"Παν",null,"ΑΓΣ ΜΥΛΩΝ Ο ΛΕΡΝΟΣ",258,"ΣΤ",null,"ΙΑ' ΕΝΩΣΗ",null,"ΒΟΥΡΟΥΚΟΣ Κ",null,"Ε1S-12-q",0,null,"43120Ε3 3η (Ε)244Sκ16","2018-01-20","Ε3 3η (Ε)",244,"ΟΑ ΜΑΓΝΗΣΙΑΣ","S","κ16",11,3316,null,"Α14 Δ",14]
[13,1.2364931975226805E-3,2.883644553756253E-3,null,null,"Ε4-16",1,2.5,4,5,7.5,12.5,15,null,null,"Γυν","-","w50",null,null,null,"Ε1",null,"ΑΕ ΒΟΥΛΑΣ",496,"ΙΑ",null,"ΣΒΑΕ",null,"ΓΑΛΑΤΙΔΗΣ Α",null,"Ε1S-12-q64",0,null,"43126Ε3 4η (Η)336Sα12","2018-01-26","Ε3 4η (Η)",336,"ΑΟΑ ΦΙΛΟΘΕΗΣ","S","α12",5,3317,null,"Α16 Δ",15]
[14,7.7187024665542365E-4,1.0275728218524381E-3,null,null,"Παν-12",5,10,15,20,30,50,60,null,null,null,"-","w55",null,null,null,"Ε2",null,"ΑΕ ΚΑΛΑΒΡΥΤΩΝ",259,"ΣΤ",null,"ITF & ΣΒΑΕ",null,"ΓΕΡΑΡΔΟΣ Γ",null,"Ε1S-12-q128",0,null,"43126Ε3 4η (Η)336Sκ12","2018-01-26","Ε3 4η (Η)",336,"ΑΟΑ ΦΙΛΟΘΕΗΣ","S","κ12",9,3318,null,"Α18 Δ",16]
[15,2.6877135300272235E-3,4.4327713168524057E-3,null,null,"Παν-14",10,20,30,40,60,100,120,null,null,null,"-","-",null,null,null,"Ε3",null,"ΑΕ ΠΟΡΤΟ ΡΑΦΤΗ",313,"Η",null,"INTERSPORT",null,"ΓΕΩΡΓΑΚΗΣ Κ",null,"Ε1S-12-q256",0,null,"43126Ε3 4η (Η)336Sα14","2018-01-26","Ε3 4η (Η)",336,"ΑΟΑ ΦΙΛΟΘΕΗΣ","S","α14",6,3319,null,"Κ12 Δ",17]
[16,4.1891882573248497E-3,6.622421487342997E-5,null,null,"Παν-16",20,40,60,80,120,200,240,null,null,null,null,null,null,null,null,"Ε4",null,"ΑΕΚ ΤΡΙΠΟΛΗΣ",260,"ΣΤ",null,null,null,"ΓΕΩΡΓΑΡΑ Ε",null,"Ε1S-12-wo",0,null,"43126Ε3 4η (Η)336Sκ14","2018-01-26","Ε3 4η (Η)",336,"ΑΟΑ ΦΙΛΟΘΕΗΣ","S","κ14",10,3320,null,"Κ14 Δ",18]
[null,null,null,null,null,"Παν-18",25,50,75,100,150,250,300,null,null,null,null,null,null,null,null,null,null,"ΑΕΣΑ Φ ΚΟΥΡΟΣ",478,"Η",null,null,null,"ΓΕΩΡΓΑΤΗΣ Ι",null,"Ε1D-12-1st",7.5,null,"43126Ε3 4η (Η)336Sκ16","2018-01-26","Ε3 4η (Η)",336,"ΑΟΑ ΦΙΛΟΘΕΗΣ","S","κ16",11,3321,null,"Κ16 Δ",19]
[null,null,null,null,null,null,null,null,null,null,null,null,null,null,null,null,null,null,null,null,null,"G1",null,"ΑΕΤ ΝΙΚΗ ΠΑΤΡΩΝ",261,"ΣΤ",null,null,null,"ΓΕΩΡΓΙΑΔΗΣ Σ",null,"Ε1D-12-2nd",6.5,null,"43126Ε3 4η (Η)336Sα16","2018-01-26","Ε3 4η (Η)",336,"ΑΟΑ ΦΙΛΟΘΕΗΣ","S","α16",7,3322,null,"Κ18 Δ",20]
[null,null,null,null,null,null,"q256","q128","q64","q32","q16","q8",null,null,null,null,null,null,null,null,null,"G2",null,"ΑΘΛ ΑΚΑΔ ΙΩΑΝΝΙΝΩΝ",205,"Δ",null,null,null,"ΓΙΑΝΝΟΥΛΟΠΟΥΛΟΥ Α",null,"Ε1D-12-3_4",4,null,"43141Ε3 6η (Δ)217Sα14","2018-02-10","Ε3 6η (Δ)",217,"ΟΑ ΑΡΤΑΣ","S","α14",6,3323,null,"Μ12 Δ",21]
[null,null,null,null,null,"Ε1-12",null,null,null,1,2,2,null,null,null,null,null,null,null,null,null,"G3",null,"ΑΘΛ ΚΕΝΤΡΟ ΑΝΤΙΣΦ ΛΑΜΙΑΣ",223,"Ε",null,null,null,"ΓΙΑΤΣΟΣ Β",null,"Ε1D-12-5_8",2.5,null,"43141Ε3 6η (Δ)217Sκ14","2018-02-10","Ε3 6η (Δ)",217,"ΟΑ ΑΡΤΑΣ","S","κ14",10,3324,null,"Μ14 Δ",22]
[null,null,null,null,null,"Ε1-14",null,null,null,2,4,4,null,null,null,null,null,null,null,null,null,"G4",null,"ΑΙΟΛΟΣ ΑΛ ΙΛΙΟΥ",367,"Θ",null,null,null,"ΓΙΩΓΙΑ Π",null,"Ε1D-12-9_16",2,null,"43119Ε3 3η (Θ)374Sα12","2018-01-19","Ε3 3η (Θ)",374,"ΑΟΑ ΧΑΪΔΑΡΙΟΥ","S","α12",5,3325,null,"Μ16 Δ",23]
[null,null,null,null,null,"Ε1-16",null,null,null,4,8,8,null,null,null,null,null,null,null,null,null,"G5",null,"ΑΚ ΖΩΓΡΑΦΟΥ",410,"ΙΑ",null,null,null,"ΓΚΟΓΚΟΥ Κ",null,"Ε1D-12-17_32",0,null,"43119Ε3 3η (Θ)374Sκ12","2018-01-19","Ε3 3η (Θ)",374,"ΑΟΑ ΧΑΪΔΑΡΙΟΥ","S","κ12",9,3326,null,"Μ18 Δ",24]
[null,null,null,null,null,"Ε1-18",null,null,null,5,10,10,null,null,null,null,null,null,null,null,null,null,null,"ΑΚΑ Α ΠΑΝΤΑΛΚΗΣ",487,"Θ",null,null,null,"ΓΚΟΥΝΤΑΝΗ Γ",null,"Ε1D-12-wo",0,null,"43119Ε3 3η (Θ)374Sα16","2018-01-19","Ε3 3η (Θ)",374,"ΑΟΑ ΧΑΪΔΑΡΙΟΥ","S","α16",7,3327,null,"ΑΝΔ",25]
[null,null,null,null,null,"Ε2-12",null,null,null,0.5,1,1,null,null,null,null,null,null,null,null,null,null,null,"ΑΚΑ ΜΑΡΑΘΩΝΑ",315,"Η",null,null,null,"ΔΑΜΙΑΝΟΥ Α",null,"Ε1S-14-1st",60,null,"43119Ε3 3η (Θ)374Sκ16","2018-01-19","Ε3 3η (Θ)",374,"ΑΟΑ ΧΑΪΔΑΡΙΟΥ","S","κ16",11,3328,null,"ΓΥΝ",26]
[null,null,null,null,null,"Ε2-14",null,null,null,1,2,2,null,null,null,null,null,null,null,null,null,null,null,"ΑΚΑΔ ΑΝΤΙΣΦ ΙΩΑΝΝΙΝΩΝ",206,"Δ",null,null,null,"ΔΕΡΜΙΤΖΑΚΗ Ε",null,"Ε1S-14-2nd",50,null,"43126Ε3 4η (Θ)374Sα14","2018-01-26","Ε3 4η (Θ)",374,"ΑΟΑ ΧΑΪΔΑΡΙΟΥ","S","α14",6,3329,null,"ΑΝΔ Δ",27]
[null,null,null,null,null,"Ε2-16",null,null,null,2,4,4,null,null,null,"Ναι",null,null,null,null,null,null,null,"ΑΚΑΔ ΑΝΤΙΣΦ ΣΕΡΡΩΝ 2008",101,"Α",null,null,null,"ΔΗΜΗΤΡΙΟΥ Ε",null,"Ε1S-14-3_4",30,null,"43126Ε3 4η (Θ)374Sκ14","2018-01-26","Ε3 4η (Θ)",374,"ΑΟΑ ΧΑΪΔΑΡΙΟΥ","S","κ14",10,3330,null,"ΓΥΝ Δ",28]
[null,null,null,null,null,"Ε3-12",null,null,null,null,null,null,null,null,null,"Όχι",null,null,null,null,null,null,null,"ΑΚΑΔ ΑΝΤΙΣΦ ΧΑΝΙΩΝ",298,"Ζ",null,null,null,"ΔΡΑΓΟΥΜΗΣ Π",null,"Ε1S-14-5_8",20,null,"43127Ε3 4η (Α)107Sα12","2018-01-27","Ε3 4η (Α)",107,"ΑΟΑ Ν ΠΕΡΑΜΟΥ ΤΙΤΑΝΕΣ","S","α12",5,3331,null,"ΜΙΚΤ Α/Γ",29]
[null,null,null,null,null,"Ε3-14",null,null,null,null,null,null,null,null,null,null,null,null,null,null,null,null,null,"ΑΜΕΣ Ν ΕΡΥΘΡΑΙΑΣ",316,"Η",null,null,null,"ΘΕΟΔΩΡΟΠΟΥΛΟΥ Α",null,"Ε1S-14-9_16",15,null,"43127Ε3 4η (Α)107Sκ12","2018-01-27","Ε3 4η (Α)",107,"ΑΟΑ Ν ΠΕΡΑΜΟΥ ΤΙΤΑΝΕΣ","S","κ12",9,3332]
[null,null,null,null,null,"Ε3-16",null,null,null,null,null,null,null,null,null,"από values",null,null,null,null,null,null,null,"ΑΜΣ ΠΑΝΟΡΑΜΑΤΟΣ",458,"Β",null,null,null,"ΙΩΑΝΝΙΔΗΣ Ι",null,"Ε1S-14-17_32",2,null,"43127Ε3 4η (Α)108Sα14","2018-01-27","Ε3 4η (Α)",108,"ΑΟΑ ΠΡΩΤΑΘΛ ΚΑΒΑΛΑΣ","S","α14",6,3333]
[null,null,null,null,null,"Ε4-12",null,null,null,null,null,null,null,null,null,null,null,null,null,null,null,null,null,"ΑΝΟ ΓΛΥΦΑΔΑΣ",411,"ΙΑ",null,null,null,"ΚΑΔΟΓΛΟΥ Κ",null,"Ε1S-14-q8",4,null,"43127Ε3 4η (Α)108Sκ14","2018-01-27","Ε3 4η (Α)",108,"ΑΟΑ ΠΡΩΤΑΘΛ ΚΑΒΑΛΑΣ","S","κ14",10,3334]
[null,null,null,null,null,"Ε4-14",null,null,null,null,null,null,null,null,null,"alt",null,null,null,null,null,null,null,"ΑΝΣ ΕΛΛΗΝΙΚΙΩΤΩΝ",412,"ΙΑ",null,null,null,"ΚΑΖΑΝΗΣ Γ",null,"Ε1S-14-q16",4,null,"43127Ε3 4η (Α)108Sα16","2018-01-27","Ε3 4η (Α)",108,"ΑΟΑ ΠΡΩΤΑΘΛ ΚΑΒΑΛΑΣ","S","α16",7,3335]
[null,null,null,null,null,"Ε4-16",null,null,null,null,null,null,null,null,null,"Q",null,null,null,null,null,null,null,"ΑΟ ΑΘΗΝΑΪΚΗ",488,"Θ",null,null,null,"ΚΑΚΚΑΛΟΣ Γ",null,"Ε1S-14-q8/2",2,null,"43127Ε3 4η (Α)108Sκ16","2018-01-27","Ε3 4η (Α)",108,"ΑΟΑ ΠΡΩΤΑΘΛ ΚΑΒΑΛΑΣ","S","κ16",11,3336]
[null,null,null,null,null,"Παν-12",0.5,1,1.5,2.5,2.5,null,null,null,null,"LL",null,null,null,null,null,null,null,"ΑΟ ΑΙΓΙΟΥ ΜΟΡΕΑΣ",262,"ΣΤ",null,null,null,"ΚΑΛΟΓΡΗ Σ",null,"Ε1S-14-q32",2,null,"43126Ε3 4η (ΙΑ)442Sα12","2018-01-26","Ε3 4η (ΙΑ)",442,"ΑΟΑ ΚΑΒΟΥΡΙΟΥ","S","α12",5,3337]
[null,null,null,null,null,"Παν-14",1,2,3,5,5,null,null,null,null,"DQ",null,null,null,null,null,null,null,"ΑΟ ΑΛΦΕΙΟΣ ΕΠΙΤΑΛΙΟΥ",501,"ΣΤ",null,null,null,"ΚΑΜΙΛΗ Α",null,"Ε1S-14-33_64",0,null,"43126Ε3 4η (ΙΑ)442Sκ12","2018-01-26","Ε3 4η (ΙΑ)",442,"ΑΟΑ ΚΑΒΟΥΡΙΟΥ","S","κ12",9,3338]
[null,null,null,null,null,"Παν-16",2,4,6,10,10,null,null,null,null,null,null,null,null,null,null,null,null,"ΑΟ ΑΣΤΕΡΑΣ ΗΛΙΟΥΠΟΛΗΣ",497,"ΙΑ",null,null,null,"ΚΑΡΑΜΗΤΡΟΣ Κ",null,"Ε1S-14-q",0,null,"43126Ε3 4η (ΙΑ)442Sα14","2018-01-26","Ε3 4η (ΙΑ)",442,"ΑΟΑ ΚΑΒΟΥΡΙΟΥ","S","α14",6,3339]
[null,null,null,null,null,"Παν-18",2.5,5,7.5,12.5,12.5,null,null,null,null,null,null,null,null,null,null,null,null,"ΑΟ ΑΤΛΑΝΤΙΣ",317,"Η",null,null,null,"ΚΑΡΑΤΑΣΟΣ Κ",null,"Ε1S-14-q64",0,null,"43126Ε3 4η (ΙΑ)442Sκ14","2018-01-26","Ε3 4η (ΙΑ)",442,"ΑΟΑ ΚΑΒΟΥΡΙΟΥ","S","κ14",10,3340]
[null,null,null,null,null,null,null,null,null,null,null,null,null,null,null,null,null,null,null,null,null,null,null,"ΑΟ ΒΑΡΗΣ ΑΝΑΓΥΡΟΥΣ",318,"Η",null,null,null,"ΚΑΦΕΤΖΟΠΟΥΛΟΣ Π",null,"Ε1S-14-q128",0,null,"43126Ε3 4η (ΙΑ)442Sα16","2018-01-26","Ε3 4η (ΙΑ)",442,"ΑΟΑ ΚΑΒΟΥΡΙΟΥ","S","α16",7,3341]
[null,null,null,null,null,null,null,null,null,null,null,null,null,null,null,null,null,null,null,null,null,null,null,"ΑΟ ΒΟΥΛΙΑΓΜΕΝΗΣ",415,"ΙΑ",null,null,null,"ΚΑΦΦΕ Μ",null,"Ε1S-14-q256",0,null,"43126Ε3 4η (ΙΑ)442Sκ16","2018-01-26","Ε3 4η (ΙΑ)",442,"ΑΟΑ ΚΑΒΟΥΡΙΟΥ","S","κ16",11,3342]
[null,null,null,null,null,null,null,null,null,null,null,null,null,null,null,null,null,null,null,null,null,null,null,"ΑΟ ΓΛΥΦΑΔΑΣ ΦΙΛΙΑ 2000",416,"ΙΑ",null,null,null,"ΚΙΜΟΓΛΟΥ Ε",null,"Ε1S-14-wo",0,null,"43127Ε3 4η (Ε)244Sα14","2018-01-27","Ε3 4η (Ε)",244,"ΟΑ ΜΑΓΝΗΣΙΑΣ","S","α14",6,3343]
[null,null,null,null,null,null,null,null,null,null,null,null,null,null,null,null,null,null,null,null,null,null,null,"ΑΟ ΔΑΣΟΣ ΧΑΪΔΑΡΙΟΥ",489,"Θ",null,null,null,"ΚΟΣΚΙΝΑΣ Ι",null,"Ε1D-14-1st",15,null,"43127Ε3 4η (Ε)244Sκ14","2018-01-27","Ε3 4η (Ε)",244,"ΟΑ ΜΑΓΝΗΣΙΑΣ","S","κ14",10,3344]
[null,null,null,null,null,null,null,null,null,null,null,null,null,null,null,null,null,null,null,null,null,null,null,"ΑΟ ΔΙΑΣ ΠΟΛΙΧΝΗΣ",126,"Β",null,null,null,"ΚΟΤΣΑΡΙΝΗΣ Β",null,"Ε1D-14-2nd",13,null,"43127Ε3 4η (Ζ)309Sα12","2018-01-27","Ε3 4η (Ζ)",309,"ΟΑ ΣΟΥΔΑΣ","S","α12",5,3345]
[null,null,null,null,null,null,null,null,null,null,null,null,null,null,null,null,null,null,null,null,null,null,null,"ΑΟ ΔΙΛΟΦΟ ΒΑΡΗΣ",319,"Η",null,null,null,"ΚΟΤΣΩΝΗΣ Ε",null,"Ε1D-14-3_4",8,null,"43127Ε3 4η (Ζ)309Sκ12","2018-01-27","Ε3 4η (Ζ)",309,"ΟΑ ΣΟΥΔΑΣ","S","κ12",9,3346]
[null,null,null,null,null,null,null,null,null,null,null,null,null,null,null,null,null,null,null,null,null,null,null,"ΑΟ ΕΜΙΛΕΟΝ",207,"Δ",null,null,null,"ΚΟΥΚΟΥΒΙΤΑΚΗ Γ",null,"Ε1D-14-5_8",5,null,"43127Ε3 4η (Ζ)298Sα14","2018-01-27","Ε3 4η (Ζ)",298,"ΑΚΑΔ ΑΝΤΙΣΦ ΧΑΝΙΩΝ","S","α14",6,3347]
[null,null,null,null,null,null,null,null,null,null,null,null,null,null,null,null,null,null,null,null,null,null,null,"ΑΟ ΘΕΡΜΗΣ ΘΕΡΜΑΙΟΣ",127,"Β",null,null,null,"ΚΟΥΚΟΥΝΙΑΣ Χ",null,"Ε1D-14-9_16",4,null,"43127Ε3 4η (Ζ)298Sκ14","2018-01-27","Ε3 4η (Ζ)",298,"ΑΚΑΔ ΑΝΤΙΣΦ ΧΑΝΙΩΝ","S","κ14",10,3348]
[null,null,null,null,null,null,null,null,null,null,null,null,null,null,null,null,null,null,null,null,null,null,null,"ΑΟ ΚΑΒΑΛΑΣ ΜΑΚΕΔΟΝΙΚΟΣ",102,"Α",null,null,null,"ΚΟΥΛΟΥΡΗΣ Π",null,"Ε1D-14-17_32",0,null,"43127Ε3 4η (Ζ)310Sα16","2018-01-27","Ε3 4η (Ζ)",310,"ΟΑ ΧΑΝΙΩΝ","S","α16",7,3349]
[null,null,null,null,null,null,null,null,null,null,null,null,null,null,null,null,null,null,null,null,null,null,null,"ΑΟ ΚΑΛΛΙΤΕΧΝΟΥΠΟΛΗΣ",320,"Η",null,null,null,"ΚΟΥΜΑΝΤΑΣ Κ",null,"Ε1D-14-wo",0,null,"43127Ε3 4η (Ζ)310Sκ16","2018-01-27","Ε3 4η (Ζ)",310,"ΟΑ ΧΑΝΙΩΝ","S","κ16",11,3350]
[null,null,null,null,null,null,null,null,null,null,null,null,null,null,null,null,null,null,null,null,null,null,null,"ΑΟ ΚΗΦΙΣΙΑΣ",321,"Η",null,null,null,"ΚΟΥΤΣΟΛΑΜΠΡΟΥ Α",null,"Ε1S-16-1st",120,null,"43127Ε3 4η (ΣΤ)261Sα12","2018-01-27","Ε3 4η (ΣΤ)",261,"ΑΕΤ ΝΙΚΗ ΠΑΤΡΩΝ","S","α12",5,3351]
[null,null,null,null,null,null,null,null,null,null,null,null,null,null,null,null,null,null,null,null,null,null,null,"ΑΟ ΚΡΑΝΙΔΙΟΥ",264,"ΣΤ",null,null,null,"ΚΡΑΝΙΩΤΗ Σ",null,"Ε1S-16-2nd",100,null,"43127Ε3 4η (ΣΤ)261Sα16","2018-01-27","Ε3 4η (ΣΤ)",261,"ΑΕΤ ΝΙΚΗ ΠΑΤΡΩΝ","S","α16",7,3380]
[null,null,null,null,null,null,null,null,null,null,null,null,null,null,null,null,null,null,null,null,null,null,null,"ΑΟ ΚΥΔΩΝΙΑΣ",299,"Ζ",null,null,null,"ΚΩΝΣΤΑΝΤΙΝΟΥ Κ",null,"Ε1S-16-3_4",60,null,"43127Ε3 4η (ΣΤ)261Sκ12","2018-01-27","Ε3 4η (ΣΤ)",261,"ΑΕΤ ΝΙΚΗ ΠΑΤΡΩΝ","S","κ12",9,3381]
[null,null,null,null,null,null,null,null,null,null,null,null,null,null,null,null,null,null,null,null,null,null,null,"ΑΟ ΛΑΓΟΝΗΣΙΟΥ",322,"Η",null,null,null,"ΚΩΣΤΙΔΟΥ Χ",null,"Ε1S-16-5_8",40,null,"43127Ε3 4η (ΣΤ)261Sκ16","2018-01-27","Ε3 4η (ΣΤ)",261,"ΑΕΤ ΝΙΚΗ ΠΑΤΡΩΝ","S","κ16",11,3382]
[null,null,null,null,null,null,null,null,null,null,null,null,null,null,null,null,null,null,null,null,null,null,null,"ΑΟ ΛΑΤΩ ΑΓ ΝΙΚΟΛΑΟΥ",300,"Ζ",null,null,null,"ΛΑΖΑΡΙΔΗΣ Ι",null,"Ε1S-16-9_16",30,null,"43127Ε3 4η (Β)124Sα14","2018-01-27","Ε3 4η (Β)",124,"ΑΑ ΑΛΜΠΑΤΡΟΣ","S","α14",6,3352]
[null,null,null,null,null,null,null,null,null,null,null,null,null,null,null,null,null,null,null,null,null,null,null,"ΑΟ ΛΙΒΑΔΕΙΩΝ ΒΟΥΡΕΙΟΣ",323,"Η",null,null,null,"ΛΑΛΟΥΜΗΣ Λ",null,"Ε1S-16-17_32",4,null,"43127Ε3 4η (Β)124Sκ14","2018-01-27","Ε3 4η (Β)",124,"ΑΑ ΑΛΜΠΑΤΡΟΣ","S","κ14",10,3353]
[null,null,null,null,null,null,null,null,null,null,null,null,null,null,null,null,null,null,null,null,null,null,null,"ΑΟ ΜΑΡΚΟΠΟΥΛΟΥ",479,"Η",null,null,null,"ΛΑΜΠΡΟΥ Μ",null,"Ε1S-16-q8",8,null,"43127Ε3 4η (Γ)171Sα14","2018-01-27","Ε3 4η (Γ)",171,"ΑΟΑ ΚΑΤΕΡΙΝΗΣ","S","α14",6,3354]
[null,null,null,null,null,null,null,null,null,null,null,null,null,null,null,null,null,null,null,null,null,null,null,"ΑΟ ΜΕΓΑΣ ΑΛΕΞΑΝΔΡΟΣ",418,"ΙΑ",null,null,null,"ΛΙΓΓΟΣ Ι",null,"Ε1S-16-q16",8,null,"43127Ε3 4η (Γ)171Sκ14","2018-01-27","Ε3 4η (Γ)",171,"ΑΟΑ ΚΑΤΕΡΙΝΗΣ","S","κ14",10,3355]
[null,null,null,null,null,null,null,null,null,null,null,null,null,null,null,null,null,null,null,null,null,null,null,"ΑΟ ΜΟΡΤΕΡΟΥ",480,"Η",null,null,null,"ΜΕΛΛΙΟΣ Α",null,"Ε1S-16-q8/2",4,null,"43133Ε2 5η (ΣΤ)294Sα12","2018-02-02","Ε2 5η (ΣΤ)",294,"ΣΑ ΤΡΙΠΟΛΗΣ","S","α12",5,3362]
[null,null,null,null,null,null,null,null,null,null,null,null,null,null,null,null,null,null,null,null,null,null,null,"ΑΟ ΜΥΤΙΛΗΝΗΣ",371,"Θ",null,null,null,"ΜΙΧΑΗΛΙΔΗΣ Σ",null,"Ε1S-16-q32",4,null,"43133Ε2 5η (ΣΤ)294Sκ12","2018-02-02","Ε2 5η (ΣΤ)",294,"ΣΑ ΤΡΙΠΟΛΗΣ","S","κ12",9,3363]
[null,null,null,null,null,null,null,null,null,null,null,null,null,null,null,null,null,null,null,null,null,null,null,"ΑΟ Ν ΣΜΥΡΝΗΣ ΜΙΛΩΝ",419,"ΙΑ",null,null,null,"ΜΟΥΡΒΑΤΗΣ Π",null,"Ε1S-16-33_64",0,null,"43133Ε2 5η (ΣΤ)294Sα16","2018-02-02","Ε2 5η (ΣΤ)",294,"ΣΑ ΤΡΙΠΟΛΗΣ","S","α16",7,3364]
[null,null,null,null,null,null,null,null,null,null,null,null,null,null,null,null,null,null,null,null,null,null,null,"ΑΟ ΝΕΟΥ ΦΑΛΗΡΟΥ",490,"Θ",null,null,null,"ΜΟΥΡΤΖΙΟΥ Ι",null,"Ε1S-16-q",0,null,"43133Ε2 5η (ΣΤ)294Sκ16","2018-02-02","Ε2 5η (ΣΤ)",294,"ΣΑ ΤΡΙΠΟΛΗΣ","S","κ16",11,3365]
[null,null,null,null,null,null,null,null,null,null,null,null,null,null,null,null,null,null,null,null,null,null,null,"ΑΟ ΝΦ ΑΤΤΑΛΟΣ",326,"Η",null,null,null,"ΜΠΑΛΑΦΑΣ Σ",null,"Ε1S-16-q64",0,null,"43133Ε2 5η (ΣΤ)270Sα14","2018-02-02","Ε2 5η (ΣΤ)",270,"ΑΡΚΑΔΙΚΟΣ ΟΑ ΑΤΛΑΣ","S","α14",6,3366]
[null,null,null,null,null,null,null,null,null,null,null,null,null,null,null,null,null,null,null,null,null,null,null,"ΑΟ ΟΛΥΜΠΙΑΔΑ ΒΥΡΩΝΑ",481,"Η",null,null,null,"ΜΠΑΡΚΑΣ Α",null,"Ε1S-16-q128",0,null,"43133Ε2 5η (ΣΤ)270Sκ14","2018-02-02","Ε2 5η (ΣΤ)",270,"ΑΡΚΑΔΙΚΟΣ ΟΑ ΑΤΛΑΣ","S","κ14",10,3367]
[null,null,null,null,null,null,null,null,null,null,null,null,null,null,null,null,null,null,null,null,null,null,null,"ΑΟ ΟΡΕΣΤΙΑΔΑΣ",103,"Α",null,null,null,"ΜΠΑΡΜΠΟΠΟΥΛΟΣ Κ",null,"Ε1S-16-q256",0,null,"43133Ε2 5η (Ζ)305Sα12","2018-02-02","Ε2 5η (Ζ)",305,"ΗΡΑΚΛΕΙΟ ΟΑΑ","S","α12",5,3368]
[null,null,null,null,null,null,null,null,null,null,null,null,null,null,null,null,null,null,null,null,null,null,null,"ΑΟ Π ΦΑΛΗΡΟΥ",420,"ΙΑ",null,null,null,"ΜΠΑΤΣΙΟΣ Κ",null,"Ε1S-16-wo",0,null,"43133Ε2 5η (Ζ)305Sκ12","2018-02-02","Ε2 5η (Ζ)",305,"ΗΡΑΚΛΕΙΟ ΟΑΑ","S","κ12",9,3369]
[null,null,null,null,null,null,null,null,null,null,null,null,null,null,null,null,null,null,null,null,null,null,null,"ΑΟ ΠΑΡΑΔΕΙΣΟΣ ΑΜΑΡΟΥΣΙΟΥ",482,"Η",null,null,null,"ΝΙΚΗΦΟΡΑΚΗΣ Σ",null,"Ε1D-16-1st",30,null,"43133Ε2 5η (Ζ)305Sα14","2018-02-02","Ε2 5η (Ζ)",305,"ΗΡΑΚΛΕΙΟ ΟΑΑ","S","α14",6,3370]
[null,null,null,null,null,null,null,null,null,null,null,null,null,null,null,null,null,null,null,null,null,null,null,"ΑΟ ΠΑΡΓΑΣ",468,"Δ",null,null,null,"ΝΤΑΛΑΜΑΓΚΑ Β",null,"Ε1D-16-2nd",26,null,"43133Ε2 5η (Ζ)305Sκ14","2018-02-02","Ε2 5η (Ζ)",305,"ΗΡΑΚΛΕΙΟ ΟΑΑ","S","κ14",10,3371]
[null,null,null,null,null,null,null,null,null,null,null,null,null,null,null,null,null,null,null,null,null,null,null,"ΑΟ ΠΕΥΚΗΣ TIE BREAK",329,"Η",null,null,null,"ΝΤΙΝΟΠΟΥΛΟΣ Π",null,"Ε1D-16-3_4",16,null,"43133Ε2 5η (Ζ)305Sα16","2018-02-02","Ε2 5η (Ζ)",305,"ΗΡΑΚΛΕΙΟ ΟΑΑ","S","α16",7,3372]
[null,null,null,null,null,null,null,null,null,null,null,null,null,null,null,null,null,null,null,null,null,null,null,"ΑΟ ΠΟΣΕΙΔΩΝ ΛΟΥΤΡΑΚΙΟΥ",265,"ΣΤ",null,null,null,"ΟΥΛΑΣΟΓΛΟΥ Ν",null,"Ε1D-16-5_8",10,null,{"$f":"AJ67&AK67&AL67&AN67&AO67","v":"43133Ε2 5η (Ζ)305Sκ16"},"2018-02-02","Ε2 5η (Ζ)",305,"ΗΡΑΚΛΕΙΟ ΟΑΑ","S","κ16",11,3373]
[null,null,null,null,null,null,null,null,null,null,null,null,null,null,null,null,null,null,null,null,null,null,null,"ΑΟ ΣΙΚΥΩΝΟΣ ΚΙΑΤΟΥ",266,"ΣΤ",null,null,null,"ΟΥΝΑΝΙΔΟΥ Λ",null,"Ε1D-16-9_16",8,null,"43133Ε2 5η (Ζ)305Dα12","2018-02-02","Ε2 5η (Ζ)",305,"ΗΡΑΚΛΕΙΟ ΟΑΑ","D","α12",13,3403]
[null,null,null,null,null,null,null,null,null,null,null,null,null,null,null,null,null,null,null,null,null,null,null,"ΑΟ ΤΑΤΑΥΛΑ ΚΩΝΣΤ",421,"ΙΑ",null,null,null,"ΟΥΡΑΝΙΔΗΣ Φ",null,"Ε1D-16-17_32",0,null,"43133Ε2 5η (Ζ)305Dα14","2018-02-02","Ε2 5η (Ζ)",305,"ΗΡΑΚΛΕΙΟ ΟΑΑ","D","α14",14,3404]
[null,null,null,null,null,null,null,null,null,null,null,null,null,null,null,null,null,null,null,null,null,null,null,"ΑΟ ΤΑΤΟΪΟΥ",330,"Η",null,null,null,"ΠΑΛΑΙΣΤΗ Γ",null,"Ε1D-16-wo",0,null,"43133Ε2 5η (Ζ)305Dα16","2018-02-02","Ε2 5η (Ζ)",305,"ΗΡΑΚΛΕΙΟ ΟΑΑ","D","α16",15,3405]
[null,null,null,null,null,null,null,null,null,null,null,null,null,null,null,null,null,null,null,null,null,null,null,"ΑΟ ΤΕΡΨΙΘΕΑΣ ΓΛΥΦΑΔΑΣ",422,"ΙΑ",null,null,null,"ΠΑΛΑΙΣΤΗ Ν",null,"Ε1S-18-1st",150,null,"43133Ε2 5η (Ζ)305Dκ12","2018-02-02","Ε2 5η (Ζ)",305,"ΗΡΑΚΛΕΙΟ ΟΑΑ","D","κ12",17,3406]
[null,null,null,null,null,null,null,null,null,null,null,null,null,null,null,null,null,null,null,null,null,null,null,"ΑΟ ΦΙΛΙΠΠΟΣ ΠΟΛΥΔΡΟΣΟΥ",331,"Η",null,null,null,"ΠΑΛΑΙΣΤΗ Χ",null,"Ε1S-18-2nd",125,null,"43133Ε2 5η (Ζ)305Dκ14","2018-02-02","Ε2 5η (Ζ)",305,"ΗΡΑΚΛΕΙΟ ΟΑΑ","D","κ14",18,3407]
[null,null,null,null,null,null,null,null,null,null,null,null,null,null,null,null,null,null,null,null,null,null,null,"ΑΟ ΦΟΥΡΕΣΙ ΓΛ ΝΕΡΩΝ",483,"Η",null,null,null,"ΠΑΝΤΕΛΙΔΗΣ Σ",null,"Ε1S-18-3_4",75,null,"43133Ε2 5η (Ζ)305Dκ16","2018-02-02","Ε2 5η (Ζ)",305,"ΗΡΑΚΛΕΙΟ ΟΑΑ","D","κ16",19,3408]
[null,null,null,null,null,null,null,null,null,null,null,null,null,null,null,null,null,null,null,null,null,null,null,"ΑΟ ΧΡΥΣΟΥΠΟΛΗΣ",104,"Α",null,null,null,"ΠΑΠΑΒΑΣΙΛΕΙΟΥ Χ",null,"Ε1S-18-5_8",50,null,"43133Ε2 5η (Ε)256Sα12","2018-02-02","Ε2 5η (Ε)",256,"ΦΘΙΩΤΙΚΟΣ ΟΑ","S","α12",5,3374]
[null,null,null,null,null,null,null,null,null,null,null,null,null,null,null,null,null,null,null,null,null,null,null,"ΑΟΑ ΑΙΓΑΛΕΩ 92",373,"Θ",null,null,null,"ΠΑΠΑΝΙΚΟΛΑΟΥ Γ",null,"Ε1S-18-9_16",37.5,null,"43133Ε2 5η (Ε)256Sκ12","2018-02-02","Ε2 5η (Ε)",256,"ΦΘΙΩΤΙΚΟΣ ΟΑ","S","κ12",9,3375]
[null,null,null,null,null,null,null,null,null,null,null,null,null,null,null,null,null,null,null,null,null,null,null,"ΑΟΑ ΑΛΕΞΑΝΔΡΟΣ Β",333,"Η",null,null,null,"ΠΑΠΑΧΡΗΣΤΟΥ Δ",null,"Ε1S-18-17_32",5,null,"43133Ε2 5η (Ε)256Dα12","2018-02-02","Ε2 5η (Ε)",256,"ΦΘΙΩΤΙΚΟΣ ΟΑ","D","α12",13,3413]
[null,null,null,null,null,null,null,null,null,null,null,null,null,null,null,null,null,null,null,null,null,null,null,"ΑΟΑ ΑΜΠΕΛ ΜΕΝΕΜΕΝΗΣ",128,"Β",null,null,null,"ΠΑΠΠΑΣ Α",null,"Ε1S-18-q8",10,null,"43133Ε2 5η (Ε)256Dκ12","2018-02-02","Ε2 5η (Ε)",256,"ΦΘΙΩΤΙΚΟΣ ΟΑ","D","κ12",17,3414]
[null,null,null,null,null,null,null,null,null,null,null,null,null,null,null,null,null,null,null,null,null,null,null,"ΑΟΑ ΑΡΓΥΡΟΥΠΟΛΗΣ",423,"ΙΑ",null,null,null,"ΠΑΠΠΑΣ Π",null,"Ε1S-18-q16",10,null,"43133Ε2 5η (Ε)244Sα14","2018-02-02","Ε2 5η (Ε)",244,"ΟΑ ΜΑΓΝΗΣΙΑΣ","S","α14",6,3376]
[null,null,null,null,null,null,null,null,null,null,null,null,null,null,null,null,null,null,null,null,null,null,null,"ΑΟΑ ΑΣΤΕΡΑΣ ΘΕΣ",129,"Β",null,null,null,"ΠΑΤΡΙΚΙΟΣ Ν",null,"Ε1S-18-q8/2",5,null,"43133Ε2 5η (Ε)244Sκ14","2018-02-02","Ε2 5η (Ε)",244,"ΟΑ ΜΑΓΝΗΣΙΑΣ","S","κ14",10,3377]
[null,null,null,null,null,null,null,null,null,null,null,null,null,null,null,null,null,null,null,null,null,null,null,"ΑΟΑ ΑΤΤΙΚΟΣ ΗΛΙΟΣ",334,"Η",null,null,null,"ΠΑΤΣΟΥΡΑΚΟΥ Δ",null,"Ε1S-18-q32",5,null,"43133Ε2 5η (Ε)244Sα16","2018-02-02","Ε2 5η (Ε)",244,"ΟΑ ΜΑΓΝΗΣΙΑΣ","S","α16",7,3378]
[null,null,null,null,null,null,null,null,null,null,null,null,null,null,null,null,null,null,null,null,null,null,null,"ΑΟΑ ΔΗΜΟΥ ΕΛΕΥΘΕΡΩΝ",105,"Α",null,null,null,"ΠΕΡΝΑΓΚΙΔΗ Γ",null,"Ε1S-18-33_64",0,null,"43133Ε2 5η (Ε)244Sκ16","2018-02-02","Ε2 5η (Ε)",244,"ΟΑ ΜΑΓΝΗΣΙΑΣ","S","κ16",11,3379]
[null,null,null,null,null,null,null,null,null,null,null,null,null,null,null,null,null,null,null,null,null,null,null,"ΑΟΑ ΕΛΕΥΣΙΝΑΣ",441,"Θ",null,null,null,"ΠΟΝΤΙΔΑΣ Α",null,"Ε1S-18-q",0,null,"43133Ε2 5η (Ε)244Dα14","2018-02-02","Ε2 5η (Ε)",244,"ΟΑ ΜΑΓΝΗΣΙΑΣ","D","α14",14,3409]
[null,null,null,null,null,null,null,null,null,null,null,null,null,null,null,null,null,null,null,null,null,null,null,"ΑΟΑ ΗΛΙΟΥΠΟΛΗΣ",424,"ΙΑ",null,null,null,"ΠΡΑΣΙΝΟΣ Β",null,"Ε1S-18-q64",0,null,"43133Ε2 5η (Ε)244Dα16","2018-02-02","Ε2 5η (Ε)",244,"ΟΑ ΜΑΓΝΗΣΙΑΣ","D","α16",15,3410]
[null,null,null,null,null,null,null,null,null,null,null,null,null,null,null,null,null,null,null,null,null,null,null,"ΑΟΑ ΚΑΒΑΛΑΣ",106,"Α",null,null,null,"ΠΡΙΤΣΚΑΣ Π",null,"Ε1S-18-q128",0,null,"43133Ε2 5η (Ε)244Dκ14","2018-02-02","Ε2 5η (Ε)",244,"ΟΑ ΜΑΓΝΗΣΙΑΣ","D","κ14",18,3411]
[null,null,null,null,null,null,null,null,null,null,null,null,null,null,null,null,null,null,null,null,null,null,null,"ΑΟΑ ΚΑΒΟΥΡΙΟΥ",442,"ΙΑ",null,null,null,"ΣΑΚΚΑΣ Β",null,"Ε1S-18-q256",0,null,"43133Ε2 5η (Ε)244Dκ16","2018-02-02","Ε2 5η (Ε)",244,"ΟΑ ΜΑΓΝΗΣΙΑΣ","D","κ16",19,3412]
[null,null,null,null,null,null,null,null,null,null,null,null,null,null,null,null,null,null,null,null,null,null,null,"ΑΟΑ ΚΑΙΣΑΡΙΑΝΗΣ",390,"Θ",null,null,null,"ΣΑΜΑΡΑ Ε",null,"Ε1S-18-wo",0,null,"43120Ε3 3η (Γ)192Sα12","2018-01-20","Ε3 3η (Γ)",192,"ΟΑ ΛΙΤΟΧΩΡΟΥ","S","α12",5,3383]
[null,null,null,null,null,null,null,null,null,null,null,null,null,null,null,null,null,null,null,null,null,null,null,"ΑΟΑ ΚΑΣΤΟΡΙΑΣ",463,"Γ",null,null,null,"ΣΑΡΑΤΖΙΔΗΣ Δ",null,"Ε1D-18-1st",37.5,null,"43120Ε3 3η (Γ)192Sκ12","2018-01-20","Ε3 3η (Γ)",192,"ΟΑ ΛΙΤΟΧΩΡΟΥ","S","κ12",9,3384]
[null,null,null,null,null,null,null,null,null,null,null,null,null,null,null,null,null,null,null,null,null,null,null,"ΑΟΑ ΚΑΤΕΡΙΝΗΣ",171,"Γ",null,null,null,"ΣΑΧΠΑΤΖΙΔΗΣ Γ",null,"Ε1D-18-2nd",32.5,null,"43120Ε3 3η (Γ)171Sα16","2018-01-20","Ε3 3η (Γ)",171,"ΑΟΑ ΚΑΤΕΡΙΝΗΣ","S","α16",7,3385]
[null,null,null,null,null,null,null,null,null,null,null,null,null,null,null,null,null,null,null,null,null,null,null,"ΑΟΑ ΚΟΖΑΝΗΣ",464,"Γ",null,null,null,"ΣΙΑΠΑΤΗΣ Γ",null,"Ε1D-18-3_4",20,null,"43120Ε3 3η (Γ)171Sκ16","2018-01-20","Ε3 3η (Γ)",171,"ΑΟΑ ΚΑΤΕΡΙΝΗΣ","S","κ16",11,3386]
[null,null,null,null,null,null,null,null,null,null,null,null,null,null,null,null,null,null,null,null,null,null,null,"ΑΟΑ ΛΕ ΡΑΚΕΤ",130,"Β",null,null,null,"ΣΙΟΝΤΗ Η",null,"Ε1D-18-5_8",12.5,null,"43140Ε3 6η (Η)363Sα12","2018-02-09","Ε3 6η (Η)",363,"ΣΑ ΡΑΦΗΝΑΣ","S","α12",5,3387]
[null,null,null,null,null,null,null,null,null,null,null,null,null,null,null,null,null,null,null,null,null,null,null,"ΑΟΑ ΜΕΓΑΛΟΠΟΛΗΣ",267,"ΣΤ",null,null,null,"ΣΙΡΠΟΣ Π",null,"Ε1D-18-9_16",10,null,"43140Ε3 6η (Η)363Sκ12","2018-02-09","Ε3 6η (Η)",363,"ΣΑ ΡΑΦΗΝΑΣ","S","κ12",9,3388]
[null,null,null,null,null,null,null,null,null,null,null,null,null,null,null,null,null,null,null,null,null,null,null,"ΑΟΑ Ν ΠΕΡΑΜΟΥ ΤΙΤΑΝΕΣ",107,"Α",null,null,null,"ΣΚΟΥΡΤΙΑΣ Ε",null,"Ε1D-18-wo",0,null,"43140Ε3 6η (Η)363Sα16","2018-02-09","Ε3 6η (Η)",363,"ΣΑ ΡΑΦΗΝΑΣ","S","α16",7,3389]
[null,null,null,null,null,null,null,null,null,null,null,null,null,null,null,null,null,null,null,null,null,null,null,"ΑΟΑ ΠΑΠΑΓΟΥ",425,"ΙΑ",null,null,null,"ΣΠΑΘΗΣ Μ",null,"Ε1D-18-17_32",0,null,"43140Ε3 6η (Η)363Sκ16","2018-02-09","Ε3 6η (Η)",363,"ΣΑ ΡΑΦΗΝΑΣ","S","κ16",11,3390]
[null,null,null,null,null,null,null,null,null,null,null,null,null,null,null,null,null,null,null,null,null,null,null,"ΑΟΑ ΠΑΤΡΩΝ",268,"ΣΤ",null,null,null,"ΣΤΑΜΑΤΙΑΔΗΣ Γ",null,"Ε2S-12-1st",15,null,"43147Ε1 7η (ΙΑ)424Sα12","2018-02-16","Ε1 7η (ΙΑ)",424,"ΑΟΑ ΗΛΙΟΥΠΟΛΗΣ","S","α12",5,3429]
[null,null,null,null,null,null,null,null,null,null,null,null,null,null,null,null,null,null,null,null,null,null,null,"ΑΟΑ ΠΟΣΕΙΔΩΝ ΘΕΣ",131,"Β",null,null,null,"ΣΤΑΜΑΤΙΑΔΟΥ Ε",null,"Ε2S-12-2nd",12.5,null,"43147Ε1 7η (ΙΑ)424Sκ12","2018-02-16","Ε1 7η (ΙΑ)",424,"ΑΟΑ ΗΛΙΟΥΠΟΛΗΣ","S","κ12",9,3430]
[null,null,null,null,null,null,null,null,null,null,null,null,null,null,null,null,null,null,null,null,null,null,null,"ΑΟΑ ΠΡΩΤΑΘΛ ΚΑΒΑΛΑΣ",108,"Α",null,null,null,"ΣΤΑΦΥΛΙΔΗΣ Α",null,"Ε2S-12-3_4",7.5,null,"43147Ε1 7η (ΙΑ)424Sα14","2018-02-16","Ε1 7η (ΙΑ)",424,"ΑΟΑ ΗΛΙΟΥΠΟΛΗΣ","S","α14",6,3431]
[null,null,null,null,null,null,null,null,null,null,null,null,null,null,null,null,null,null,null,null,null,null,null,"ΑΟΑ ΡΕΘΥΜΝΟ ΤΚ",476,"Ζ",null,null,null,"ΣΤΕΦΑΝΙΔΗΣ Γ",null,"Ε2S-12-5_8",5,null,"43147Ε1 7η (ΙΑ)424Sκ14","2018-02-16","Ε1 7η (ΙΑ)",424,"ΑΟΑ ΗΛΙΟΥΠΟΛΗΣ","S","κ14",10,3432]
[null,null,null,null,null,null,null,null,null,null,null,null,null,null,null,null,null,null,null,null,null,null,null,"ΑΟΑ ΣΤΑΥΡΟΥΠΟΛΗΣ ΙΦΙΤΟΣ",132,"Β",null,null,null,"ΣΤΟΛΗ Κ",null,"Ε2S-12-9_16",4,null,"43147Ε1 7η (ΙΑ)424Dα12","2018-02-16","Ε1 7η (ΙΑ)",424,"ΑΟΑ ΗΛΙΟΥΠΟΛΗΣ","D","α12",13,3433]
[null,null,null,null,null,null,null,null,null,null,null,null,null,null,null,null,null,null,null,null,null,null,null,"ΑΟΑ ΥΕΛΟΥ",335,"Η",null,null,null,"ΤΑΜΠΟΣΗ Τ",null,"Ε2S-12-17_32",0.5,null,"43147Ε1 7η (ΙΑ)424Dκ12","2018-02-16","Ε1 7η (ΙΑ)",424,"ΑΟΑ ΗΛΙΟΥΠΟΛΗΣ","D","κ12",17,3434]
[null,null,null,null,null,null,null,null,null,null,null,null,null,null,null,null,null,null,null,null,null,null,null,"ΑΟΑ ΦΙΛΟΘΕΗΣ",336,"Η",null,null,null,"ΤΑΡΑΜΟΝΛΗΣ Ι",null,"Ε2S-12-q8",1,null,"43147Ε1 7η (ΙΑ)424Dα14","2018-02-16","Ε1 7η (ΙΑ)",424,"ΑΟΑ ΗΛΙΟΥΠΟΛΗΣ","D","α14",14,3435]
[null,null,null,null,null,null,null,null,null,null,null,null,null,null,null,null,null,null,null,null,null,null,null,"ΑΟΑ Χ ΤΡΙΠΟΛΗΣ",500,"ΣΤ",null,null,null,"ΤΖΙΓΚΟΥΝΑΚΗΣ Κ",null,"Ε2S-12-q16",1,null,"43147Ε1 7η (ΙΑ)424Dκ14","2018-02-16","Ε1 7η (ΙΑ)",424,"ΑΟΑ ΗΛΙΟΥΠΟΛΗΣ","D","κ14",18,3436]
[null,null,null,null,null,null,null,null,null,null,null,null,null,null,null,null,null,null,null,null,null,null,null,"ΑΟΑ ΧΑΪΔΑΡΙΟΥ",374,"Θ",null,null,null,"ΤΖΟΒΑΡΑΣ Ν",null,"Ε2S-12-q8/2",0.5,null,"43147Ε1 7η (ΙΑ)435Sα16","2018-02-16","Ε1 7η (ΙΑ)",435,"ΟΑ ΓΛΥΦΑΔΑΣ","S","α16",7,3437]
[null,null,null,null,null,null,null,null,null,null,null,null,null,null,null,null,null,null,null,null,null,null,null,"ΑΠΜΣ ΑΣΚΗΣΗ ΗΡΑΚΛΕΙΟΥ",302,"Ζ",null,null,null,"ΤΟΚΑΤΛΙΔΗΣ Χ",null,"Ε2S-12-q32",0.5,null,"43147Ε1 7η (ΙΑ)435Sκ16","2018-02-16","Ε1 7η (ΙΑ)",435,"ΟΑ ΓΛΥΦΑΔΑΣ","S","κ16",11,3438]
[null,null,null,null,null,null,null,null,null,null,null,null,null,null,null,null,null,null,null,null,null,null,null,"ΑΠΟ ΣΑΝΗ",337,"Η",null,null,null,"ΤΟΥΤΟΥΚΤΣΗΣ Ε",null,"Ε2S-12-33_64",0,null,"43147Ε1 7η (ΙΑ)435Sα18","2018-02-16","Ε1 7η (ΙΑ)",435,"ΟΑ ΓΛΥΦΑΔΑΣ","S","α18",8,3439]
[null,null,null,null,null,null,null,null,null,null,null,null,null,null,null,null,null,null,null,null,null,null,null,"ΑΡΚΑΔΙΚΟΣ ΟΑ ΑΤΛΑΣ",270,"ΣΤ",null,null,null,"ΤΡΙΚΚΑ-ΨΩΜΑ Δ",null,"Ε2S-12-q",0,null,"43147Ε1 7η (ΙΑ)435Sκ18","2018-02-16","Ε1 7η (ΙΑ)",435,"ΟΑ ΓΛΥΦΑΔΑΣ","S","κ18",12,3440]
[null,null,null,null,null,null,null,null,null,null,null,null,null,null,null,null,null,null,null,null,null,null,null,"ΑΣ ΑΘΛΟΠΑΙΔΕΙΑ ΝΑΞΟΥ",509,"Η",null,null,null,"ΤΣΑΓΛΙΩΤΗΣ Ε",null,"Ε2S-12-q64",0,null,"43147Ε1 7η (ΙΑ)435Dα16","2018-02-16","Ε1 7η (ΙΑ)",435,"ΟΑ ΓΛΥΦΑΔΑΣ","D","α16",15,3441]
[null,null,null,null,null,null,null,null,null,null,null,null,null,null,null,null,null,null,null,null,null,null,null,"ΑΣ ΑΚΑΔ ΠΡΩΤΑΘΛ ΠΕΥΚΩΝ",133,"Β",null,null,null,"ΤΣΑΡΚΝΙΑΣ Π",null,"Ε2S-12-q128",0,null,"43147Ε1 7η (ΙΑ)435Dκ16","2018-02-16","Ε1 7η (ΙΑ)",435,"ΟΑ ΓΛΥΦΑΔΑΣ","D","κ16",19,3442]
[null,null,null,null,null,null,null,null,null,null,null,null,null,null,null,null,null,null,null,null,null,null,null,"ΑΣ ΑΚΡΟΠΟΛΙΣ",338,"Η",null,null,null,"ΤΣΑΡΚΝΙΑΣ Σ",null,"Ε2S-12-q256",0,null,"43147Ε1 7η (ΙΑ)435Dα18","2018-02-16","Ε1 7η (ΙΑ)",435,"ΟΑ ΓΛΥΦΑΔΑΣ","D","α18",16,3443]
[null,null,null,null,null,null,null,null,null,null,null,null,null,null,null,null,null,null,null,null,null,null,null,"ΑΣ ΑΝΤΙΣΦΑΙΡΙΣΗ κ ΖΩΗ",444,"Ε",null,null,null,"ΤΣΙΑΡΤΑΣ Β",null,"Ε2S-12-wo",0,null,"43147Ε1 7η (ΙΑ)435Dκ18","2018-02-16","Ε1 7η (ΙΑ)",435,"ΟΑ ΓΛΥΦΑΔΑΣ","D","κ18",20,3444]
[null,null,null,null,null,null,null,null,null,null,null,null,null,null,null,null,null,null,null,null,null,null,null,"ΑΣ ΑΠΟΛΛΩΝ ΚΑΛΥΜΝΟΥ",375,"Θ",null,null,null,"ΤΣΟΥΛΦΑ Α",null,"Ε2D-12-1st",4,null,"43147Ε4 7η (ΙΑ)439Sα12","2018-02-16","Ε4 7η (ΙΑ)",439,"ΟΑ ΧΟΛΑΡΓΟΥ","S","α12",5,3445]
[null,null,null,null,null,null,null,null,null,null,null,null,null,null,null,null,null,null,null,null,null,null,null,"ΑΣ ΑΣΤΕΡΑΣ ΠΕΝΤΕΛΙΚΟΥ",484,"Η",null,null,null,"ΦΟΝΔΟΥΛΑΚΟΣ Μ",null,"Ε2D-12-2nd",3,null,"43147Ε4 7η (ΙΑ)439Sκ12","2018-02-16","Ε4 7η (ΙΑ)",439,"ΟΑ ΧΟΛΑΡΓΟΥ","S","κ12",9,3446]
[null,null,null,null,null,null,null,null,null,null,null,null,null,null,null,null,null,null,null,null,null,null,null,"ΑΣ ΒΑ ΚΥΝΟΥΡΙΑΣ ΑΙΟΛΟΣ",271,"ΣΤ",null,null,null,"ΧΑΝΤΖΗΣ Δ",null,"Ε2D-12-3_4",2,null,"43147Ε4 7η (ΙΑ)439Sα14","2018-02-16","Ε4 7η (ΙΑ)",439,"ΟΑ ΧΟΛΑΡΓΟΥ","S","α14",6,3449]
[null,null,null,null,null,null,null,null,null,null,null,null,null,null,null,null,null,null,null,null,null,null,null,"ΑΣ ΒΕΡΟΙΑΣ ΗΜΑΘΙΩΝ",173,"Γ",null,null,null,"ΧΑΡΜΑΝΑΣ Α",null,"Ε2D-12-5_8",1.5,null,"43147Ε4 7η (ΙΑ)439Sκ14","2018-02-16","Ε4 7η (ΙΑ)",439,"ΟΑ ΧΟΛΑΡΓΟΥ","S","κ14",10,3450]
[null,null,null,null,null,null,null,null,null,null,null,null,null,null,null,null,null,null,null,null,null,null,null,"ΑΣ Δ ΚΟΛΛΕΓΙΟΥ ICBS 2009",134,"Β",null,null,null,"ΧΑΤΖΗΜΕΝΤΩΡ Α",null,"Ε2D-12-9_16",1,null,"43147Ε4 7η (ΙΑ)424Sα16","2018-02-16","Ε4 7η (ΙΑ)",424,"ΑΟΑ ΗΛΙΟΥΠΟΛΗΣ","S","α16",7,3447]
[null,null,null,null,null,null,null,null,null,null,null,null,null,null,null,null,null,null,null,null,null,null,null,"ΑΣ Η ΠΑΡΝΗΘΑ",376,"Θ",null,null,null,"ΧΡΙΣΤΟΠΟΥΛΟΣ Χ",null,"Ε2D-12-17_32",0,null,"43147Ε4 7η (ΙΑ)424Sκ16","2018-02-16","Ε4 7η (ΙΑ)",424,"ΑΟΑ ΗΛΙΟΥΠΟΛΗΣ","S","κ16",11,3448]
[null,null,null,null,null,null,null,null,null,null,null,null,null,null,null,null,null,null,null,null,null,null,null,"ΑΣ ΚΑΡΠΕΝΗΣΙ ΤΕΝΙΣ ΚΛΑΜΠ",224,"Ε",null,null,null,"ΧΡΟΝΗ Ο",null,"Ε2D-12-wo",0,null,"43161Ε3 9η (Θ)400Sα12","2018-03-02","Ε3 9η (Θ)",400,"ΟΑ ΧΑΛΚΙΔΑΣ","S","α12",5,3451]
[null,null,null,null,null,null,null,null,null,null,null,null,null,null,null,null,null,null,null,null,null,null,null,"ΑΣ ΚΟΛΛΕΓΙΟΥ ΝΤΕΡΗ",340,"Η",null,null,null,null,null,"Ε2S-14-1st",30,null,"43161Ε3 9η (Θ)400Sκ12","2018-03-02","Ε3 9η (Θ)",400,"ΟΑ ΧΑΛΚΙΔΑΣ","S","κ12",9,3452]
[null,null,null,null,null,null,null,null,null,null,null,null,null,null,null,null,null,null,null,null,null,null,null,"ΑΣ ΜΑΧΗΤΕΣ ΠΕΥΚΩΝ",135,"Β",null,null,null,null,null,"Ε2S-14-2nd",25,null,"43161Ε3 9η (Θ)400Sα14","2018-03-02","Ε3 9η (Θ)",400,"ΟΑ ΧΑΛΚΙΔΑΣ","S","α14",6,3453]
[null,null,null,null,null,null,null,null,null,null,null,null,null,null,null,null,null,null,null,null,null,null,null,"ΑΣ Ν ΒΟΥΤΖΑ ΠΡΟΟΔΟΣ",341,"Η",null,null,null,null,null,"Ε2S-14-3_4",15,null,"43161Ε3 9η (Θ)400Sκ14","2018-03-02","Ε3 9η (Θ)",400,"ΟΑ ΧΑΛΚΙΔΑΣ","S","κ14",10,3454]
[null,null,null,null,null,null,null,null,null,null,null,null,null,null,null,null,null,null,null,null,null,null,null,"ΑΣ ΝΗΡΕΑΣ ΒΕΡΟΙΑΣ",174,"Γ",null,null,null,null,null,"Ε2S-14-5_8",10,null,"43161Ε3 9η (Θ)400Sα16","2018-03-02","Ε3 9η (Θ)",400,"ΟΑ ΧΑΛΚΙΔΑΣ","S","α16",7,3455]
[null,null,null,null,null,null,null,null,null,null,null,null,null,null,null,null,null,null,null,null,null,null,null,"ΑΣ ΝΙΚΗ ΑΓ ΔΗΜΗΤΡΙΟΥ",507,"ΙΑ",null,null,null,null,null,"Ε2S-14-9_16",7.5,null,"43161Ε3 9η (Θ)400Sκ16","2018-03-02","Ε3 9η (Θ)",400,"ΟΑ ΧΑΛΚΙΔΑΣ","S","κ16",11,3456]
[null,null,null,null,null,null,null,null,null,null,null,null,null,null,null,null,null,null,null,null,null,null,null,"ΑΣ ΟΛΥΜΠ ΧΩΡΙΟΥ Ο ΦΟΙΒΟΣ",377,"Θ",null,null,null,null,null,"Ε2S-14-17_32",1,null,"43155Ε3 8η (Γ)195Sα12","2018-02-24","Ε3 8η (Γ)",195,"ΟΑ ΠΤΟΛΕΜΑΪΔΑΣ","S","α12",5,3461]
[null,null,null,null,null,null,null,null,null,null,null,null,null,null,null,null,null,null,null,null,null,null,null,"ΑΣ ΟΡΦΕΑΣ ΛΑΡΙΣΑΣ",225,"Ε",null,null,null,null,null,"Ε2S-14-q8",2,null,"43155Ε3 8η (Γ)195Sκ12","2018-02-24","Ε3 8η (Γ)",195,"ΟΑ ΠΤΟΛΕΜΑΪΔΑΣ","S","κ12",9,3462]
[null,null,null,null,null,null,null,null,null,null,null,null,null,null,null,null,null,null,null,null,null,null,null,"ΑΣ ΠΑΝΟΡΑΜΑ",136,"Β",null,null,null,null,null,"Ε2S-14-q16",2,null,"43155Ε3 8η (Γ)195Sα16","2018-02-24","Ε3 8η (Γ)",195,"ΟΑ ΠΤΟΛΕΜΑΪΔΑΣ","S","α16",7,3463]
[null,null,null,null,null,null,null,null,null,null,null,null,null,null,null,null,null,null,null,null,null,null,null,"ΑΣ ΠΑΠΑΓΟΥ",498,"ΙΑ",null,null,null,null,null,"Ε2S-14-q8/2",1,null,"43155Ε3 8η (Γ)195Sκ16","2018-02-24","Ε3 8η (Γ)",195,"ΟΑ ΠΤΟΛΕΜΑΪΔΑΣ","S","κ16",11,3464]
[null,null,null,null,null,null,null,null,null,null,null,null,null,null,null,null,null,null,null,null,null,null,null,"ΑΣ ΠΕΝΤΕΛΗΣ ΑΣΤΕΡΑΣ",445,"Η",null,null,null,null,null,"Ε2S-14-q32",1,null,"43155Ε3 8η (Α)112Sα12","2018-02-24","Ε3 8η (Α)",112,"ΟΑ ΑΛΕΞΑΝΔΡΟΥΠΟΛΗΣ","S","α12",5,3465]
[null,null,null,null,null,null,null,null,null,null,null,null,null,null,null,null,null,null,null,null,null,null,null,"ΑΣ ΠΕΡΑ",427,"ΙΑ",null,null,null,null,null,"Ε2S-14-33_64",0,null,"43155Ε3 8η (Α)112Sκ12","2018-02-24","Ε3 8η (Α)",112,"ΟΑ ΑΛΕΞΑΝΔΡΟΥΠΟΛΗΣ","S","κ12",9,3466]
[null,null,null,null,null,null,null,null,null,null,null,null,null,null,null,null,null,null,null,null,null,null,null,"ΑΣ ΠΙΕΡΙΑ ΤΕΝΙΣ",465,"Γ",null,null,null,null,null,"Ε2S-14-q",0,null,"43155Ε3 8η (Α)112Sα16","2018-02-24","Ε3 8η (Α)",112,"ΟΑ ΑΛΕΞΑΝΔΡΟΥΠΟΛΗΣ","S","α16",7,3467]
[null,null,null,null,null,null,null,null,null,null,null,null,null,null,null,null,null,null,null,null,null,null,null,"ΑΣ ΣΠΑΡΤΑΚΟΣ ΓΛΥΦΑΔΑΣ",428,"ΙΑ",null,null,null,null,null,"Ε2S-14-q64",0,null,"43155Ε3 8η (Α)112Sκ16","2018-02-24","Ε3 8η (Α)",112,"ΟΑ ΑΛΕΞΑΝΔΡΟΥΠΟΛΗΣ","S","κ16",11,3468]
[null,null,null,null,null,null,null,null,null,null,null,null,null,null,null,null,null,null,null,null,null,null,null,"ΑΣ ΤΕΝΙΣ ΚΛΑΜΠ ΚΟΖΑΝΗΣ",176,"Γ",null,null,null,null,null,"Ε2S-14-q128",0,null,"43154Ε3 8η (ΙΑ)425Sα12","2018-02-23","Ε3 8η (ΙΑ)",425,"ΑΟΑ ΠΑΠΑΓΟΥ","S","α12",5,3469]
[null,null,null,null,null,null,null,null,null,null,null,null,null,null,null,null,null,null,null,null,null,null,null,"ΑΣ ΦΛΟΓΑ ΑΘΗΝΩΝ",342,"Η",null,null,null,null,null,"Ε2S-14-q256",0,null,{"$f":"AJ131&AK131&AL131&AN131&AO131","v":"43154Ε3 8η (ΙΑ)425Sκ12"},"2018-02-23","Ε3 8η (ΙΑ)",425,"ΑΟΑ ΠΑΠΑΓΟΥ","S","κ12",9,3470]
[null,null,null,null,null,null,null,null,null,null,null,null,null,null,null,null,null,null,null,null,null,null,null,"ΑΣ ΦΠ ΑΝΑΠΛΑΣΗΣ ΦΕΡΕΝΙΚΟΣ",343,"Η",null,null,null,null,null,"Ε2S-14-wo",0,null,"43154Ε3 8η (ΙΑ)425Sα14","2018-02-23","Ε3 8η (ΙΑ)",425,"ΑΟΑ ΠΑΠΑΓΟΥ","S","α14",6,3471]
[null,null,null,null,null,null,null,null,null,null,null,null,null,null,null,null,null,null,null,null,null,null,null,"ΑΣΑ ΑΓΡΙΝΙΟΥ",209,"Δ",null,null,null,null,null,"Ε2D-14-1st",8,null,"43154Ε3 8η (ΙΑ)425Sκ14","2018-02-23","Ε3 8η (ΙΑ)",425,"ΑΟΑ ΠΑΠΑΓΟΥ","S","κ14",10,3472]
[null,null,null,null,null,null,null,null,null,null,null,null,null,null,null,null,null,null,null,null,null,null,null,"ΑΣΑ ΓΡΕΒΕΝΩΝ",177,"Γ",null,null,null,null,null,"Ε2D-14-2nd",6,null,"43154Ε3 8η (ΙΑ)425Sα16","2018-02-23","Ε3 8η (ΙΑ)",425,"ΑΟΑ ΠΑΠΑΓΟΥ","S","α16",7,3473]
[null,null,null,null,null,null,null,null,null,null,null,null,null,null,null,null,null,null,null,null,null,null,null,"ΑΣΑ ΕΛΠΙΔΑ ΣΟΥΦΛΙΟΥ",443,"Α",null,null,null,null,null,"Ε2D-14-3_4",4,null,"43154Ε3 8η (ΙΑ)425Sκ16","2018-02-23","Ε3 8η (ΙΑ)",425,"ΑΟΑ ΠΑΠΑΓΟΥ","S","κ16",11,3474]
[null,null,null,null,null,null,null,null,null,null,null,null,null,null,null,null,null,null,null,null,null,null,null,"ΑΣΑ ΖΕΦΥΡΟΣ",178,"Γ",null,null,null,null,null,"Ε2D-14-5_8",3,null,"43155Ε3 8η (Δ)204Sα12","2018-02-24","Ε3 8η (Δ)",204,"ΑΓΟ ΦΙΛΙΠΠΙΑΔΑΣ","S","α12",5,3475]
[null,null,null,null,null,null,null,null,null,null,null,null,null,null,null,null,null,null,null,null,null,null,null,"ΑΣΑ ΘΕΣΣΑΛΟΝΙΚΗΣ",165,"Β",null,null,null,null,null,"Ε2D-14-9_16",2,null,"43155Ε3 8η (Δ)204Sκ12","2018-02-24","Ε3 8η (Δ)",204,"ΑΓΟ ΦΙΛΙΠΠΙΑΔΑΣ","S","κ12",9,3476]
[null,null,null,null,null,null,null,null,null,null,null,null,null,null,null,null,null,null,null,null,null,null,null,"ΑΣΑ ΛΑΡΙΣΑΣ",226,"Ε",null,null,null,null,null,"Ε2D-14-17_32",0,null,"43155Ε3 8η (Δ)204Sα16","2018-02-24","Ε3 8η (Δ)",204,"ΑΓΟ ΦΙΛΙΠΠΙΑΔΑΣ","S","α16",7,3477]
[null,null,null,null,null,null,null,null,null,null,null,null,null,null,null,null,null,null,null,null,null,null,null,"ΑΣΑ ΜΑΥΡΟΧΩΡΙΟΥ ΚΑΣΤΟΡΙΑΣ",179,"Γ",null,null,null,null,null,"Ε2D-14-wo",0,null,"43155Ε3 8η (Δ)204Sκ16","2018-02-24","Ε3 8η (Δ)",204,"ΑΓΟ ΦΙΛΙΠΠΙΑΔΑΣ","S","κ16",11,3478]
[null,null,null,null,null,null,null,null,null,null,null,null,null,null,null,null,null,null,null,null,null,null,null,"ΑΣΑ ΜΥΤΙΛΗΝΗΣ",491,"Θ",null,null,null,null,null,"Ε2S-16-1st",60,null,"43155Ε3 8η (Ζ)307Sα12","2018-02-24","Ε3 8η (Ζ)",307,"ΟΑ ΡΕΘΥΜΝΟΥ","S","α12",5,3479]
[null,null,null,null,null,null,null,null,null,null,null,null,null,null,null,null,null,null,null,null,null,null,null,"ΑΣΑ ΠΑΜΒΩΤΙΣ ΙΩΑΝΝΙΝΩΝ",210,"Δ",null,null,null,null,null,"Ε2S-16-2nd",50,null,"43155Ε3 8η (Ζ)307Sκ12","2018-02-24","Ε3 8η (Ζ)",307,"ΟΑ ΡΕΘΥΜΝΟΥ","S","κ12",9,3480]
[null,null,null,null,null,null,null,null,null,null,null,null,null,null,null,null,null,null,null,null,null,null,null,"ΑΣΑ ΠΑΝΟΡΑΜΑΤΟΣ ΠΥΛΑΙΑΣ",137,"Β",null,null,null,null,null,"Ε2S-16-3_4",30,null,"43155Ε3 8η (Ζ)307Sα16","2018-02-24","Ε3 8η (Ζ)",307,"ΟΑ ΡΕΘΥΜΝΟΥ","S","α16",7,3481]
[null,null,null,null,null,null,null,null,null,null,null,null,null,null,null,null,null,null,null,null,null,null,null,"ΑΣΑ ΤΡΙΚΑΛΩΝ",508,"Ε",null,null,null,null,null,"Ε2S-16-5_8",20,null,"43155Ε3 8η (Ζ)307Sκ16","2018-02-24","Ε3 8η (Ζ)",307,"ΟΑ ΡΕΘΥΜΝΟΥ","S","κ16",11,3482]
[null,null,null,null,null,null,null,null,null,null,null,null,null,null,null,null,null,null,null,null,null,null,null,"ΑΣΑ ΩΡΩΠΟΥ",344,"Η",null,null,null,null,null,"Ε2S-16-9_16",16,null,"43162Ε3 9η (Ζ)307Sα14","2018-03-03","Ε3 9η (Ζ)",307,"ΟΑ ΡΕΘΥΜΝΟΥ","S","α14",6,3483]
[null,null,null,null,null,null,null,null,null,null,null,null,null,null,null,null,null,null,null,null,null,null,null,"ΑΣΕ ΘΗΣΕΑΣ ΑΓ ΔΗΜΗΤΡΙΟΥ",417,"ΙΑ",null,null,null,null,null,"Ε2S-16-17_32",2,null,"43162Ε3 9η (Ζ)307Sκ14","2018-03-03","Ε3 9η (Ζ)",307,"ΟΑ ΡΕΘΥΜΝΟΥ","S","κ14",10,3484]
[null,null,null,null,null,null,null,null,null,null,null,null,null,null,null,null,null,null,null,null,null,null,null,"ΑΤ ΧΟΛΑΡΓΟΥ",429,"ΙΑ",null,null,null,null,null,"Ε2S-16-q8",4,null,"43162Ε3 9η (Γ)185Sα14","2018-03-03","Ε3 9η (Γ)",185,"ΟΑ ΑΡΙΔΑΙΑΣ","S","α14",6,3485]
[null,null,null,null,null,null,null,null,null,null,null,null,null,null,null,null,null,null,null,null,null,null,null,"ΑΧΑΪΚΟΣ ΟΑ",502,"ΣΤ",null,null,null,null,null,"Ε2S-16-q16",4,null,"43162Ε3 9η (Γ)185Sκ14","2018-03-03","Ε3 9η (Γ)",185,"ΟΑ ΑΡΙΔΑΙΑΣ","S","κ14",10,3486]
[null,null,null,null,null,null,null,null,null,null,null,null,null,null,null,null,null,null,null,null,null,null,null,"ΑΨΛ ΑΓ ΓΕΩΡΓΙΟΥ ΗΣΙΟΔΟΣ",227,"Ε",null,null,null,null,null,"Ε2S-16-q8/2",2,null,"43155Ε3 8η (ΣΤ)286Sα14","2018-02-24","Ε3 8η (ΣΤ)",286,"ΟΑ ΚΟΡΙΝΘΟΥ","S","α14",6,3487]
[null,null,null,null,null,null,null,null,null,null,null,null,null,null,null,null,null,null,null,null,null,null,null,"ΑΨΛ ΜΕΔΕΩΝ",228,"Ε",null,null,null,null,null,"Ε2S-16-q32",2,null,"43155Ε3 8η (ΣΤ)286Sκ14","2018-02-24","Ε3 8η (ΣΤ)",286,"ΟΑ ΚΟΡΙΝΘΟΥ","S","κ14",10,3488]
[null,null,null,null,null,null,null,null,null,null,null,null,null,null,null,null,null,null,null,null,null,null,null,"ΓΑΕ ΤΡΙΦΥΛΙΑΣ ΚΥΠΑΡΙΣΣΕΥΣ",273,"ΣΤ",null,null,null,null,null,"Ε2S-16-33_64",0]
[null,null,null,null,null,null,null,null,null,null,null,null,null,null,null,null,null,null,null,null,null,null,null,"ΓΑΣ ΑΛΕΞΑΝΔΡΕΙΑ",466,"Γ",null,null,null,null,null,"Ε2S-16-q",0]
[null,null,null,null,null,null,null,null,null,null,null,null,null,null,null,null,null,null,null,null,null,null,null,"ΓΑΣ ΓΟΥΡΝΩΝ",303,"Ζ",null,null,null,null,null,"Ε2S-16-q64",0]
[null,null,null,null,null,null,null,null,null,null,null,null,null,null,null,null,null,null,null,null,null,null,null,"ΓΑΣ ΘΥΕΛΛΑ ΦΕΡΩΝ",109,"Α",null,null,null,null,null,"Ε2S-16-q128",0]
[null,null,null,null,null,null,null,null,null,null,null,null,null,null,null,null,null,null,null,null,null,null,null,"ΓΑΣ ΚΑΡΑΤΕ ΕΡΜΗΣ",181,"Γ",null,null,null,null,null,"Ε2S-16-q256",0]
[null,null,null,null,null,null,null,null,null,null,null,null,null,null,null,null,null,null,null,null,null,null,null,"ΓΑΣ ΜΑΓΝΗΣΙΑΣ",229,"Ε",null,null,null,null,null,"Ε2S-16-wo",0]
[null,null,null,null,null,null,null,null,null,null,null,null,null,null,null,null,null,null,null,null,null,null,null,"ΓΑΣ ΝΙΓΡΙΤΑΣ ΒΙΣΑΛΤΗΣ",453,"Α",null,null,null,null,null,"Ε2D-16-1st",16]
[null,null,null,null,null,null,null,null,null,null,null,null,null,null,null,null,null,null,null,null,null,null,null,"ΓΕ ΑΡΓΟΛΙΔΑΣ",503,"ΣΤ",null,null,null,null,null,"Ε2D-16-2nd",12]
[null,null,null,null,null,null,null,null,null,null,null,null,null,null,null,null,null,null,null,null,null,null,null,"ΓΕ ΑΤΑΛΑΝΤΗΣ",471,"Ε",null,null,null,null,null,"Ε2D-16-3_4",8]
[null,null,null,null,null,null,null,null,null,null,null,null,null,null,null,null,null,null,null,null,null,null,null,"ΓΕ ΛΑΡΙΣΑΣ",472,"Ε",null,null,null,null,null,"Ε2D-16-5_8",6]
[null,null,null,null,null,null,null,null,null,null,null,null,null,null,null,null,null,null,null,null,null,null,null,"ΓΕ ΠΡΕΒΕΖΑΣ",211,"Δ",null,null,null,null,null,"Ε2D-16-9_16",4]
[null,null,null,null,null,null,null,null,null,null,null,null,null,null,null,null,null,null,null,null,null,null,null,"ΓΟ ΠΕΡΙΣΤΕΡΙΟΥ ΠΑΛΑΣΚΑΣ",379,"Θ",null,null,null,null,null,"Ε2D-16-17_32",0]
[null,null,null,null,null,null,null,null,null,null,null,null,null,null,null,null,null,null,null,null,null,null,null,"ΓΣ ΑΜΦΙΑΛΗΣ ΦΕΙΔΙΠΠΙΔΗΣ",492,"Θ",null,null,null,null,null,"Ε2D-16-wo",0]
[null,null,null,null,null,null,null,null,null,null,null,null,null,null,null,null,null,null,null,null,null,null,null,"ΓΣ ΑΠΟΛΛΩΝ ΠΥΡΓΟΥ",504,"ΣΤ",null,null,null,null,null,"Ε2S-18-1st",0]
[null,null,null,null,null,null,null,null,null,null,null,null,null,null,null,null,null,null,null,null,null,null,null,"ΓΣ ΕΛΕΥΘ ΚΟΡΔ ΑΡΓΟΝΑΥΤΕΣ",138,"Β",null,null,null,null,null,"Ε2S-18-2nd",0]
[null,null,null,null,null,null,null,null,null,null,null,null,null,null,null,null,null,null,null,null,null,null,null,"ΓΣ ΗΛΙΟΥΠΟΛΗΣ",430,"ΙΑ",null,null,null,null,null,"Ε2S-18-3_4",0]
[null,null,null,null,null,null,null,null,null,null,null,null,null,null,null,null,null,null,null,null,null,null,null,"ΓΣ ΙΤΕΑΣ",232,"Ε",null,null,null,null,null,"Ε2S-18-5_8",0]
[null,null,null,null,null,null,null,null,null,null,null,null,null,null,null,null,null,null,null,null,null,null,null,"ΓΣ ΚΗΦΙΣΙΑΣ",345,"Η",null,null,null,null,null,"Ε2S-18-9_16",0]
[null,null,null,null,null,null,null,null,null,null,null,null,null,null,null,null,null,null,null,null,null,null,null,"ΓΣ ΚΟΡΩΠΙΟΥ",346,"Η",null,null,null,null,null,"Ε2S-18-17_32",0]
[null,null,null,null,null,null,null,null,null,null,null,null,null,null,null,null,null,null,null,null,null,null,null,"ΓΣ ΛΙΒΥΚΟΣ ΙΕΡΑΠΕΤΡΑΣ",304,"Ζ",null,null,null,null,null,"Ε2S-18-q8",0]
[null,null,null,null,null,null,null,null,null,null,null,null,null,null,null,null,null,null,null,null,null,null,null,"ΓΣ Ν ΙΩΝΙΑΣ ΑΤΤΙΚΗΣ",381,"Θ",null,null,null,null,null,"Ε2S-18-q16",0]
[null,null,null,null,null,null,null,null,null,null,null,null,null,null,null,null,null,null,null,null,null,null,null,"ΓΣ ΣΑΛΑΜΙΝΑΣ",493,"Θ",null,null,null,null,null,"Ε2S-18-q8/2",0]
[null,null,null,null,null,null,null,null,null,null,null,null,null,null,null,null,null,null,null,null,null,null,null,"ΓΣ ΩΡΩΠΟΥ",485,"Η",null,null,null,null,null,"Ε2S-18-q32",0]
[null,null,null,null,null,null,null,null,null,null,null,null,null,null,null,null,null,null,null,null,null,null,null,"ΔΑΣ ΑΝΩ ΛΙΟΣΙΩΝ",383,"Θ",null,null,null,null,null,"Ε2S-18-33_64",0]
[null,null,null,null,null,null,null,null,null,null,null,null,null,null,null,null,null,null,null,null,null,null,null,"ΕΑΟ ΗΛΙΣ",384,"Θ",null,null,null,null,null,"Ε2S-18-q",0]
[null,null,null,null,null,null,null,null,null,null,null,null,null,null,null,null,null,null,null,null,null,null,null,"ΕΑΣ ΛΑΚΚΑΣ ΣΥΜΠΟΛΙΤΕΙΑΣ",276,"ΣΤ",null,null,null,null,null,"Ε2S-18-q64",0]
[null,null,null,null,null,null,null,null,null,null,null,null,null,null,null,null,null,null,null,null,null,null,null,"ΕΑΣ ΟΛΥΜΠΙΑΔΑ",139,"Β",null,null,null,null,null,"Ε2S-18-q128",0]
[null,null,null,null,null,null,null,null,null,null,null,null,null,null,null,null,null,null,null,null,null,null,null,"ΕΑΣΑ ΘΕΣΣΑΛΙΚΟΣ",473,"Ε",null,null,null,null,null,"Ε2S-18-q256",0]
[null,null,null,null,null,null,null,null,null,null,null,null,null,null,null,null,null,null,null,null,null,null,null,"ΕΑΤΕΚ ΕΛΛ ΚΟΛΛΕΓΙΟΥ",140,"Β",null,null,null,null,null,"Ε2S-18-wo",0]
[null,null,null,null,null,null,null,null,null,null,null,null,null,null,null,null,null,null,null,null,null,null,null,"ΕΑΦΩ ΝΤΕΚΡΟΛΙ",459,"Β",null,null,null,null,null,"Ε2D-18-1st",0]
[null,null,null,null,null,null,null,null,null,null,null,null,null,null,null,null,null,null,null,null,null,null,null,"ΕΕΠΚΑ ΕΥΡΩΪΔΕΑ ΚΑΡΔΙΤΣΑΣ",474,"Ε",null,null,null,null,null,"Ε2D-18-2nd",0]
[null,null,null,null,null,null,null,null,null,null,null,null,null,null,null,null,null,null,null,null,null,null,null,"ΕΘΝΙΚΟΣ ΠΑΝΟΡΑΜΑΤΟΣ 2005",460,"Β",null,null,null,null,null,"Ε2D-18-3_4",0]
[null,null,null,null,null,null,null,null,null,null,null,null,null,null,null,null,null,null,null,null,null,null,null,"ΕΣΟ ΕΠΙΚΟΥΡΟΣ ΠΟΛΙΧΝΗΣ",143,"Β",null,null,null,null,null,"Ε2D-18-5_8",0]
[null,null,null,null,null,null,null,null,null,null,null,null,null,null,null,null,null,null,null,null,null,null,null,"ΕΦΤ ΑΙΟΛΙΚΗ",144,"Β",null,null,null,null,null,"Ε2D-18-9_16",0]
[null,null,null,null,null,null,null,null,null,null,null,null,null,null,null,null,null,null,null,null,null,null,null,"ΖΑΚΥΝΘΙΝΟΣ ΑΟ",505,"ΣΤ",null,null,null,null,null,"Ε2D-18-wo",0]
[null,null,null,null,null,null,null,null,null,null,null,null,null,null,null,null,null,null,null,null,null,null,null,"ΖΑΚΥΝΘΙΝΟΣ ΑΟΑ",278,"ΣΤ",null,null,null,null,null,"Ε2D-18-17_32",0]
[null,null,null,null,null,null,null,null,null,null,null,null,null,null,null,null,null,null,null,null,null,null,null,"ΗΠΕΙΡΩΤΙΚΟΣ ΣΑ ΙΩΑΝΝΙΝΩΝ",469,"Δ",null,null,null,null,null,"Ε3S-12-1st",9]
[null,null,null,null,null,null,null,null,null,null,null,null,null,null,null,null,null,null,null,null,null,null,null,"ΗΡΑΚΛΕΙΟ ΟΑΑ",305,"Ζ",null,null,null,null,null,"Ε3S-12-2nd",7.5]
[null,null,null,null,null,null,null,null,null,null,null,null,null,null,null,null,null,null,null,null,null,null,null,"ΙΚΑΡΟΣ Ν ΣΜΥΡΝΗΣ",446,"ΙΑ",null,null,null,null,null,"Ε3S-12-3_4",4.5]
[null,null,null,null,null,null,null,null,null,null,null,null,null,null,null,null,null,null,null,null,null,null,null,"ΚΑ ΑΓΡΙΝΙΟΥ",213,"Δ",null,null,null,null,null,"Ε3S-12-5_8",3]
[null,null,null,null,null,null,null,null,null,null,null,null,null,null,null,null,null,null,null,null,null,null,null,"ΚΕΝΤΡΟ ΑΝΤΙΣΦ ΛΙΒΑΔΕΙΑΣ",235,"Ε",null,null,null,null,null,"Ε3S-12-9_16",2.4]
[null,null,null,null,null,null,null,null,null,null,null,null,null,null,null,null,null,null,null,null,null,null,null,"ΚΕΡΚΥΡΑΪΚΗ ΑΚΑΔ ΤΕΝΝΙΣ",214,"Δ",null,null,null,null,null,"Ε3S-12-17_32",1.5]
[null,null,null,null,null,null,null,null,null,null,null,null,null,null,null,null,null,null,null,null,null,null,null,"ΚΕΡΚΥΡΑΪΚΗ ΛΤ",215,"Δ",null,null,null,null,null,"Ε3S-12-33_64",0.5]
[null,null,null,null,null,null,null,null,null,null,null,null,null,null,null,null,null,null,null,null,null,null,null,"ΚΕΦΑΛΛΗΝΙΑΚΟΣ ΟΑ",279,"ΣΤ",null,null,null,null,null,"Ε3S-12-65_128",0]
[null,null,null,null,null,null,null,null,null,null,null,null,null,null,null,null,null,null,null,null,null,null,null,"Λ ΠΟΛΙΤΙΣΜΟΥ ΦΛΩΡΙΝΑΣ",182,"Γ",null,null,null,null,null,"Ε3S-12-q8",0]
[null,null,null,null,null,null,null,null,null,null,null,null,null,null,null,null,null,null,null,null,null,null,null,"ΛΑ ΚΟΜΟΤΗΝΗΣ",454,"Α",null,null,null,null,null,"Ε3S-12-q16",0]
[null,null,null,null,null,null,null,null,null,null,null,null,null,null,null,null,null,null,null,null,null,null,null,"ΛΑΡΙΣΑΪΚΟΣ ΟΑ",236,"Ε",null,null,null,null,null,"Ε3S-12-q32",0]
[null,null,null,null,null,null,null,null,null,null,null,null,null,null,null,null,null,null,null,null,null,null,null,"ΜΑΣ ΑΕΤΟΣ ΘΕΣ",145,"Β",null,null,null,null,null,"Ε3S-12-q64",0]
[null,null,null,null,null,null,null,null,null,null,null,null,null,null,null,null,null,null,null,null,null,null,null,"ΜΑΣ ΑΤΡΟΜΗΤΟΣ ΤΡΙΑΔΙΟΥ",146,"Β",null,null,null,null,null,"Ε3S-12-q128",0]
[null,null,null,null,null,null,null,null,null,null,null,null,null,null,null,null,null,null,null,null,null,null,null,"ΜΓΣ ΑΠΟΛΛΩΝ ΚΑΛΑΜΑΡΙΑΣ",147,"Β",null,null,null,null,null,"Ε3S-12-q256",0]
[null,null,null,null,null,null,null,null,null,null,null,null,null,null,null,null,null,null,null,null,null,null,null,"ΝΑΣΠ ΑΙΟΛΟΣ ΜΥΤΙΛΗΝΗΣ",494,"Θ",null,null,null,null,null,"Ε3S-12-wo",0]
[null,null,null,null,null,null,null,null,null,null,null,null,null,null,null,null,null,null,null,null,null,null,null,"ΝΑΥΠΛΙΑΚΟΣ ΟΑ",280,"ΣΤ",null,null,null,null,null,"Ε3S-14-1st",18]
[null,null,null,null,null,null,null,null,null,null,null,null,null,null,null,null,null,null,null,null,null,null,null,"ΝΟ ΘΕΣΣΑΛΟΝΙΚΗΣ",148,"Β",null,null,null,null,null,"Ε3S-14-2nd",15]
[null,null,null,null,null,null,null,null,null,null,null,null,null,null,null,null,null,null,null,null,null,null,null,"ΝΟ ΚΑΛΑΜΑΚΙΟΥ",432,"ΙΑ",null,null,null,null,null,"Ε3S-14-3_4",9]
[null,null,null,null,null,null,null,null,null,null,null,null,null,null,null,null,null,null,null,null,null,null,null,"ΝΟΝΑΜ",183,"Γ",null,null,null,null,null,"Ε3S-14-5_8",6]
[null,null,null,null,null,null,null,null,null,null,null,null,null,null,null,null,null,null,null,null,null,null,null,"ΟΑ 3 ΒΗΤΑ",451,"Η",null,null,null,null,null,"Ε3S-14-9_16",4.5]
[null,null,null,null,null,null,null,null,null,null,null,null,null,null,null,null,null,null,null,null,null,null,null,"ΟΑ ΑΓ ΑΝΑΡΓΥΡΩΝ",386,"Θ",null,null,null,null,null,"Ε3S-14-17_32",3]
[null,null,null,null,null,null,null,null,null,null,null,null,null,null,null,null,null,null,null,null,null,null,null,"ΟΑ ΑΓ ΠΑΡΑΣΚΕΥΗΣ",348,"Η",null,null,null,null,null,"Ε3S-14-33_64",1]
[null,null,null,null,null,null,null,null,null,null,null,null,null,null,null,null,null,null,null,null,null,null,null,"ΟΑ ΑΓ ΣΟΥΛΑ ΡΟΔΟΥ",387,"Θ",null,null,null,null,null,"Ε3S-14-65_128",0]
[null,null,null,null,null,null,null,null,null,null,null,null,null,null,null,null,null,null,null,null,null,null,null,"ΟΑ ΑΓΡΙΝΙΟΥ",216,"Δ",null,null,null,null,null,"Ε3S-14-q8",0]
[null,null,null,null,null,null,null,null,null,null,null,null,null,null,null,null,null,null,null,null,null,null,null,"ΟΑ ΑΘΗΝΩΝ",349,"Η",null,null,null,null,null,"Ε3S-14-q16",0]
[null,null,null,null,null,null,null,null,null,null,null,null,null,null,null,null,null,null,null,null,null,null,null,"ΟΑ ΑΘΛΗΤ ΠΑΙΔΕΙΑ",350,"Η",null,null,null,null,null,"Ε3S-14-q32",0]
[null,null,null,null,null,null,null,null,null,null,null,null,null,null,null,null,null,null,null,null,null,null,null,"ΟΑ ΑΙΓΙΑΛΕΙΑΣ",282,"ΣΤ",null,null,null,null,null,"Ε3S-14-q64",0]
[null,null,null,null,null,null,null,null,null,null,null,null,null,null,null,null,null,null,null,null,null,null,null,"ΟΑ ΑΙΓΙΟΥ",506,"ΣΤ",null,null,null,null,null,"Ε3S-14-q128",0]
[null,null,null,null,null,null,null,null,null,null,null,null,null,null,null,null,null,null,null,null,null,null,null,"ΟΑ ΑΛΕΞΑΝΔΡΟΣ ΒΕΡΟΙΑΣ",184,"Γ",null,null,null,null,null,"Ε3S-14-q256",0]
[null,null,null,null,null,null,null,null,null,null,null,null,null,null,null,null,null,null,null,null,null,null,null,"ΟΑ ΑΛΕΞΑΝΔΡΟΥΠΟΛΗΣ",112,"Α",null,null,null,null,null,"Ε3S-14-wo",0]
[null,null,null,null,null,null,null,null,null,null,null,null,null,null,null,null,null,null,null,null,null,null,null,"ΟΑ ΑΛΙΜΟΥ",433,"ΙΑ",null,null,null,null,null,"Ε3S-16-1st",36]
[null,null,null,null,null,null,null,null,null,null,null,null,null,null,null,null,null,null,null,null,null,null,null,"ΟΑ ΑΜΥΝΤΑΣ ΥΜΗΤΤΟΥ",413,"ΙΑ",null,null,null,null,null,"Ε3S-16-2nd",30]
[null,null,null,null,null,null,null,null,null,null,null,null,null,null,null,null,null,null,null,null,null,null,null,"ΟΑ ΑΝΑΤΟΛΙΚΗΣ ΦΘΙΩΤΙΔΑΣ",237,"Ε",null,null,null,null,null,"Ε3S-16-3_4",18]
[null,null,null,null,null,null,null,null,null,null,null,null,null,null,null,null,null,null,null,null,null,null,null,"ΟΑ ΑΝΑΦΛΥΣΤΟΣ ΣΑΡΩΝΙΔΑΣ",351,"Η",null,null,null,null,null,"Ε3S-16-5_8",12]
[null,null,null,null,null,null,null,null,null,null,null,null,null,null,null,null,null,null,null,null,null,null,null,"ΟΑ ΑΡΓΟΥΣ",284,"ΣΤ",null,null,null,null,null,"Ε3S-16-9_16",9.6]
[null,null,null,null,null,null,null,null,null,null,null,null,null,null,null,null,null,null,null,null,null,null,null,"ΟΑ ΑΡΙΔΑΙΑΣ",185,"Γ",null,null,null,null,null,"Ε3S-16-17_32",6]
[null,null,null,null,null,null,null,null,null,null,null,null,null,null,null,null,null,null,null,null,null,null,null,"ΟΑ ΑΡΤΑΣ",217,"Δ",null,null,null,null,null,"Ε3S-16-33_64",2]
[null,null,null,null,null,null,null,null,null,null,null,null,null,null,null,null,null,null,null,null,null,null,null,"ΟΑ ΑΤΤΙΚΑ 2016",447,"Η",null,null,null,null,null,"Ε3S-16-65_128",0]
[null,null,null,null,null,null,null,null,null,null,null,null,null,null,null,null,null,null,null,null,null,null,null,"ΟΑ ΒΕΡΟΙΑΣ",186,"Γ",null,null,null,null,null,"Ε3S-16-q8",0]
[null,null,null,null,null,null,null,null,null,null,null,null,null,null,null,null,null,null,null,null,null,null,null,"ΟΑ ΒΙΚΕΛΑΣ ΒΕΡΟΙΑΣ",187,"Γ",null,null,null,null,null,"Ε3S-16-q16",0]
[null,null,null,null,null,null,null,null,null,null,null,null,null,null,null,null,null,null,null,null,null,null,null,"ΟΑ ΒΟΛΟΥ",238,"Ε",null,null,null,null,null,"Ε3S-16-q32",0]
[null,null,null,null,null,null,null,null,null,null,null,null,null,null,null,null,null,null,null,null,null,null,null,"ΟΑ ΒΟΥΛΙΑΓΜΕΝΗΣ Μ ΑΣΣΟΙ",434,"ΙΑ",null,null,null,null,null,"Ε3S-16-q64",0]
[null,null,null,null,null,null,null,null,null,null,null,null,null,null,null,null,null,null,null,null,null,null,null,"ΟΑ ΒΡΙΛΗΣΣΙΩΝ",352,"Η",null,null,null,null,null,"Ε3S-16-q128",0]
[null,null,null,null,null,null,null,null,null,null,null,null,null,null,null,null,null,null,null,null,null,null,null,"ΟΑ ΓΑΛΗΝΗΣ ΩΡΑΙΟΚΑΣΤΡΟΥ",461,"Β",null,null,null,null,null,"Ε3S-16-q256",0]
[null,null,null,null,null,null,null,null,null,null,null,null,null,null,null,null,null,null,null,null,null,null,null,"ΟΑ ΓΙΑΝΝΙΤΣΩΝ",188,"Γ",null,null,null,null,null,"Ε3S-16-wo",0]
[null,null,null,null,null,null,null,null,null,null,null,null,null,null,null,null,null,null,null,null,null,null,null,"ΟΑ ΓΛΥΦΑΔΑΣ",435,"ΙΑ",null,null,null,null,null,"Ε3S-18-17_32",0]
[null,null,null,null,null,null,null,null,null,null,null,null,null,null,null,null,null,null,null,null,null,null,null,"ΟΑ ΓΟΥΔΗ",436,"ΙΑ",null,null,null,null,null,"Ε3S-18-1st",0]
[null,null,null,null,null,null,null,null,null,null,null,null,null,null,null,null,null,null,null,null,null,null,null,"ΟΑ ΔΕΣΚΑΤΗΣ",448,"Γ",null,null,null,null,null,"Ε3S-18-2nd",0]
[null,null,null,null,null,null,null,null,null,null,null,null,null,null,null,null,null,null,null,null,null,null,null,"ΟΑ ΕΔΕΣΣΑΣ",189,"Γ",null,null,null,null,null,"Ε3S-18-3_4",0]
[null,null,null,null,null,null,null,null,null,null,null,null,null,null,null,null,null,null,null,null,null,null,null,"ΟΑ ΕΛΕΥΘΕΡΟΥΠΟΛΗΣ",455,"Α",null,null,null,null,null,"Ε3S-18-33_64",0]
[null,null,null,null,null,null,null,null,null,null,null,null,null,null,null,null,null,null,null,null,null,null,null,"ΟΑ ΕΛΕΥΣΙΝΑΣ ΑΙΣΧΥΛΟΣ",388,"Θ",null,null,null,null,null,"Ε3S-18-5_8",0]
[null,null,null,null,null,null,null,null,null,null,null,null,null,null,null,null,null,null,null,null,null,null,null,"ΟΑ ΕΛΛΗΝΙΚΟΥ",499,"ΙΑ",null,null,null,null,null,"Ε3S-18-9_16",0]
[null,null,null,null,null,null,null,null,null,null,null,null,null,null,null,null,null,null,null,null,null,null,null,"ΟΑ ΕΥΟΣΜΟΥ ΘΕΣ",150,"Β",null,null,null,null,null,"Ε3S-18-q8",0]
[null,null,null,null,null,null,null,null,null,null,null,null,null,null,null,null,null,null,null,null,null,null,null,"ΟΑ ΖΩΓΡΑΦΟΥ",353,"Η",null,null,null,null,null,"Ε3S-18-q16",0]
[null,null,null,null,null,null,null,null,null,null,null,null,null,null,null,null,null,null,null,null,null,null,null,"ΟΑ ΘΕΣΠΡΩΤΙΑΣ ΤΙΤΑΝΗ",218,"Δ",null,null,null,null,null,"Ε3S-18-q32",0]
[null,null,null,null,null,null,null,null,null,null,null,null,null,null,null,null,null,null,null,null,null,null,null,"ΟΑ ΘΕΣΣΑΛΟΝΙΚΗΣ",151,"Β",null,null,null,null,null,"Ε3S-18-q64",0]
[null,null,null,null,null,null,null,null,null,null,null,null,null,null,null,null,null,null,null,null,null,null,null,"ΟΑ ΘΗΒΑΣ",239,"Ε",null,null,null,null,null,"Ε3S-18-q128",0]
[null,null,null,null,null,null,null,null,null,null,null,null,null,null,null,null,null,null,null,null,null,null,null,"ΟΑ ΙΑΛΥΣΣΟΣ ΡΟΔΟΥ",389,"Θ",null,null,null,null,null,"Ε3S-18-q256",0]
[null,null,null,null,null,null,null,null,null,null,null,null,null,null,null,null,null,null,null,null,null,null,null,"ΟΑ ΙΩΑΝΝΙΝΩΝ",219,"Δ",null,null,null,null,null,"Ε3S-18-wo",0]
[null,null,null,null,null,null,null,null,null,null,null,null,null,null,null,null,null,null,null,null,null,null,null,"ΟΑ ΙΩΛΚΟΣ ΒΟΛΟΥ",240,"Ε",null,null,null,null,null,"Ε4S-12-1st",3.7]
[null,null,null,null,null,null,null,null,null,null,null,null,null,null,null,null,null,null,null,null,null,null,null,"ΟΑ κ Α ΜΑΛΙΩΝ",477,"Ζ",null,null,null,null,null,"Ε4S-12-2nd",3.2]
[null,null,null,null,null,null,null,null,null,null,null,null,null,null,null,null,null,null,null,null,null,null,null,"ΟΑ ΚΑΒΑΛΑΣ ΑΛΕΞΑΝΔΡΟΣ",114,"Α",null,null,null,null,null,"Ε4S-12-3_4",1.7]
[null,null,null,null,null,null,null,null,null,null,null,null,null,null,null,null,null,null,null,null,null,null,null,"ΟΑ ΚΑΛΑΜΑΚΙΟΥ",438,"ΙΑ",null,null,null,null,null,"Ε4S-12-5_8",1.2]
[null,null,null,null,null,null,null,null,null,null,null,null,null,null,null,null,null,null,null,null,null,null,null,"ΟΑ ΚΑΛΑΜΑΡΙΑΣ",152,"Β",null,null,null,null,null,"Ε4S-12-9_16",1]
[null,null,null,null,null,null,null,null,null,null,null,null,null,null,null,null,null,null,null,null,null,null,null,"ΟΑ ΚΑΛΑΜΑΤΑΣ",285,"ΣΤ",null,null,null,null,null,"Ε4S-12-17_32",0.5]
[null,null,null,null,null,null,null,null,null,null,null,null,null,null,null,null,null,null,null,null,null,null,null,"ΟΑ ΚΑΡΛΟΒΑΣΙΩΝ ΑΙΓΛΗΣ",391,"Θ",null,null,null,null,null,"Ε4S-12-33_64",0.2]
[null,null,null,null,null,null,null,null,null,null,null,null,null,null,null,null,null,null,null,null,null,null,null,"ΟΑ ΚΑΣΤΟΡΙΑΣ ΚΕΛΕΤΡΟΝ",190,"Γ",null,null,null,null,null,"Ε4S-12-65_128",0]
[null,null,null,null,null,null,null,null,null,null,null,null,null,null,null,null,null,null,null,null,null,null,null,"ΟΑ ΚΑΤΕΡΙΝΗΣ",191,"Γ",null,null,null,null,null,"Ε4S-12-q8",0]
[null,null,null,null,null,null,null,null,null,null,null,null,null,null,null,null,null,null,null,null,null,null,null,"ΟΑ ΚΕΡΑΤΣΙΝΙΟΥ",392,"Θ",null,null,null,null,null,"Ε4S-12-q16",0]
[null,null,null,null,null,null,null,null,null,null,null,null,null,null,null,null,null,null,null,null,null,null,null,"ΟΑ ΚΕΡΚΥΡΑΣ",220,"Δ",null,null,null,null,null,"Ε4S-12-q32",0]
[null,null,null,null,null,null,null,null,null,null,null,null,null,null,null,null,null,null,null,null,null,null,null,"ΟΑ ΚΙΛΚΙΣ",153,"Β",null,null,null,null,null,"Ε4S-12-q64",0]
[null,null,null,null,null,null,null,null,null,null,null,null,null,null,null,null,null,null,null,null,null,null,null,"ΟΑ ΚΟΡΙΝΘΟΥ",286,"ΣΤ",null,null,null,null,null,"Ε4S-12-q128",0]
[null,null,null,null,null,null,null,null,null,null,null,null,null,null,null,null,null,null,null,null,null,null,null,"ΟΑ ΚΟΡΩΠΙΟΥ",354,"Η",null,null,null,null,null,"Ε4S-12-q256",0]
[null,null,null,null,null,null,null,null,null,null,null,null,null,null,null,null,null,null,null,null,null,null,null,"ΟΑ ΚΟΥΦΑΛΙΩΝ",154,"Β",null,null,null,null,null,"Ε4S-12-wo",0]
[null,null,null,null,null,null,null,null,null,null,null,null,null,null,null,null,null,null,null,null,null,null,null,"ΟΑ ΚΩ",393,"Θ",null,null,null,null,null,"Ε4S-14-1st",7.5]
[null,null,null,null,null,null,null,null,null,null,null,null,null,null,null,null,null,null,null,null,null,null,null,"ΟΑ ΛΑΓΚΑΔΑ ΘΕΣ",155,"Β",null,null,null,null,null,"Ε4S-14-2nd",6.2]
[null,null,null,null,null,null,null,null,null,null,null,null,null,null,null,null,null,null,null,null,null,null,null,"ΟΑ ΛΑΜΙΑΣ",475,"Ε",null,null,null,null,null,"Ε4S-14-3_4",3.7]
[null,null,null,null,null,null,null,null,null,null,null,null,null,null,null,null,null,null,null,null,null,null,null,"ΟΑ ΛΑΡΙΣΑΣ",242,"Ε",null,null,null,null,null,"Ε4S-14-5_8",2.5]
[null,null,null,null,null,null,null,null,null,null,null,null,null,null,null,null,null,null,null,null,null,null,null,"ΟΑ ΛΑΥΡΙΟΥ",355,"Η",null,null,null,null,null,"Ε4S-14-9_16",1.8]
[null,null,null,null,null,null,null,null,null,null,null,null,null,null,null,null,null,null,null,null,null,null,null,"ΟΑ ΛΕΣΒΟΥ",394,"Θ",null,null,null,null,null,"Ε4S-14-17_32",1.2]
[null,null,null,null,null,null,null,null,null,null,null,null,null,null,null,null,null,null,null,null,null,null,null,"ΟΑ ΛΙΒΑΔΕΙΑΣ",243,"Ε",null,null,null,null,null,"Ε4S-14-33_64",0.5]
[null,null,null,null,null,null,null,null,null,null,null,null,null,null,null,null,null,null,null,null,null,null,null,"ΟΑ ΛΙΤΟΧΩΡΟΥ",192,"Γ",null,null,null,null,null,"Ε4S-14-65_128",0]
[null,null,null,null,null,null,null,null,null,null,null,null,null,null,null,null,null,null,null,null,null,null,null,"ΟΑ ΜΑΓΝΗΣΙΑΣ",244,"Ε",null,null,null,null,null,"Ε4S-14-q8",0]
[null,null,null,null,null,null,null,null,null,null,null,null,null,null,null,null,null,null,null,null,null,null,null,"ΟΑ ΜΕΛΙΣΣΙΩΝ",356,"Η",null,null,null,null,null,"Ε4S-14-q16",0]
[null,null,null,null,null,null,null,null,null,null,null,null,null,null,null,null,null,null,null,null,null,null,null,"ΟΑ ΝΑΟΥΣΑΣ",193,"Γ",null,null,null,null,null,"Ε4S-14-q32",0]
[null,null,null,null,null,null,null,null,null,null,null,null,null,null,null,null,null,null,null,null,null,null,null,"ΟΑ ΝΑΥΠΑΚΤΟΥ",287,"ΣΤ",null,null,null,null,null,"Ε4S-14-q64",0]
[null,null,null,null,null,null,null,null,null,null,null,null,null,null,null,null,null,null,null,null,null,null,null,"ΟΑ ΝΕΑΣ ΜΑΚΡΗΣ",357,"Η",null,null,null,null,null,"Ε4S-14-q128",0]
[null,null,null,null,null,null,null,null,null,null,null,null,null,null,null,null,null,null,null,null,null,null,null,"ΟΑ ΝΕΟΥ ΦΑΛΗΡΟΥ",495,"Θ",null,null,null,null,null,"Ε4S-14-q256",0]
[null,null,null,null,null,null,null,null,null,null,null,null,null,null,null,null,null,null,null,null,null,null,null,"ΟΑ ΝΕΣΤΩΡΑΣ ΓΙΑΝΝΙΤΣΩΝ",194,"Γ",null,null,null,null,null,"Ε4S-14-wo",0]
[null,null,null,null,null,null,null,null,null,null,null,null,null,null,null,null,null,null,null,null,null,null,null,"ΟΑ ΝΙΚΑΙΑ ΛΑΡΙΣΑΣ",245,"Ε",null,null,null,null,null,"Ε4S-16-1st",15]
[null,null,null,null,null,null,null,null,null,null,null,null,null,null,null,null,null,null,null,null,null,null,null,"ΟΑ ΞΑΝΘΗΣ",115,"Α",null,null,null,null,null,"Ε4S-16-2nd",12.5]
[null,null,null,null,null,null,null,null,null,null,null,null,null,null,null,null,null,null,null,null,null,null,null,"ΟΑ ΞΥΛΟΚΑΣΤΡΟΥ ΣΥΘΑΣ",288,"ΣΤ",null,null,null,null,null,"Ε4S-16-3_4",7.5]
[null,null,null,null,null,null,null,null,null,null,null,null,null,null,null,null,null,null,null,null,null,null,null,"ΟΑ Ο ΦΙΛΑΘΛΟΣ",486,"Η",null,null,null,null,null,"Ε4S-16-5_8",5]
[null,null,null,null,null,null,null,null,null,null,null,null,null,null,null,null,null,null,null,null,null,null,null,"ΟΑ ΟΡΕΣΤΙΑΔΑΣ",116,"Α",null,null,null,null,null,"Ε4S-16-9_16",4]
[null,null,null,null,null,null,null,null,null,null,null,null,null,null,null,null,null,null,null,null,null,null,null,"ΟΑ ΠΑΝΟΡΑΜΑΤΟΣ",462,"Β",null,null,null,null,null,"Ε4S-16-17_32",2.5]
[null,null,null,null,null,null,null,null,null,null,null,null,null,null,null,null,null,null,null,null,null,null,null,"ΟΑ ΠΑΡΟΥ",359,"Η",null,null,null,null,null,"Ε4S-16-33_64",1]
[null,null,null,null,null,null,null,null,null,null,null,null,null,null,null,null,null,null,null,null,null,null,null,"ΟΑ ΠΕΙΡΑΙΑ",396,"Θ",null,null,null,null,null,"Ε4S-16-65_128",0]
[null,null,null,null,null,null,null,null,null,null,null,null,null,null,null,null,null,null,null,null,null,null,null,"ΟΑ ΠΕΤΑΛΟΥΔΩΝ",397,"Θ",null,null,null,null,null,"Ε4S-16-q8",0]
[null,null,null,null,null,null,null,null,null,null,null,null,null,null,null,null,null,null,null,null,null,null,null,"ΟΑ ΠΕΤΡΟΥΠΟΛ ΠΛΕΟΝΕΚΤΗΜΑ",449,"Θ",null,null,null,null,null,"Ε4S-16-q16",0]
[null,null,null,null,null,null,null,null,null,null,null,null,null,null,null,null,null,null,null,null,null,null,null,"ΟΑ ΠΕΤΡΟΥΠΟΛΗΣ",398,"Θ",null,null,null,null,null,"Ε4S-16-q32",0]
[null,null,null,null,null,null,null,null,null,null,null,null,null,null,null,null,null,null,null,null,null,null,null,"ΟΑ ΠΟΛΙΧΝΗΣ ΑΝΤΑΙΟΣ",157,"Β",null,null,null,null,null,"Ε4S-16-q64",0]
[null,null,null,null,null,null,null,null,null,null,null,null,null,null,null,null,null,null,null,null,null,null,null,"ΟΑ ΠΟΛΥΓΥΡΟΥ ΧΑΛΚΙΔΙΚΗΣ",158,"Β",null,null,null,null,null,"Ε4S-16-q128",0]
[null,null,null,null,null,null,null,null,null,null,null,null,null,null,null,null,null,null,null,null,null,null,null,"ΟΑ ΠΟΛΥΚΑΣΤΡΟΥ",159,"Β",null,null,null,null,null,"Ε4S-16-q256",0]
[null,null,null,null,null,null,null,null,null,null,null,null,null,null,null,null,null,null,null,null,null,null,null,"ΟΑ ΠΤΟΛΕΜΑΪΔΑΣ",195,"Γ",null,null,null,null,null,"Ε4S-16-wo",0]
[null,null,null,null,null,null,null,null,null,null,null,null,null,null,null,null,null,null,null,null,null,null,null,"ΟΑ ΡΕΘΥΜΝΟΥ",307,"Ζ",null,null,null,null,null,"Ε4S-18-17_32",0]
[null,null,null,null,null,null,null,null,null,null,null,null,null,null,null,null,null,null,null,null,null,null,null,"ΟΑ ΡΙΟΥ",289,"ΣΤ",null,null,null,null,null,"Ε4S-18-1st",0]
[null,null,null,null,null,null,null,null,null,null,null,null,null,null,null,null,null,null,null,null,null,null,null,"ΟΑ ΣΑΛΑΜΙΝΑΣ",399,"Θ",null,null,null,null,null,"Ε4S-18-2nd",0]
[null,null,null,null,null,null,null,null,null,null,null,null,null,null,null,null,null,null,null,null,null,null,null,"ΟΑ ΣΕΡΡΩΝ",117,"Α",null,null,null,null,null,"Ε4S-18-3_4",0]
[null,null,null,null,null,null,null,null,null,null,null,null,null,null,null,null,null,null,null,null,null,null,null,"ΟΑ ΣΗΤΕΙΑΣ",308,"Ζ",null,null,null,null,null,"Ε4S-18-33_64",0]
[null,null,null,null,null,null,null,null,null,null,null,null,null,null,null,null,null,null,null,null,null,null,null,"ΟΑ ΣΚΙΑΘΟΥ",246,"Ε",null,null,null,null,null,"Ε4S-18-5_8",0]
[null,null,null,null,null,null,null,null,null,null,null,null,null,null,null,null,null,null,null,null,null,null,null,"ΟΑ ΣΚΥΔΡΑΣ",196,"Γ",null,null,null,null,null,"Ε4S-18-9_16",0]
[null,null,null,null,null,null,null,null,null,null,null,null,null,null,null,null,null,null,null,null,null,null,null,"ΟΑ ΣΟΥΔΑΣ",309,"Ζ",null,null,null,null,null,"Ε4S-18-q8",0]
[null,null,null,null,null,null,null,null,null,null,null,null,null,null,null,null,null,null,null,null,null,null,null,"ΟΑ ΣΟΥΡΩΤΗΣ ΑΛΕΞΑΝΔΡΟΣ",160,"Β",null,null,null,null,null,"Ε4S-18-q16",0]
[null,null,null,null,null,null,null,null,null,null,null,null,null,null,null,null,null,null,null,null,null,null,null,"ΟΑ ΣΟΦΑΔΩΝ ΟΛΥΜΠΙΑΔΑ",247,"Ε",null,null,null,null,null,"Ε4S-18-q32",0]
[null,null,null,null,null,null,null,null,null,null,null,null,null,null,null,null,null,null,null,null,null,null,null,"ΟΑ ΣΠΑΡΤΗΣ",290,"ΣΤ",null,null,null,null,null,"Ε4S-18-q64",0]
[null,null,null,null,null,null,null,null,null,null,null,null,null,null,null,null,null,null,null,null,null,null,null,"ΟΑ ΣΤΑΥΡΟΥ ΑΣΠΡΟΒΑΛΤΑΣ",161,"Β",null,null,null,null,null,"Ε4S-18-q128",0]
[null,null,null,null,null,null,null,null,null,null,null,null,null,null,null,null,null,null,null,null,null,null,null,"ΟΑ ΣΥΡΟΥ",360,"Η",null,null,null,null,null,"Ε4S-18-q256",0]
[null,null,null,null,null,null,null,null,null,null,null,null,null,null,null,null,null,null,null,null,null,null,null,"ΟΑ ΤΟΥΜΠΑΣ",162,"Β",null,null,null,null,null,"Ε4S-18-wo",0]
[null,null,null,null,null,null,null,null,null,null,null,null,null,null,null,null,null,null,null,null,null,null,null,"ΟΑ ΤΡΙΚΑΛΩΝ",248,"Ε"]
[null,null,null,null,null,null,null,null,null,null,null,null,null,null,null,null,null,null,null,null,null,null,null,"ΟΑ ΦΑΡΣΑΛΩΝ",249,"Ε",null,null,null,null,null,"ΠανS-12-1st",60]
[null,null,null,null,null,null,null,null,null,null,null,null,null,null,null,null,null,null,null,null,null,null,null,"ΟΑ ΦΟΙΒΟΣ ΛΑΡΙΣΑΣ",250,"Ε",null,null,null,null,null,"ΠανS-12-2nd",50]
[null,null,null,null,null,null,null,null,null,null,null,null,null,null,null,null,null,null,null,null,null,null,null,"ΟΑ ΦΩΚΙΔΑΣ",251,"Ε",null,null,null,null,null,"ΠανS-12-3_4",30]
[null,null,null,null,null,null,null,null,null,null,null,null,null,null,null,null,null,null,null,null,null,null,null,"ΟΑ ΧΑΛΚΙΔΑΣ",400,"Θ",null,null,null,null,null,"ΠανS-12-5_8",20]
[null,null,null,null,null,null,null,null,null,null,null,null,null,null,null,null,null,null,null,null,null,null,null,"ΟΑ ΧΑΝΙΩΝ",310,"Ζ",null,null,null,null,null,"ΠανS-12-9_16",15]
[null,null,null,null,null,null,null,null,null,null,null,null,null,null,null,null,null,null,null,null,null,null,null,"ΟΑ ΧΕΡΣΟΝΗΣΟΥ",311,"Ζ",null,null,null,null,null,"ΠανS-12-17_32",10]
[null,null,null,null,null,null,null,null,null,null,null,null,null,null,null,null,null,null,null,null,null,null,null,"ΟΑ ΧΙΟΥ",361,"Η",null,null,null,null,null,"ΠανS-12-33_64",5]
[null,null,null,null,null,null,null,null,null,null,null,null,null,null,null,null,null,null,null,null,null,null,null,"ΟΑ ΧΟΛΑΡΓΟΥ",439,"ΙΑ",null,null,null,null,null,"ΠανS-12-65_128",0]
[null,null,null,null,null,null,null,null,null,null,null,null,null,null,null,null,null,null,null,null,null,null,null,"ΟΑ ΧΡΥΣΟΥΠΟΛΗΣ",456,"Α",null,null,null,null,null,"ΠανS-12-q16",2.5]
[null,null,null,null,null,null,null,null,null,null,null,null,null,null,null,null,null,null,null,null,null,null,null,"ΟΑ ΩΡΑΙΟΚΑΣΤΡΟΥ ΑΝΤΑΙΟΣ",163,"Β",null,null,null,null,null,"ΠανS-12-q32",2.5]
[null,null,null,null,null,null,null,null,null,null,null,null,null,null,null,null,null,null,null,null,null,null,null,"ΟΛΥΜΠΙΑΚΟΣ ΣΦΠ",401,"Θ",null,null,null,null,null,"ΠανS-12-q64",1.5]
[null,null,null,null,null,null,null,null,null,null,null,null,null,null,null,null,null,null,null,null,null,null,null,"ΟΠ ΘΕΣ ΜΑΚΕΔΟΝΙΑ 92",164,"Β",null,null,null,null,null,"ΠανS-12-q16/2",1.3]
[null,null,null,null,null,null,null,null,null,null,null,null,null,null,null,null,null,null,null,null,null,null,null,"ΟΦΑ ΜΑΚΕΔΟΝΙΑΣ ΠΗΓΑΣΟΣ",450,"Β",null,null,null,null,null,"ΠανS-12-q128",1]
[null,null,null,null,null,null,null,null,null,null,null,null,null,null,null,null,null,null,null,null,null,null,null,"ΟΦΑ Ο ΦΟΙΒΟΣ",221,"Δ",null,null,null,null,null,"ΠανS-12-q256",0.5]
[null,null,null,null,null,null,null,null,null,null,null,null,null,null,null,null,null,null,null,null,null,null,null,"ΟΦΤ ΠΥΡΓΟΥ",291,"ΣΤ",null,null,null,null,null,"ΠανS-12-q",0]
[null,null,null,null,null,null,null,null,null,null,null,null,null,null,null,null,null,null,null,null,null,null,null,"ΠΑΝΕΛΛΗΝΙΟΣ ΓΣ",402,"Θ",null,null,null,null,null,"ΠανS-12-q8",0]
[null,null,null,null,null,null,null,null,null,null,null,null,null,null,null,null,null,null,null,null,null,null,null,"ΠΑΝΘΡΑΚΙΚΟΣ ΟΑ ΚΟΜΟΤΗΝΗΣ",119,"Α",null,null,null,null,null,"ΠανS-12-wo",0]
[null,null,null,null,null,null,null,null,null,null,null,null,null,null,null,null,null,null,null,null,null,null,null,"ΠΕΥΚΗ Γ ΚΑΛΟΒΕΛΩΝΗΣ",362,"Η",null,null,null,null,null,"ΠανD-12-1st",15]
[null,null,null,null,null,null,null,null,null,null,null,null,null,null,null,null,null,null,null,null,null,null,null,"ΠΣ ΑΜΠΕΛΩΝΟΣ ΦΙΛΙΠΠΙΔΗΣ",252,"Ε",null,null,null,null,null,"ΠανD-12-2nd",12.5]
[null,null,null,null,null,null,null,null,null,null,null,null,null,null,null,null,null,null,null,null,null,null,null,"ΠΦΟ ΡΑΧΗΣ",467,"Γ",null,null,null,null,null,"ΠανD-12-3_4",10]
[null,null,null,null,null,null,null,null,null,null,null,null,null,null,null,null,null,null,null,null,null,null,null,"ΡΗΓΑΣ ΑΟΑ ΑΡΓΟΛΙΔΑΣ",292,"ΣΤ",null,null,null,null,null,"ΠανD-12-5_8",6.5]
[null,null,null,null,null,null,null,null,null,null,null,null,null,null,null,null,null,null,null,null,null,null,null,"ΡΟΔΙΑΚΗ ΑΚΑΔ ΑΝΤΙΣΦ",403,"Θ",null,null,null,null,null,"ΠανD-12-9_16",4]
[null,null,null,null,null,null,null,null,null,null,null,null,null,null,null,null,null,null,null,null,null,null,null,"ΡΟΔΙΑΚΟΣ ΟΑ",404,"Θ",null,null,null,null,null,"ΠανD-12-17_32",2]
[null,null,null,null,null,null,null,null,null,null,null,null,null,null,null,null,null,null,null,null,null,null,null,"ΣΑ ΓΑΛΑΤΣΙΟΥ",405,"Θ",null,null,null,null,null,"ΠανD-12-33_64",0]
[null,null,null,null,null,null,null,null,null,null,null,null,null,null,null,null,null,null,null,null,null,null,null,"ΣΑ ΔΡΑΜΑΣ",120,"Α",null,null,null,null,null,"ΠανD-12-q",0]
[null,null,null,null,null,null,null,null,null,null,null,null,null,null,null,null,null,null,null,null,null,null,null,"ΣΑ ΕΛΑΣΣΟΝΑΣ",253,"Ε",null,null,null,null,null,"ΠανD-12-q8",0]
[null,null,null,null,null,null,null,null,null,null,null,null,null,null,null,null,null,null,null,null,null,null,null,"ΣΑ ΚΑΣΤΟΡΙΑΣ ΠΡΩΤΕΑΣ",198,"Γ",null,null,null,null,null,"ΠανD-12-q16",0]
[null,null,null,null,null,null,null,null,null,null,null,null,null,null,null,null,null,null,null,null,null,null,null,"ΣΑ ΚΑΤΕΡΙΝΗΣ",199,"Γ",null,null,null,null,null,"ΠανD-12-q32",0]
[null,null,null,null,null,null,null,null,null,null,null,null,null,null,null,null,null,null,null,null,null,null,null,"ΣΑ ΜΕΣΣΗΝΗΣ",293,"ΣΤ",null,null,null,null,null,"ΠανD-12-q64",0]
[null,null,null,null,null,null,null,null,null,null,null,null,null,null,null,null,null,null,null,null,null,null,null,"ΣΑ ΡΑΦΗΝΑΣ",363,"Η",null,null,null,null,null,"ΠανD-12-q128",0]
[null,null,null,null,null,null,null,null,null,null,null,null,null,null,null,null,null,null,null,null,null,null,null,"ΣΑ ΣΕΡΡΩΝ",121,"Α",null,null,null,null,null,"ΠανD-12-wo",0]
[null,null,null,null,null,null,null,null,null,null,null,null,null,null,null,null,null,null,null,null,null,null,null,"ΣΑ ΣΚΥΔΡΑΣ",200,"Γ",null,null,null,null,null,"ΠανS-14-1st",120]
[null,null,null,null,null,null,null,null,null,null,null,null,null,null,null,null,null,null,null,null,null,null,null,"ΣΑ ΤΡΙΠΟΛΗΣ",294,"ΣΤ",null,null,null,null,null,"ΠανS-14-2nd",100]
[null,null,null,null,null,null,null,null,null,null,null,null,null,null,null,null,null,null,null,null,null,null,null,"ΣΑΑΚ ΑΝΑΤΟΛΙΑ",166,"Β",null,null,null,null,null,"ΠανS-14-3_4",60]
[null,null,null,null,null,null,null,null,null,null,null,null,null,null,null,null,null,null,null,null,null,null,null,"ΣΕΡΡΑΪΚΟΣ ΟΑ",122,"Α",null,null,null,null,null,"ΠανS-14-5_8",40]
[null,null,null,null,null,null,null,null,null,null,null,null,null,null,null,null,null,null,null,null,null,null,null,"ΣΟΑ ΚΑΡΔΙΤΣΑΣ ΦΩΚΙΑΝΟΣ",254,"Ε",null,null,null,null,null,"ΠανS-14-9_16",30]
[null,null,null,null,null,null,null,null,null,null,null,null,null,null,null,null,null,null,null,null,null,null,null,"ΣΟΙΣ ΝΕΑ ΠΝΟΗ",457,"Α",null,null,null,null,null,"ΠανS-14-17_32",20]
[null,null,null,null,null,null,null,null,null,null,null,null,null,null,null,null,null,null,null,null,null,null,null,"ΣΦΑ ΜΕΛΙΣΣΙΩΝ Ο ΦΟΙΒΟΣ",364,"Η",null,null,null,null,null,"ΠανS-14-33_64",10]
[null,null,null,null,null,null,null,null,null,null,null,null,null,null,null,null,null,null,null,null,null,null,null,"ΣΦΑ ΧΕΡΣΟΝΗΣΟΥ",452,"Ζ",null,null,null,null,null,"ΠανS-14-65_128",0]
[null,null,null,null,null,null,null,null,null,null,null,null,null,null,null,null,null,null,null,null,null,null,null,"ΣΦΦΑ Η ΑΜΙΛΛΑ",255,"Ε",null,null,null,null,null,"ΠανS-14-q16",5]
[null,null,null,null,null,null,null,null,null,null,null,null,null,null,null,null,null,null,null,null,null,null,null,"ΦΑ ΕΚΑΛΗΣ ΛΟΥΜΠΙΕ",365,"Η",null,null,null,null,null,"ΠανS-14-q32",5]
[null,null,null,null,null,null,null,null,null,null,null,null,null,null,null,null,null,null,null,null,null,null,null,"ΦΘΙΩΤΙΚΟΣ ΟΑ",256,"Ε",null,null,null,null,null,"ΠανS-14-q64",3]
[null,null,null,null,null,null,null,null,null,null,null,null,null,null,null,null,null,null,null,null,null,null,null,"ΦΙΛΑΘΛ ΓΣ ΣΠΑΡΤΗΣ",295,"ΣΤ",null,null,null,null,null,"ΠανS-14-q16/2",2.5]
[null,null,null,null,null,null,null,null,null,null,null,null,null,null,null,null,null,null,null,null,null,null,null,"ΦΙΛΑΘΛΗΤ ΣΥΛ ΛΑΜΙΑΣ",257,"Ε",null,null,null,null,null,"ΠανS-14-q128",2]
[null,null,null,null,null,null,null,null,null,null,null,null,null,null,null,null,null,null,null,null,null,null,null,"ΦΙΛΙΑ ΤΚ",312,"Ζ",null,null,null,null,null,"ΠανS-14-q256",1]
[null,null,null,null,null,null,null,null,null,null,null,null,null,null,null,null,null,null,null,null,null,null,null,"ΦΟ ΝΑΥΠΑΚΤΟΥ ΟΜΟΝΟΙΑ",296,"ΣΤ",null,null,null,null,null,"ΠανS-14-q",0]
[null,null,null,null,null,null,null,null,null,null,null,null,null,null,null,null,null,null,null,null,null,null,null,"ΦΟ ΠΥΡΓΟΥ",297,"ΣΤ",null,null,null,null,null,"ΠανS-14-q8",0]
[null,null,null,null,null,null,null,null,null,null,null,null,null,null,null,null,null,null,null,null,null,null,null,"ΦΟΑ ΝΕΑΠΟΛΗΣ",167,"Β",null,null,null,null,null,"ΠανS-14-wo",0]
[null,null,null,null,null,null,null,null,null,null,null,null,null,null,null,null,null,null,null,null,null,null,null,"ΦΣ ΚΑΛΛΙΘΕΑΣ",406,"Θ",null,null,null,null,null,"ΠανD-14-1st",30]
[null,null,null,null,null,null,null,null,null,null,null,null,null,null,null,null,null,null,null,null,null,null,null,"ΧΑΝ ΘΕΣΣΑΛΟΝΙΚΗΣ",168,"Β",null,null,null,null,null,"ΠανD-14-2nd",25]
[null,null,null,null,null,null,null,null,null,null,null,null,null,null,null,null,null,null,null,null,null,null,null,"ΧΡΥΣΟΣ ΟΑ",281,"ΣΤ",null,null,null,null,null,"ΠανD-14-3_4",20]
[null,null,null,null,null,null,null,null,null,null,null,null,null,null,null,null,null,null,null,null,null,null,null,null,null,null,null,null,null,null,null,"ΠανD-14-5_8",13]
[null,null,null,null,null,null,null,null,null,null,null,null,null,null,null,null,null,null,null,null,null,null,null,null,null,null,null,null,null,null,null,"ΠανD-14-9_16",8]
[null,null,null,null,null,null,null,null,null,null,null,null,null,null,null,null,null,null,null,null,null,null,null,null,null,null,null,null,null,null,null,"ΠανD-14-17_32",4]
[null,null,null,null,null,null,null,null,null,null,null,null,null,null,null,null,null,null,null,null,null,null,null,null,null,null,null,null,null,null,null,"ΠανD-14-33_64",0]
[null,null,null,null,null,null,null,null,null,null,null,null,null,null,null,null,null,null,null,null,null,null,null,null,null,null,null,null,null,null,null,"ΠανD-14-q",0]
[null,null,null,null,null,null,null,null,null,null,null,null,null,null,null,null,null,null,null,null,null,null,null,null,null,null,null,null,null,null,null,"ΠανD-14-q8",0]
[null,null,null,null,null,null,null,null,null,null,null,null,null,null,null,null,null,null,null,null,null,null,null,null,null,null,null,null,null,null,null,"ΠανD-14-q16",0]
[null,null,null,null,null,null,null,null,null,null,null,null,null,null,null,null,null,null,null,null,null,null,null,null,null,null,null,null,null,null,null,"ΠανD-14-q32",0]
[null,null,null,null,null,null,null,null,null,null,null,null,null,null,null,null,null,null,null,null,null,null,null,null,null,null,null,null,null,null,null,"ΠανD-14-q64",0]
[null,null,null,null,null,null,null,null,null,null,null,null,null,null,null,null,null,null,null,null,null,null,null,null,null,null,null,null,null,null,null,"ΠανD-14-q128",0]
[null,null,null,null,null,null,null,null,null,null,null,null,null,null,null,null,null,null,null,null,null,null,null,null,null,null,null,null,null,null,null,"ΠανD-14-wo",0]
[null,null,null,null,null,null,null,null,null,null,null,null,null,null,null,null,null,null,null,null,null,null,null,null,null,null,null,null,null,null,null,"ΠανS-16-1st",240]
[null,null,null,null,null,null,null,null,null,null,null,null,null,null,null,null,null,null,null,null,null,null,null,null,null,null,null,null,null,null,null,"ΠανS-16-2nd",200]
[null,null,null,null,null,null,null,null,null,null,null,null,null,null,null,null,null,null,null,null,null,null,null,null,null,null,null,null,null,null,null,"ΠανS-16-3_4",120]
[null,null,null,null,null,null,null,null,null,null,null,null,null,null,null,null,null,null,null,null,null,null,null,null,null,null,null,null,null,null,null,"ΠανS-16-5_8",80]
[null,null,null,null,null,null,null,null,null,null,null,null,null,null,null,null,null,null,null,null,null,null,null,null,null,null,null,null,null,null,null,"ΠανS-16-9_16",60]
[null,null,null,null,null,null,null,null,null,null,null,null,null,null,null,null,null,null,null,null,null,null,null,null,null,null,null,null,null,null,null,"ΠανS-16-17_32",40]
[null,null,null,null,null,null,null,null,null,null,null,null,null,null,null,null,null,null,null,null,null,null,null,null,null,null,null,null,null,null,null,"ΠανS-16-33_64",20]
[null,null,null,null,null,null,null,null,null,null,null,null,null,null,null,null,null,null,null,null,null,null,null,null,null,null,null,null,null,null,null,"ΠανS-16-65_128",0]
[null,null,null,null,null,null,null,null,null,null,null,null,null,null,null,null,null,null,null,null,null,null,null,null,null,null,null,null,null,null,null,"ΠανS-16-q16",10]
[null,null,null,null,null,null,null,null,null,null,null,null,null,null,null,null,null,null,null,null,null,null,null,null,null,null,null,null,null,null,null,"ΠανS-16-q32",10]
[null,null,null,null,null,null,null,null,null,null,null,null,null,null,null,null,null,null,null,null,null,null,null,null,null,null,null,null,null,null,null,"ΠανS-16-q64",6]
[null,null,null,null,null,null,null,null,null,null,null,null,null,null,null,null,null,null,null,null,null,null,null,null,null,null,null,null,null,null,null,"ΠανS-16-q16/2",5]
[null,null,null,null,null,null,null,null,null,null,null,null,null,null,null,null,null,null,null,null,null,null,null,null,null,null,null,null,null,null,null,"ΠανS-16-q128",4]
[null,null,null,null,null,null,null,null,null,null,null,null,null,null,null,null,null,null,null,null,null,null,null,null,null,null,null,null,null,null,null,"ΠανS-16-q256",2]
[null,null,null,null,null,null,null,null,null,null,null,null,null,null,null,null,null,null,null,null,null,null,null,null,null,null,null,null,null,null,null,"ΠανS-16-q",0]
[null,null,null,null,null,null,null,null,null,null,null,null,null,null,null,null,null,null,null,null,null,null,null,null,null,null,null,null,null,null,null,"ΠανS-16-q8",0]
[null,null,null,null,null,null,null,null,null,null,null,null,null,null,null,null,null,null,null,null,null,null,null,null,null,null,null,null,null,null,null,"ΠανS-16-wo",0]
[null,null,null,null,null,null,null,null,null,null,null,null,null,null,null,null,null,null,null,null,null,null,null,null,null,null,null,null,null,null,null,"ΠανD-16-1st",60]
[null,null,null,null,null,null,null,null,null,null,null,null,null,null,null,null,null,null,null,null,null,null,null,null,null,null,null,null,null,null,null,"ΠανD-16-2nd",50]
[null,null,null,null,null,null,null,null,null,null,null,null,null,null,null,null,null,null,null,null,null,null,null,null,null,null,null,null,null,null,null,"ΠανD-16-3_4",40]
[null,null,null,null,null,null,null,null,null,null,null,null,null,null,null,null,null,null,null,null,null,null,null,null,null,null,null,null,null,null,null,"ΠανD-16-5_8",26]
[null,null,null,null,null,null,null,null,null,null,null,null,null,null,null,null,null,null,null,null,null,null,null,null,null,null,null,null,null,null,null,"ΠανD-16-9_16",16]
[null,null,null,null,null,null,null,null,null,null,null,null,null,null,null,null,null,null,null,null,null,null,null,null,null,null,null,null,null,null,null,"ΠανD-16-17_32",8]
[null,null,null,null,null,null,null,null,null,null,null,null,null,null,null,null,null,null,null,null,null,null,null,null,null,null,null,null,null,null,null,"ΠανD-16-33_64",0]
[null,null,null,null,null,null,null,null,null,null,null,null,null,null,null,null,null,null,null,null,null,null,null,null,null,null,null,null,null,null,null,"ΠανD-16-q",0]
[null,null,null,null,null,null,null,null,null,null,null,null,null,null,null,null,null,null,null,null,null,null,null,null,null,null,null,null,null,null,null,"ΠανD-16-q8",0]
[null,null,null,null,null,null,null,null,null,null,null,null,null,null,null,null,null,null,null,null,null,null,null,null,null,null,null,null,null,null,null,"ΠανD-16-q16",0]
[null,null,null,null,null,null,null,null,null,null,null,null,null,null,null,null,null,null,null,null,null,null,null,null,null,null,null,null,null,null,null,"ΠανD-16-q32",0]
[null,null,null,null,null,null,null,null,null,null,null,null,null,null,null,null,null,null,null,null,null,null,null,null,null,null,null,null,null,null,null,"ΠανD-16-q64",0]
[null,null,null,null,null,null,null,null,null,null,null,null,null,null,null,null,null,null,null,null,null,null,null,null,null,null,null,null,null,null,null,"ΠανD-16-q128",0]
[null,null,null,null,null,null,null,null,null,null,null,null,null,null,null,null,null,null,null,null,null,null,null,null,null,null,null,null,null,null,null,"ΠανD-16-wo",0]
[null,null,null,null,null,null,null,null,null,null,null,null,null,null,null,null,null,null,null,null,null,null,null,null,null,null,null,null,null,null,null,"ΠανS-18-1st",300]
[null,null,null,null,null,null,null,null,null,null,null,null,null,null,null,null,null,null,null,null,null,null,null,null,null,null,null,null,null,null,null,"ΠανS-18-2nd",250]
[null,null,null,null,null,null,null,null,null,null,null,null,null,null,null,null,null,null,null,null,null,null,null,null,null,null,null,null,null,null,null,"ΠανS-18-3_4",150]
[null,null,null,null,null,null,null,null,null,null,null,null,null,null,null,null,null,null,null,null,null,null,null,null,null,null,null,null,null,null,null,"ΠανS-18-5_8",100]
[null,null,null,null,null,null,null,null,null,null,null,null,null,null,null,null,null,null,null,null,null,null,null,null,null,null,null,null,null,null,null,"ΠανS-18-9_16",75]
[null,null,null,null,null,null,null,null,null,null,null,null,null,null,null,null,null,null,null,null,null,null,null,null,null,null,null,null,null,null,null,"ΠανS-18-17_32",50]
[null,null,null,null,null,null,null,null,null,null,null,null,null,null,null,null,null,null,null,null,null,null,null,null,null,null,null,null,null,null,null,"ΠανS-18-33_64",25]
[null,null,null,null,null,null,null,null,null,null,null,null,null,null,null,null,null,null,null,null,null,null,null,null,null,null,null,null,null,null,null,"ΠανS-18-65_128",0]
[null,null,null,null,null,null,null,null,null,null,null,null,null,null,null,null,null,null,null,null,null,null,null,null,null,null,null,null,null,null,null,"ΠανS-18-q16",12.5]
[null,null,null,null,null,null,null,null,null,null,null,null,null,null,null,null,null,null,null,null,null,null,null,null,null,null,null,null,null,null,null,"ΠανS-18-q32",12.5]
[null,null,null,null,null,null,null,null,null,null,null,null,null,null,null,null,null,null,null,null,null,null,null,null,null,null,null,null,null,null,null,"ΠανS-18-q64",7.5]
[null,null,null,null,null,null,null,null,null,null,null,null,null,null,null,null,null,null,null,null,null,null,null,null,null,null,null,null,null,null,null,"ΠανS-18-q16/2",6.3]
[null,null,null,null,null,null,null,null,null,null,null,null,null,null,null,null,null,null,null,null,null,null,null,null,null,null,null,null,null,null,null,"ΠανS-18-q128",5]
[null,null,null,null,null,null,null,null,null,null,null,null,null,null,null,null,null,null,null,null,null,null,null,null,null,null,null,null,null,null,null,"ΠανS-18-q256",2.5]
[null,null,null,null,null,null,null,null,null,null,null,null,null,null,null,null,null,null,null,null,null,null,null,null,null,null,null,null,null,null,null,"ΠανS-18-q",0]
[null,null,null,null,null,null,null,null,null,null,null,null,null,null,null,null,null,null,null,null,null,null,null,null,null,null,null,null,null,null,null,"ΠανS-18-q8",0]
[null,null,null,null,null,null,null,null,null,null,null,null,null,null,null,null,null,null,null,null,null,null,null,null,null,null,null,null,null,null,null,"ΠανS-18-wo",0]
[null,null,null,null,null,null,null,null,null,null,null,null,null,null,null,null,null,null,null,null,null,null,null,null,null,null,null,null,null,null,null,"ΠανD-18-1st",75]
[null,null,null,null,null,null,null,null,null,null,null,null,null,null,null,null,null,null,null,null,null,null,null,null,null,null,null,null,null,null,null,"ΠανD-18-2nd",62.5]
[null,null,null,null,null,null,null,null,null,null,null,null,null,null,null,null,null,null,null,null,null,null,null,null,null,null,null,null,null,null,null,"ΠανD-18-3_4",50]
[null,null,null,null,null,null,null,null,null,null,null,null,null,null,null,null,null,null,null,null,null,null,null,null,null,null,null,null,null,null,null,"ΠανD-18-5_8",32.5]
[null,null,null,null,null,null,null,null,null,null,null,null,null,null,null,null,null,null,null,null,null,null,null,null,null,null,null,null,null,null,null,"ΠανD-18-9_16",20]
[null,null,null,null,null,null,null,null,null,null,null,null,null,null,null,null,null,null,null,null,null,null,null,null,null,null,null,null,null,null,null,"ΠανD-18-17_32",10]
[null,null,null,null,null,null,null,null,null,null,null,null,null,null,null,null,null,null,null,null,null,null,null,null,null,null,null,null,null,null,null,"ΠανD-18-33_64",0]
[null,null,null,null,null,null,null,null,null,null,null,null,null,null,null,null,null,null,null,null,null,null,null,null,null,null,null,null,null,null,null,"ΠανD-18-q",0]
[null,null,null,null,null,null,null,null,null,null,null,null,null,null,null,null,null,null,null,null,null,null,null,null,null,null,null,null,null,null,null,"ΠανD-18-q8",0]
[null,null,null,null,null,null,null,null,null,null,null,null,null,null,null,null,null,null,null,null,null,null,null,null,null,null,null,null,null,null,null,"ΠανD-18-q16",0]
[null,null,null,null,null,null,null,null,null,null,null,null,null,null,null,null,null,null,null,null,null,null,null,null,null,null,null,null,null,null,null,"ΠανD-18-q32",0]
[null,null,null,null,null,null,null,null,null,null,null,null,null,null,null,null,null,null,null,null,null,null,null,null,null,null,null,null,null,null,null,"ΠανD-18-q64",0]
[null,null,null,null,null,null,null,null,null,null,null,null,null,null,null,null,null,null,null,null,null,null,null,null,null,null,null,null,null,null,null,"ΠανD-18-q128",0]
[null,null,null,null,null,null,null,null,null,null,null,null,null,null,null,null,null,null,null,null,null,null,null,null,null,null,null,null,null,null,null,"ΠανD-18-wo",0]
[]
[null,null,null,null,null,null,null,null,null,null,null,null,null,null,null,null,null,null,null,null,null,null,null,null,null,null,null,null,null,null,null,"Mas-12-1st",40]
[null,null,null,null,null,null,null,null,null,null,null,null,null,null,null,null,null,null,null,null,null,null,null,null,null,null,null,null,null,null,null,"Mas-12-2nd",35]
[null,null,null,null,null,null,null,null,null,null,null,null,null,null,null,null,null,null,null,null,null,null,null,null,null,null,null,null,null,null,null,"Mas-12-3ος",30]
[null,null,null,null,null,null,null,null,null,null,null,null,null,null,null,null,null,null,null,null,null,null,null,null,null,null,null,null,null,null,null,"Mas-12-4ος",25]
[null,null,null,null,null,null,null,null,null,null,null,null,null,null,null,null,null,null,null,null,null,null,null,null,null,null,null,null,null,null,null,"Mas-12-5ος",20]
[null,null,null,null,null,null,null,null,null,null,null,null,null,null,null,null,null,null,null,null,null,null,null,null,null,null,null,null,null,null,null,"Mas-12-6ος",15]
[null,null,null,null,null,null,null,null,null,null,null,null,null,null,null,null,null,null,null,null,null,null,null,null,null,null,null,null,null,null,null,"Mas-12-7ος",10]
[null,null,null,null,null,null,null,null,null,null,null,null,null,null,null,null,null,null,null,null,null,null,null,null,null,null,null,null,null,null,null,"Mas-12-8ος",5]
[null,null,null,null,null,null,null,null,null,null,null,null,null,null,null,null,null,null,null,null,null,null,null,null,null,null,null,null,null,null,null,"Mas-12-wo",0]
[null,null,null,null,null,null,null,null,null,null,null,null,null,null,null,null,null,null,null,null,null,null,null,null,null,null,null,null,null,null,null,"Mas-14-1st",80]
[null,null,null,null,null,null,null,null,null,null,null,null,null,null,null,null,null,null,null,null,null,null,null,null,null,null,null,null,null,null,null,"Mas-14-2nd",70]
[null,null,null,null,null,null,null,null,null,null,null,null,null,null,null,null,null,null,null,null,null,null,null,null,null,null,null,null,null,null,null,"Mas-14-3ος",60]
[null,null,null,null,null,null,null,null,null,null,null,null,null,null,null,null,null,null,null,null,null,null,null,null,null,null,null,null,null,null,null,"Mas-14-4ος",50]
[null,null,null,null,null,null,null,null,null,null,null,null,null,null,null,null,null,null,null,null,null,null,null,null,null,null,null,null,null,null,null,"Mas-14-5ος",40]
[null,null,null,null,null,null,null,null,null,null,null,null,null,null,null,null,null,null,null,null,null,null,null,null,null,null,null,null,null,null,null,"Mas-14-6ος",30]
[null,null,null,null,null,null,null,null,null,null,null,null,null,null,null,null,null,null,null,null,null,null,null,null,null,null,null,null,null,null,null,"Mas-14-7ος",20]
[null,null,null,null,null,null,null,null,null,null,null,null,null,null,null,null,null,null,null,null,null,null,null,null,null,null,null,null,null,null,null,"Mas-14-8ος",10]
[null,null,null,null,null,null,null,null,null,null,null,null,null,null,null,null,null,null,null,null,null,null,null,null,null,null,null,null,null,null,null,"Mas-14-wo",0]
[null,null,null,null,null,null,null,null,null,null,null,null,null,null,null,null,null,null,null,null,null,null,null,null,null,null,null,null,null,null,null,"Mas-16-1st",160]
[null,null,null,null,null,null,null,null,null,null,null,null,null,null,null,null,null,null,null,null,null,null,null,null,null,null,null,null,null,null,null,"Mas-16-2nd",140]
[null,null,null,null,null,null,null,null,null,null,null,null,null,null,null,null,null,null,null,null,null,null,null,null,null,null,null,null,null,null,null,"Mas-16-3ος",120]
[null,null,null,null,null,null,null,null,null,null,null,null,null,null,null,null,null,null,null,null,null,null,null,null,null,null,null,null,null,null,null,"Mas-16-4ος",100]
[null,null,null,null,null,null,null,null,null,null,null,null,null,null,null,null,null,null,null,null,null,null,null,null,null,null,null,null,null,null,null,"Mas-16-5ος",80]
[null,null,null,null,null,null,null,null,null,null,null,null,null,null,null,null,null,null,null,null,null,null,null,null,null,null,null,null,null,null,null,"Mas-16-6ος",60]
[null,null,null,null,null,null,null,null,null,null,null,null,null,null,null,null,null,null,null,null,null,null,null,null,null,null,null,null,null,null,null,"Mas-16-7ος",40]
[null,null,null,null,null,null,null,null,null,null,null,null,null,null,null,null,null,null,null,null,null,null,null,null,null,null,null,null,null,null,null,"Mas-16-8ος",20]
[null,null,null,null,null,null,null,null,null,null,null,null,null,null,null,null,null,null,null,null,null,null,null,null,null,null,null,null,null,null,null,"Mas-16-wo",0]
[null,null,null,null,null,null,null,null,null,null,null,null,null,null,null,null,null,null,null,null,null,null,null,null,null,null,null,null,null,null,null,"Mas-18-1st",200]
[null,null,null,null,null,null,null,null,null,null,null,null,null,null,null,null,null,null,null,null,null,null,null,null,null,null,null,null,null,null,null,"Mas-18-2nd",175]
[null,null,null,null,null,null,null,null,null,null,null,null,null,null,null,null,null,null,null,null,null,null,null,null,null,null,null,null,null,null,null,"Mas-18-3ος",150]
[null,null,null,null,null,null,null,null,null,null,null,null,null,null,null,null,null,null,null,null,null,null,null,null,null,null,null,null,null,null,null,"Mas-18-4ος",125]
[null,null,null,null,null,null,null,null,null,null,null,null,null,null,null,null,null,null,null,null,null,null,null,null,null,null,null,null,null,null,null,"Mas-18-5ος",100]
[null,null,null,null,null,null,null,null,null,null,null,null,null,null,null,null,null,null,null,null,null,null,null,null,null,null,null,null,null,null,null,"Mas-18-6ος",75]
[null,null,null,null,null,null,null,null,null,null,null,null,null,null,null,null,null,null,null,null,null,null,null,null,null,null,null,null,null,null,null,"Mas-18-7ος",50]
[null,null,null,null,null,null,null,null,null,null,null,null,null,null,null,null,null,null,null,null,null,null,null,null,null,null,null,null,null,null,null,"Mas-18-8ος",25]
[null,null,null,null,null,null,null,null,null,null,null,null,null,null,null,null,null,null,null,null,null,null,null,null,null,null,null,null,null,null,null,"Mas-18-wo",0]
[]
[null,null,null,null,null,null,null,null,null,null,null,null,null,null,null,null,null,null,null,null,null,null,null,null,null,null,null,null,null,null,null,"Men-Women"]
[null,null,null,null,null,null,null,null,null,null,null,null,null,null,null,null,null,null,null,null,null,null,null,null,null,null,null,null,null,null,null,"ΠανΑΓS-1st",18]
[null,null,null,null,null,null,null,null,null,null,null,null,null,null,null,null,null,null,null,null,null,null,null,null,null,null,null,null,null,null,null,"ΠανΑΓS-2nd",12]
[null,null,null,null,null,null,null,null,null,null,null,null,null,null,null,null,null,null,null,null,null,null,null,null,null,null,null,null,null,null,null,"ΠανΑΓS-3_4",6]
[null,null,null,null,null,null,null,null,null,null,null,null,null,null,null,null,null,null,null,null,null,null,null,null,null,null,null,null,null,null,null,"ΠανΑΓS-5_8",3]
[null,null,null,null,null,null,null,null,null,null,null,null,null,null,null,null,null,null,null,null,null,null,null,null,null,null,null,null,null,null,null,"ΠανΑΓS-9_16",1]
[null,null,null,null,null,null,null,null,null,null,null,null,null,null,null,null,null,null,null,null,null,null,null,null,null,null,null,null,null,null,null,"ΠανΑΓS-17_32",0.75]
[null,null,null,null,null,null,null,null,null,null,null,null,null,null,null,null,null,null,null,null,null,null,null,null,null,null,null,null,null,null,null,"ΠανΑΓS-33_64",0.5]
[null,null,null,null,null,null,null,null,null,null,null,null,null,null,null,null,null,null,null,null,null,null,null,null,null,null,null,null,null,null,null,"ΠανΑΓS-65_128",0]
[null,null,null,null,null,null,null,null,null,null,null,null,null,null,null,null,null,null,null,null,null,null,null,null,null,null,null,null,null,null,null,"ΠανΑΓS-Q2",0.15]
[null,null,null,null,null,null,null,null,null,null,null,null,null,null,null,null,null,null,null,null,null,null,null,null,null,null,null,null,null,null,null,"ΠανΑΓS-Q1",0.1]
[null,null,null,null,null,null,null,null,null,null,null,null,null,null,null,null,null,null,null,null,null,null,null,null,null,null,null,null,null,null,null,"OpenΑΓS-1st",5]
[null,null,null,null,null,null,null,null,null,null,null,null,null,null,null,null,null,null,null,null,null,null,null,null,null,null,null,null,null,null,null,"OpenΑΓS-2nd",3]
[null,null,null,null,null,null,null,null,null,null,null,null,null,null,null,null,null,null,null,null,null,null,null,null,null,null,null,null,null,null,null,"OpenΑΓS-3_4",1.5]
[null,null,null,null,null,null,null,null,null,null,null,null,null,null,null,null,null,null,null,null,null,null,null,null,null,null,null,null,null,null,null,"OpenΑΓS-5_8",1]
[null,null,null,null,null,null,null,null,null,null,null,null,null,null,null,null,null,null,null,null,null,null,null,null,null,null,null,null,null,null,null,"OpenΑΓS-9_16",0.75]
[null,null,null,null,null,null,null,null,null,null,null,null,null,null,null,null,null,null,null,null,null,null,null,null,null,null,null,null,null,null,null,"OpenΑΓS-17_32",0.5]
[null,null,null,null,null,null,null,null,null,null,null,null,null,null,null,null,null,null,null,null,null,null,null,null,null,null,null,null,null,null,null,"OpenΑΓS-33_64",0]
[null,null,null,null,null,null,null,null,null,null,null,null,null,null,null,null,null,null,null,null,null,null,null,null,null,null,null,null,null,null,null,"OpenΑΓS-65_128",0]
[null,null,null,null,null,null,null,null,null,null,null,null,null,null,null,null,null,null,null,null,null,null,null,null,null,null,null,null,null,null,null,"OpenΑΓS-Q2",0.1]
[null,null,null,null,null,null,null,null,null,null,null,null,null,null,null,null,null,null,null,null,null,null,null,null,null,null,null,null,null,null,null,"OpenΑΓS-Q1",0.05]
[null,null,null,null,null,null,null,null,null,null,null,null,null,null,null,null,null,null,null,null,null,null,null,null,null,null,null,null,null,null,null,"ΠανΑΓS-",0]
[null,null,null,null,null,null,null,null,null,null,null,null,null,null,null,null,null,null,null,null,null,null,null,null,null,null,null,null,null,null,null,"OpenΑΓS-",0]
[null,null,null,null,null,null,null,null,null,null,null,null,null,null,null,null,null,null,null,null,null,null,null,null,null,null,null,null,null,null,null,"ΠανΑΓD-1st",18]
[null,null,null,null,null,null,null,null,null,null,null,null,null,null,null,null,null,null,null,null,null,null,null,null,null,null,null,null,null,null,null,"ΠανΑΓD-2nd",12]
[null,null,null,null,null,null,null,null,null,null,null,null,null,null,null,null,null,null,null,null,null,null,null,null,null,null,null,null,null,null,null,"ΠανΑΓD-3_4",6]
[null,null,null,null,null,null,null,null,null,null,null,null,null,null,null,null,null,null,null,null,null,null,null,null,null,null,null,null,null,null,null,"ΠανΑΓD-5_8",3]
[null,null,null,null,null,null,null,null,null,null,null,null,null,null,null,null,null,null,null,null,null,null,null,null,null,null,null,null,null,null,null,"ΠανΑΓD-9_16",1]
[null,null,null,null,null,null,null,null,null,null,null,null,null,null,null,null,null,null,null,null,null,null,null,null,null,null,null,null,null,null,null,"ΠανΑΓD-17_32",0]
[null,null,null,null,null,null,null,null,null,null,null,null,null,null,null,null,null,null,null,null,null,null,null,null,null,null,null,null,null,null,null,"ΠανΑΓD-33_64",0]
[null,null,null,null,null,null,null,null,null,null,null,null,null,null,null,null,null,null,null,null,null,null,null,null,null,null,null,null,null,null,null,"ΠανΑΓD-65_128",0]
[null,null,null,null,null,null,null,null,null,null,null,null,null,null,null,null,null,null,null,null,null,null,null,null,null,null,null,null,null,null,null,"ΠανΑΓD-Q2",0]
[null,null,null,null,null,null,null,null,null,null,null,null,null,null,null,null,null,null,null,null,null,null,null,null,null,null,null,null,null,null,null,"ΠανΑΓD-Q1",0]
[null,null,null,null,null,null,null,null,null,null,null,null,null,null,null,null,null,null,null,null,null,null,null,null,null,null,null,null,null,null,null,"OpenΑΓD-1st",5]
[null,null,null,null,null,null,null,null,null,null,null,null,null,null,null,null,null,null,null,null,null,null,null,null,null,null,null,null,null,null,null,"OpenΑΓD-2nd",3]
[null,null,null,null,null,null,null,null,null,null,null,null,null,null,null,null,null,null,null,null,null,null,null,null,null,null,null,null,null,null,null,"OpenΑΓD-3_4",1.5]
[null,null,null,null,null,null,null,null,null,null,null,null,null,null,null,null,null,null,null,null,null,null,null,null,null,null,null,null,null,null,null,"OpenΑΓD-5_8",1]
[null,null,null,null,null,null,null,null,null,null,null,null,null,null,null,null,null,null,null,null,null,null,null,null,null,null,null,null,null,null,null,"OpenΑΓD-9_16",0.75]
[null,null,null,null,null,null,null,null,null,null,null,null,null,null,null,null,null,null,null,null,null,null,null,null,null,null,null,null,null,null,null,"OpenΑΓD-17_32",0]
[null,null,null,null,null,null,null,null,null,null,null,null,null,null,null,null,null,null,null,null,null,null,null,null,null,null,null,null,null,null,null,"OpenΑΓD-33_64",0]
[null,null,null,null,null,null,null,null,null,null,null,null,null,null,null,null,null,null,null,null,null,null,null,null,null,null,null,null,null,null,null,"OpenΑΓD-65_128",0]
[null,null,null,null,null,null,null,null,null,null,null,null,null,null,null,null,null,null,null,null,null,null,null,null,null,null,null,null,null,null,null,"OpenΑΓD-Q2",0]
[null,null,null,null,null,null,null,null,null,null,null,null,null,null,null,null,null,null,null,null,null,null,null,null,null,null,null,null,null,null,null,"OpenΑΓD-Q1",0]
[null,null,null,null,null,null,null,null,null,null,null,null,null,null,null,null,null,null,null,null,null,null,null,null,null,null,null,null,null,null,null,"ΠανΑΓD-",0]
[null,null,null,null,null,null,null,null,null,null,null,null,null,null,null,null,null,null,null,null,null,null,null,null,null,null,null,null,null,null,null,"OpenΑΓD-",0]

{"sheet":"matches","index":6,"n_rows":17,"n_cols":19,"rows_kept":17,"cut":false,"hidden":true,"merged":[]}
["round","W-ID","winner","L-ID","looser","score",null," Player "," Position ",null,"Set-up",null,null,"draw#","organizer","club","title","category","drawSize"]
[16,{"$f":"IF(OR(MD!$M$5=1,MD!$M$5=2), IF(MD!$M$5=1,MD!$I$5,MD!$I$6),\"#\")","v":26198},{"$f":"TRIM(LEFT(VLOOKUP(B2,ALMD!$C$3:$D$18,2,FALSE),FIND(\" \",VLOOKUP(B2,ALMD!$C$3:$D$18,2,FALSE),1)-1))","v":"ΛΑΜΠΡΟΠΟΥΛΟΥ"},{"$f":"IF(OR(MD!$M$5 =1,MD!$M$5 =2), IF(MD!$M$5 =2,MD!$I$5,MD!$I$6),\"#\")","v":40747},{"$f":"TRIM(LEFT(VLOOKUP(D2,ALMD!$C$3:$D$18,2,FALSE),FIND(\" \",VLOOKUP(D2,ALMD!$C$3:$D$18,2,FALSE),1)-1))","v":"ΤΟΥΜΠΑΝΙΑΡΗ"},{"$f":"MD!$O6","v":"40 40"},null,{"$f":"B16","v":26198},"1st",null,"organizer: ",{"$f":"Setup!$B$3","v":"ΣΤ' ΕΝΩΣΗ"},null,{"$f":"IF(COUNTIF(MD!$I:$I,B2)>0,MATCH(B2,MD!$I:$I,0)-4,\"\")&\" \"&IF(COUNTIF(MD!$I:$I,D2)>0,MATCH(D2,MD!$I:$I,0)-4,\"\")","v":"1 2"},{"$f":"Setup!$B$3","v":"ΣΤ' ΕΝΩΣΗ"},{"$f":"TRIM(LEFT($L$4,10))","v":"ΣΑ ΤΡΙΠΟΛΗ"},{"$f":"TRIM(LEFT($L$3,10))","v":"Ε3 19η"},{"$f":"SUBSTITUTE(SUBSTITUTE(TRIM($L$7),\"Κ\",\"g\"),\"Α\",\"b\")","v":"g14"},16]
[16,{"$f":"IF(OR(MD!$M$7=1,MD!$M$7=2), IF(MD!$M$7=1,MD!$I$7,MD!$I$8),\"#\")","v":35659},{"$f":"TRIM(LEFT(VLOOKUP(B3,ALMD!$C$3:$D$18,2,FALSE),FIND(\" \",VLOOKUP(B3,ALMD!$C$3:$D$18,2,FALSE),1)-1))","v":"ΜΑΚΡΥΓΕΩΡΓΟΥ"},{"$f":"IF(OR(MD!$M$7 =1,MD!$M$7 =2), IF(MD!$M$7 =2,MD!$I$7,MD!$I$8),\"#\")","v":41973},{"$f":"TRIM(LEFT(VLOOKUP(D3,ALMD!$C$3:$D$18,2,FALSE),FIND(\" \",VLOOKUP(D3,ALMD!$C$3:$D$18,2,FALSE),1)-1))","v":"ΣΑΚΚΕΛΑΡΟΠΟΥΛΟΥ"},{"$f":"MD!$O8","v":"40 41"},null,{"$f":"D16","v":37585},"2nd",null,"title: ",{"$f":"Setup!$B$7","v":"Ε3 19η"},null,{"$f":"IF(COUNTIF(MD!$I:$I,B3)>0,MATCH(B3,MD!$I:$I,0)-4,\"\")&\" \"&IF(COUNTIF(MD!$I:$I,D3)>0,MATCH(D3,MD!$I:$I,0)-4,\"\")","v":"4 3"},{"$f":"Setup!$B$3","v":"ΣΤ' ΕΝΩΣΗ"},{"$f":"TRIM(LEFT($L$4,10))","v":"ΣΑ ΤΡΙΠΟΛΗ"},{"$f":"TRIM(LEFT($L$3,10))","v":"Ε3 19η"},{"$f":"SUBSTITUTE(SUBSTITUTE(TRIM($L$7),\"Κ\",\"g\"),\"Α\",\"b\")","v":"g14"},16]
[16,{"$f":"IF(OR(MD!$M$9=1,MD!$M$9=2), IF(MD!$M$9=1,MD!$I$9,MD!$I$10),\"#\")","v":90169},{"$f":"TRIM(LEFT(VLOOKUP(B4,ALMD!$C$3:$D$18,2,FALSE),FIND(\" \",VLOOKUP(B4,ALMD!$C$3:$D$18,2,FALSE),1)-1))","v":"ΑΣΕΝΟΒΑ"},{"$f":"IF(OR(MD!$M$9 =1,MD!$M$9 =2), IF(MD!$M$9 =2,MD!$I$9,MD!$I$10),\"#\")","v":36781},{"$f":"TRIM(LEFT(VLOOKUP(D4,ALMD!$C$3:$D$18,2,FALSE),FIND(\" \",VLOOKUP(D4,ALMD!$C$3:$D$18,2,FALSE),1)-1))","v":"ΚΟΚΚΙΝΟΥ"},{"$f":"MD!$O10","v":"41 40"},null,{"$f":"D14","v":90169},"3_4",null,"club: ",{"$f":"Setup!$B$4","v":"ΣΑ ΤΡΙΠΟΛΗΣ"},null,{"$f":"IF(COUNTIF(MD!$I:$I,B4)>0,MATCH(B4,MD!$I:$I,0)-4,\"\")&\" \"&IF(COUNTIF(MD!$I:$I,D4)>0,MATCH(D4,MD!$I:$I,0)-4,\"\")","v":"5 6"},{"$f":"Setup!$B$3","v":"ΣΤ' ΕΝΩΣΗ"},"ΣΑ ΤΡΙΠΟΛΗ","Ε3 19η","g14",16]
[16,{"$f":"IF(OR(MD!$M$11=1,MD!$M$11=2), IF(MD!$M$11=1,MD!$I$11,MD!$I$12),\"#\")","v":34396},{"$f":"TRIM(LEFT(VLOOKUP(B5,ALMD!$C$3:$D$18,2,FALSE),FIND(\" \",VLOOKUP(B5,ALMD!$C$3:$D$18,2,FALSE),1)-1))","v":"ΜΗΤΡΟΠΟΥΛΟΥ"},{"$f":"IF(OR(MD!$M$11=1,MD!$M$11=2), IF(MD!$M$11=2,MD!$I$11,MD!$I$12),\"#\")","v":38845},{"$f":"TRIM(LEFT(VLOOKUP(D5,ALMD!$C$3:$D$18,2,FALSE),FIND(\" \",VLOOKUP(D5,ALMD!$C$3:$D$18,2,FALSE),1)-1))","v":"ΤΣΙΛΙΜΠΗ"},{"$f":"MD!$O12","v":"41 53"},null,{"$f":"D15","v":38948},"3_4",null,"grade: ",{"$f":"Setup!$B$5","v":"Ε3"},null,{"$f":"IF(COUNTIF(MD!$I:$I,B5)>0,MATCH(B5,MD!$I:$I,0)-4,\"\")&\" \"&IF(COUNTIF(MD!$I:$I,D5)>0,MATCH(D5,MD!$I:$I,0)-4,\"\")","v":"7 8"},{"$f":"Setup!$B$3","v":"ΣΤ' ΕΝΩΣΗ"},"ΣΑ ΤΡΙΠΟΛΗ","Ε3 19η","g14",16]
[16,{"$f":"IF(OR(MD!$M$13=1,MD!$M$13=2), IF(MD!$M$13=1,MD!$I$13,MD!$I$14),\"#\")","v":38948},{"$f":"TRIM(LEFT(VLOOKUP(B6,ALMD!$C$3:$D$18,2,FALSE),FIND(\" \",VLOOKUP(B6,ALMD!$C$3:$D$18,2,FALSE),1)-1))","v":"ΠΑΠΑΚΩΝΣΤΑΝΤΙΝΟΥ"},{"$f":"IF(OR(MD!$M$13=1,MD!$M$13=2), IF(MD!$M$13=2,MD!$I$13,MD!$I$14),\"#\")","v":37337},{"$f":"TRIM(LEFT(VLOOKUP(D6,ALMD!$C$3:$D$18,2,FALSE),FIND(\" \",VLOOKUP(D6,ALMD!$C$3:$D$18,2,FALSE),1)-1))","v":"ΔΕΛΗ"},{"$f":"MD!$O14","v":"54(1) 40"},null,{"$f":"D10","v":35659},"5_8",null,"week: ",{"$f":"Setup!B10","v":"βδ.: 19η"},null,{"$f":"IF(COUNTIF(MD!$I:$I,B6)>0,MATCH(B6,MD!$I:$I,0)-4,\"\")&\" \"&IF(COUNTIF(MD!$I:$I,D6)>0,MATCH(D6,MD!$I:$I,0)-4,\"\")","v":"10 9"},{"$f":"Setup!$B$3","v":"ΣΤ' ΕΝΩΣΗ"},"ΣΑ ΤΡΙΠΟΛΗ","Ε3 19η","g14",16]
[16,{"$f":"IF(OR(MD!$M$15=1,MD!$M$15=2), IF(MD!$M$15=1,MD!$I$15,MD!$I$16),\"#\")","v":38401},{"$f":"TRIM(LEFT(VLOOKUP(B7,ALMD!$C$3:$D$18,2,FALSE),FIND(\" \",VLOOKUP(B7,ALMD!$C$3:$D$18,2,FALSE),1)-1))","v":"ΚΛΑΟΥΔΑΤΟΥ"},{"$f":"IF(OR(MD!$M$15=1,MD!$M$15=2), IF(MD!$M$15=2,MD!$I$15,MD!$I$16),\"#\")","v":40755},{"$f":"TRIM(LEFT(VLOOKUP(D7,ALMD!$C$3:$D$18,2,FALSE),FIND(\" \",VLOOKUP(D7,ALMD!$C$3:$D$18,2,FALSE),1)-1))","v":"ΣΤΟΚΑ"},{"$f":"MD!$O16","v":"41 53"},null,{"$f":"D11","v":34396},"5_8",null,"category: ",{"$f":"Setup!$B$6","v":"Κ14"},null,{"$f":"IF(COUNTIF(MD!$I:$I,B7)>0,MATCH(B7,MD!$I:$I,0)-4,\"\")&\" \"&IF(COUNTIF(MD!$I:$I,D7)>0,MATCH(D7,MD!$I:$I,0)-4,\"\")","v":"11 12"},{"$f":"Setup!$B$3","v":"ΣΤ' ΕΝΩΣΗ"},"ΣΑ ΤΡΙΠΟΛΗ","Ε3 19η","g14",16]
[16,{"$f":"IF(OR(MD!$M$17=1,MD!$M$17=2), IF(MD!$M$17=1,MD!$I$17,MD!$I$18),\"#\")","v":40340},{"$f":"TRIM(LEFT(VLOOKUP(B8,ALMD!$C$3:$D$18,2,FALSE),FIND(\" \",VLOOKUP(B8,ALMD!$C$3:$D$18,2,FALSE),1)-1))","v":"ΝΙΚΟΛΑΚΟΠΟΥΛΟΥ"},{"$f":"IF(OR(MD!$M$17=1,MD!$M$17=2), IF(MD!$M$17=2,MD!$I$17,MD!$I$18),\"#\")","v":39327},{"$f":"TRIM(LEFT(VLOOKUP(D8,ALMD!$C$3:$D$18,2,FALSE),FIND(\" \",VLOOKUP(D8,ALMD!$C$3:$D$18,2,FALSE),1)-1))","v":"ΜΠΟΥΖΟΥ"},{"$f":"MD!$O18","v":"40 42"},null,{"$f":"D12","v":38401},"5_8",null,"period: ",{"$f":"DAY(Setup!$B$8)&\"/\"&MONTH(Setup!$B$8)&\"-\"&DAY(Setup!$B$9)&\"/\"&MONTH(Setup!$B$9)&\"/\"&YEAR(Setup!$B$9)","v":"12/5-13/5/2018"},null,{"$f":"IF(COUNTIF(MD!$I:$I,B8)>0,MATCH(B8,MD!$I:$I,0)-4,\"\")&\" \"&IF(COUNTIF(MD!$I:$I,D8)>0,MATCH(D8,MD!$I:$I,0)-4,\"\")","v":"14 13"},{"$f":"Setup!$B$3","v":"ΣΤ' ΕΝΩΣΗ"},"ΣΑ ΤΡΙΠΟΛΗ","Ε3 19η","g14",16]
[16,{"$f":"IF(OR(MD!$M$19=1,MD!$M$19=2), IF(MD!$M$19=1,MD!$I$19,MD!$I$20),\"#\")","v":37585},{"$f":"TRIM(LEFT(VLOOKUP(B9,ALMD!$C$3:$D$18,2,FALSE),FIND(\" \",VLOOKUP(B9,ALMD!$C$3:$D$18,2,FALSE),1)-1))","v":"ΣΤΡΑΤΗ"},{"$f":"IF(OR(MD!$M$19=1,MD!$M$19=2), IF(MD!$M$19=2,MD!$I$19,MD!$I$20),\"#\")","v":33668},{"$f":"TRIM(LEFT(VLOOKUP(D9,ALMD!$C$3:$D$18,2,FALSE),FIND(\" \",VLOOKUP(D9,ALMD!$C$3:$D$18,2,FALSE),1)-1))","v":"ΚΑΛΤΕΖΙΩΤΗ"},{"$f":"MD!$O20","v":"41 41"},null,{"$f":"D13","v":40340},"5_8",null,"filename: ",{"$f":"MID(CELL(\"filename\"), (FIND(\"[\",CELL(\"filename\"))+1), FIND(\"]\",CELL(\"filename\"))-FIND(\"[\",CELL(\"filename\"))-1)","v":"ε3 19η στ α14 s md.xlsm"},null,{"$f":"IF(COUNTIF(MD!$I:$I,B9)>0,MATCH(B9,MD!$I:$I,0)-4,\"\")&\" \"&IF(COUNTIF(MD!$I:$I,D9)>0,MATCH(D9,MD!$I:$I,0)-4,\"\")","v":"16 15"},{"$f":"Setup!$B$3","v":"ΣΤ' ΕΝΩΣΗ"},"ΣΑ ΤΡΙΠΟΛΗ","Ε3 19η","g14",16]
[8,{"$f":"IF(OR(MD!$P$6=1,MD!$P$6=2), IF(MD!$P$6 =1,MD!$N$5,MD!$N$7),\"#\")","v":26198},{"$f":"TRIM(LEFT(VLOOKUP(B10,ALMD!$C$3:$D$18,2,FALSE),FIND(\" \",VLOOKUP(B10,ALMD!$C$3:$D$18,2,FALSE),1)-1))","v":"ΛΑΜΠΡΟΠΟΥΛΟΥ"},{"$f":"IF(OR(MD!$P$6 =1,MD!$P$6 =2), IF(MD!$P$6 =2,MD!$N$5,MD!$N$7),\"#\")","v":35659},{"$f":"TRIM(LEFT(VLOOKUP(D10,ALMD!$C$3:$D$18,2,FALSE),FIND(\" \",VLOOKUP(D10,ALMD!$C$3:$D$18,2,FALSE),1)-1))","v":"ΜΑΚΡΥΓΕΩΡΓΟΥ"},{"$f":"MD!$R7","v":"41 42"},null,{"$f":"D2","v":40747},"9_16",null,null,null,null,{"$f":"IF(COUNTIF(MD!$N:$N,B10)>0,MATCH(B10,MD!$N:$N,0)-4,\"\")&\" \"&IF(COUNTIF(MD!$N:$N,D10)>0,MATCH(D10,MD!$N:$N,0)-4,\"\")","v":"1 3"},{"$f":"Setup!$B$3","v":"ΣΤ' ΕΝΩΣΗ"},"ΣΑ ΤΡΙΠΟΛΗ","Ε3 19η","g14",16]
[8,{"$f":"IF(OR(MD!$P$10=1,MD!$P$10=2), IF(MD!$P$10=1,MD!$N$9,MD!$N$11),\"#\")","v":90169},{"$f":"TRIM(LEFT(VLOOKUP(B11,ALMD!$C$3:$D$18,2,FALSE),FIND(\" \",VLOOKUP(B11,ALMD!$C$3:$D$18,2,FALSE),1)-1))","v":"ΑΣΕΝΟΒΑ"},{"$f":"IF(OR(MD!$P$10=1,MD!$P$10=2), IF(MD!$P$10=2,MD!$N$9,MD!$N$11),\"#\")","v":34396},{"$f":"TRIM(LEFT(VLOOKUP(D11,ALMD!$C$3:$D$18,2,FALSE),FIND(\" \",VLOOKUP(D11,ALMD!$C$3:$D$18,2,FALSE),1)-1))","v":"ΜΗΤΡΟΠΟΥΛΟΥ"},{"$f":"MD!$R11","v":"41 42"},null,41973,"9_16",null,null,null,null,{"$f":"IF(COUNTIF(MD!$N:$N,B11)>0,MATCH(B11,MD!$N:$N,0)-4,\"\")&\" \"&IF(COUNTIF(MD!$N:$N,D11)>0,MATCH(D11,MD!$N:$N,0)-4,\"\")","v":"5 7"},{"$f":"Setup!$B$3","v":"ΣΤ' ΕΝΩΣΗ"},"ΣΑ ΤΡΙΠΟΛΗ","Ε3 19η","g14",16]
[8,{"$f":"IF(OR(MD!$P$14=1,MD!$P$14=2), IF(MD!$P$14=1,MD!$N$13,MD!$N$15),\"#\")","v":38948},{"$f":"TRIM(LEFT(VLOOKUP(B12,ALMD!$C$3:$D$18,2,FALSE),FIND(\" \",VLOOKUP(B12,ALMD!$C$3:$D$18,2,FALSE),1)-1))","v":"ΠΑΠΑΚΩΝΣΤΑΝΤΙΝΟΥ"},{"$f":"IF(OR(MD!$P$14=1,MD!$P$14=2), IF(MD!$P$14=2,MD!$N$13,MD!$N$15),\"#\")","v":38401},{"$f":"TRIM(LEFT(VLOOKUP(D12,ALMD!$C$3:$D$18,2,FALSE),FIND(\" \",VLOOKUP(D12,ALMD!$C$3:$D$18,2,FALSE),1)-1))","v":"ΚΛΑΟΥΔΑΤΟΥ"},{"$f":"MD!$R15","v":"40 40"},null,36781,"9_16",null,null,null,null,{"$f":"IF(COUNTIF(MD!$N:$N,B12)>0,MATCH(B12,MD!$N:$N,0)-4,\"\")&\" \"&IF(COUNTIF(MD!$N:$N,D12)>0,MATCH(D12,MD!$N:$N,0)-4,\"\")","v":"9 11"},{"$f":"Setup!$B$3","v":"ΣΤ' ΕΝΩΣΗ"},"ΣΑ ΤΡΙΠΟΛΗ","Ε3 19η","g14",16]
[8,{"$f":"IF(OR(MD!$P$18=1,MD!$P$18=2), IF(MD!$P$18=1,MD!$N$17,MD!$N$19),\"#\")","v":37585},{"$f":"TRIM(LEFT(VLOOKUP(B13,ALMD!$C$3:$D$18,2,FALSE),FIND(\" \",VLOOKUP(B13,ALMD!$C$3:$D$18,2,FALSE),1)-1))","v":"ΣΤΡΑΤΗ"},{"$f":"IF(OR(MD!$P$18=1,MD!$P$18=2), IF(MD!$P$18=2,MD!$N$17,MD!$N$19),\"#\")","v":40340},{"$f":"TRIM(LEFT(VLOOKUP(D13,ALMD!$C$3:$D$18,2,FALSE),FIND(\" \",VLOOKUP(D13,ALMD!$C$3:$D$18,2,FALSE),1)-1))","v":"ΝΙΚΟΛΑΚΟΠΟΥΛΟΥ"},{"$f":"MD!$R19","v":"40 40"},null,38845,"9_16",null,null,null,null,{"$f":"IF(COUNTIF(MD!$N:$N,B13)>0,MATCH(B13,MD!$N:$N,0)-4,\"\")&\" \"&IF(COUNTIF(MD!$N:$N,D13)>0,MATCH(D13,MD!$N:$N,0)-4,\"\")","v":"15 13"},{"$f":"Setup!$B$3","v":"ΣΤ' ΕΝΩΣΗ"},"ΣΑ ΤΡΙΠΟΛΗ","Ε3 19η","g14",16]
[4,{"$f":"IF(OR(MD!$S$8=1,MD!$S$8=2), IF(MD!$S$8=1,MD!$Q$6,MD!$Q$10),\"#\")","v":26198},{"$f":"TRIM(LEFT(VLOOKUP(B14,ALMD!$C$3:$D$18,2,FALSE),FIND(\" \",VLOOKUP(B14,ALMD!$C$3:$D$18,2,FALSE),1)-1))","v":"ΛΑΜΠΡΟΠΟΥΛΟΥ"},{"$f":"IF(OR(MD!$S$8 =1,MD!$S$8 =2), IF(MD!$S$8 =2,MD!$Q$6,MD!$Q$10),\"#\")","v":90169},{"$f":"TRIM(LEFT(VLOOKUP(D14,ALMD!$C$3:$D$18,2,FALSE),FIND(\" \",VLOOKUP(D14,ALMD!$C$3:$D$18,2,FALSE),1)-1))","v":"ΑΣΕΝΟΒΑ"},{"$f":"MD!$U9","v":"61 61"},null,37337,"9_16",null,null,null,null,{"$f":"IF(COUNTIF(MD!$Q:$Q,B14)>0,MATCH(B14,MD!$Q:$Q,0)-4,\"\")&\" \"&IF(COUNTIF(MD!$Q:$Q,D14)>0,MATCH(D14,MD!$Q:$Q,0)-4,\"\")","v":"2 6"},{"$f":"Setup!$B$3","v":"ΣΤ' ΕΝΩΣΗ"},"ΣΑ ΤΡΙΠΟΛΗ","Ε3 19η","g14",16]
[4,{"$f":"IF(OR(MD!$S$16=1,MD!$S$16=2), IF(MD!$S$16=1,MD!$Q$14,MD!$Q$18),\"#\")","v":37585},{"$f":"TRIM(LEFT(VLOOKUP(B15,ALMD!$C$3:$D$18,2,FALSE),FIND(\" \",VLOOKUP(B15,ALMD!$C$3:$D$18,2,FALSE),1)-1))","v":"ΣΤΡΑΤΗ"},{"$f":"IF(OR(MD!$S$16=1,MD!$S$16=2), IF(MD!$S$16=2,MD!$Q$14,MD!$Q$18),\"#\")","v":38948},{"$f":"TRIM(LEFT(VLOOKUP(D15,ALMD!$C$3:$D$18,2,FALSE),FIND(\" \",VLOOKUP(D15,ALMD!$C$3:$D$18,2,FALSE),1)-1))","v":"ΠΑΠΑΚΩΝΣΤΑΝΤΙΝΟΥ"},{"$f":"MD!$U17","v":"62 62"},null,40755,"9_16",null,null,null,null,{"$f":"IF(COUNTIF(MD!$Q:$Q,B15)>0,MATCH(B15,MD!$Q:$Q,0)-4,\"\")&\" \"&IF(COUNTIF(MD!$Q:$Q,D15)>0,MATCH(D15,MD!$Q:$Q,0)-4,\"\")","v":"14 10"},{"$f":"Setup!$B$3","v":"ΣΤ' ΕΝΩΣΗ"},"ΣΑ ΤΡΙΠΟΛΗ","Ε3 19η","g14",16]
[2,{"$f":"IF(OR(MD!$S$12=1,MD!$S$12=2), IF(MD!$S$12=1,MD!$T$8,MD!$T$16),\"#\")","v":26198},{"$f":"TRIM(LEFT(VLOOKUP(B16,ALMD!$C$3:$D$18,2,FALSE),FIND(\" \",VLOOKUP(B16,ALMD!$C$3:$D$18,2,FALSE),1)-1))","v":"ΛΑΜΠΡΟΠΟΥΛΟΥ"},{"$f":"IF(OR(MD!$S$12=1,MD!$S$12=2), IF(MD!$S$12=2,MD!$T$8,MD!$T$16),\"#\")","v":37585},{"$f":"TRIM(LEFT(VLOOKUP(D16,ALMD!$C$3:$D$18,2,FALSE),FIND(\" \",VLOOKUP(D16,ALMD!$C$3:$D$18,2,FALSE),1)-1))","v":"ΣΤΡΑΤΗ"},{"$f":"MD!$U13","v":"61 64"},null,39327,"9_16",null,null,null,null,{"$f":"IF(COUNTIF(MD!$T:$T,B16)>0,MATCH(B16,MD!$T:$T,0)-4,\"\")&\" \"&IF(COUNTIF(MD!$T:$T,D16)>0,MATCH(D16,MD!$T:$T,0)-4,\"\")","v":"4 12"},{"$f":"Setup!$B$3","v":"ΣΤ' ΕΝΩΣΗ"},"ΣΑ ΤΡΙΠΟΛΗ","Ε3 19η","g14",16]
[null,null,null,null,null,null,null,33668,"9_16",null,null,null,null,null,{"$f":"Setup!$B$3","v":"ΣΤ' ΕΝΩΣΗ"},"ΣΑ ΤΡΙΠΟΛΗ","Ε3 19η","g14",16]

{"sheet":"e-efoa","index":7,"n_rows":17,"n_cols":41,"rows_kept":17,"cut":false,"hidden":true,"merged":[]}
["organizer","club","title","group","Dsize","MStartDate","TournamentDetailsId","round","WPlayerCode","LPlayerCode","Score","WRow","LRow","WSeed","LSeed","W","L","n/m",null,"seed","cmnt","TournamentDetailsId"," PlayerCode","Round","Wins","Matches","PtsQ","PtsM","Age",null,"ID","name","row","seed",null,"RankKey",null,"MatcheNames","key","PlayerName 1","PlayerName 2"]
[{"$f":"Setup!$B$3","v":"ΣΤ' ΕΝΩΣΗ"},{"$f":"Setup!$Z$6","v":294},{"$f":"Setup!$Z$5","v":"Ε3 19η (ΣΤ)"},{"$f":"SUBSTITUTE(TRIM(Setup!$B$6),\"-\",\"\")","v":"Κ14"},"Smd16",{"$f":"TEXT(Setup!$B$8,\"ΕΕΕΕ-ΜΜ-ΗΗ\")","v":"2018-05-12"},{"$f":"Setup!$T$7","v":{"$error":"#N/A"}},"R16",{"$f":"IF(OR(MD!$M$5=1,MD!$M$5=2), IF(MD!$M$5=1,MD!$I$5,MD!$I$6),\"\")","v":26198},{"$f":"IF(OR(MD!$M$5 =1,MD!$M$5 =2), IF(MD!$M$5 =2,MD!$I$5,MD!$I$6),\"\")","v":40747},{"$f":"TRIM(MD!$O6)","v":"40 40"},{"$f":"IF(AND(I2<>\"\",I2>0),IF(VALUE(I2)>0,VLOOKUP(I2,$AE:$AH,3,FALSE),0),0)","v":1},{"$f":"IF(AND(J2<>\"\",J2>0),IF(VALUE(J2)>0,VLOOKUP(J2,$AE:$AH,3,FALSE),0),0)","v":2},{"$f":"IF(AND(I2<>\"\",I2>0),IF(VALUE(I2)>0,VLOOKUP(I2,$AE:$AH,4,FALSE),0),0)","v":1},{"$f":"IF(AND(J2<>\"\",J2>0),IF(VALUE(J2)>0,VLOOKUP(J2,$AE:$AH,4,FALSE),0),0)","v":14},{"$f":"IF(R2=\"\",I2,\"\")","v":26198},{"$f":"IF(R2=\"\",J2,\"\")","v":40747},{"$f":"IF(OR(J2=0,K2=\"\"),1,IF(TEXT(K2,\"0\")=SUBSTITUTE(LOWER(K2),\"m\",\"\"),\"\",1))","v":""},null,{"$f":"IF(W2<>\"\",IF(VALUE(W2)>0,VLOOKUP(W2,$AE:$AH,4,FALSE),\"\"),\"\")","v":1},{"$f":"IF(NOT(OR(W2=0,W2=\" \",W2=\"\")),IF(INDIRECT(\"ALMD!B\"&MATCH(W2,ALMD!$C$3:$C$18,0)+2)>0,INDIRECT(\"ALMD!B\"&MATCH(W2,ALMD!$C$3:$C$18,0)+2),\"\"),\"\")","v":""},{"$f":"Setup!$T$7","v":{"$error":"#N/A"}},{"$f":"I16","v":26198},"1st",{"$f":"IF($W2>0,COUNTIF($P$2:$P$16,$W2),0)","v":4},{"$f":"IF($W2>0,COUNTIF($P$2:$P$16,$W2)+COUNTIF($Q$2:$Q$16,$W2),0)","v":4},0,{"$f":"IF(OR($Z2=0,$Z2=\"\",$U2=\"DQ\"),0,VLOOKUP($AJ2,tables!$AF:$AG,2,FALSE))","v":18},{"$f":"IF(W2>0,YEAR(Setup!$B$8)-YEAR(VLOOKUP(W2,ALMD!$C:$F,3,FALSE)),0)","v":14},null,{"$f":"MD!$I5","v":26198},{"$f":"MD!$K5","v":"ΛΑΜΠΡΟΠΟΥΛΟΥ Β"},{"$f":"IF(AE2>0,MD!$A5,\"\")","v":1},{"$f":"MD!$G5","v":1},null,{"$f":"SUBSTITUTE(SUBSTITUTE(Setup!$B$5&\"S-\"&Setup!$B$13&\"-\"&X2,\"Ανδ-\",\"\"),\"Γυν-\",\"\")","v":"Ε3S-14-1st"},null,{"$f":"IF(AO2>\" \", IF(OR(AM2=AM3,AM2=AM1), IF(AM2=AM3,AN2&\"/\"&AN3&\" - \"&AO2&\"/\"&AO3, AN1&\"/\"&AN2&\" - \"&AO1&\"/\"&AO2),AN2&\" - \"&AO2), IF(OR(AM2=AM3,AM2=AM1), IF(AM2=AM3,AN2&\"/\"&AN3, AN1&\"/\"&AN2),AN2))","v":{"$error":"#N/A"}},{"$f":"G2&H2&L2","v":{"$error":"#N/A"}},{"$f":"IF(I2<=0,\"\",TRIM(LEFT(LEFT(VLOOKUP(I2,$AE:$AF,2,FALSE),FIND(\" \",VLOOKUP(I2,$AE:$AF,2,FALSE),1)-1),15)&\" \"&LEFT(MID(VLOOKUP(I2,$AE:$AF,2,FALSE),FIND(\" \",VLOOKUP(I2,$AE:$AF,2,FALSE),1)+1,20),3)))","v":"ΛΑΜΠΡΟΠΟΥΛΟΥ Β"},{"$f":"IF(J2<=0,\"\",TRIM(LEFT(LEFT(VLOOKUP(J2,$AE:$AF,2,FALSE),FIND(\" \",VLOOKUP(J2,$AE:$AF,2,FALSE),1)-1),15)&\" \"&LEFT(MID(VLOOKUP(J2,$AE:$AF,2,FALSE),FIND(\" \",VLOOKUP(J2,$AE:$AF,2,FALSE),1)+1,20),3)))","v":"ΤΟΥΜΠΑΝΙΑΡΗ Μ"}]
[{"$f":"Setup!$B$3","v":"ΣΤ' ΕΝΩΣΗ"},{"$f":"Setup!$Z$6","v":294},{"$f":"Setup!$Z$5","v":"Ε3 19η (ΣΤ)"},{"$f":"SUBSTITUTE(TRIM(Setup!$B$6),\"-\",\"\")","v":"Κ14"},"Smd16",{"$f":"TEXT(Setup!$B$8,\"ΕΕΕΕ-ΜΜ-ΗΗ\")","v":"2018-05-12"},{"$f":"Setup!$T$7","v":{"$error":"#N/A"}},"R16",{"$f":"IF(OR(MD!$M$7=1,MD!$M$7=2), IF(MD!$M$7=1,MD!$I$7,MD!$I$8),\"\")","v":35659},{"$f":"IF(OR(MD!$M$7 =1,MD!$M$7 =2), IF(MD!$M$7 =2,MD!$I$7,MD!$I$8),\"\")","v":41973},{"$f":"TRIM(MD!$O8)","v":"40 41"},4,3,7,15,{"$f":"IF(R3=\"\",I3,\"\")","v":35659},{"$f":"IF(R3=\"\",J3,\"\")","v":41973},{"$f":"IF(OR(J3=0,K3=\"\"),1,IF(TEXT(K3,\"0\")=SUBSTITUTE(LOWER(K3),\"m\",\"\"),\"\",1))","v":""},null,2,{"$f":"IF(NOT(OR(W3=0,W3=\" \",W3=\"\")),IF(INDIRECT(\"ALMD!B\"&MATCH(W3,ALMD!$C$3:$C$18,0)+2)>0,INDIRECT(\"ALMD!B\"&MATCH(W3,ALMD!$C$3:$C$18,0)+2),\"\"),\"\")","v":""},{"$f":"Setup!$T$7","v":{"$error":"#N/A"}},{"$f":"J16","v":37585},"2nd",{"$f":"IF($W3>0,COUNTIF($P$2:$P$16,$W3),0)","v":3},{"$f":"IF($W3>0,COUNTIF($P$2:$P$16,$W3)+COUNTIF($Q$2:$Q$16,$W3),0)","v":4},0,{"$f":"IF(OR($Z3=0,$Z3=\"\",$U3=\"DQ\"),0,VLOOKUP($AJ3,tables!$AF:$AG,2,FALSE))","v":15},{"$f":"IF(W3>0,YEAR(Setup!$B$8)-YEAR(VLOOKUP(W3,ALMD!$C:$F,3,FALSE)),0)","v":13},null,{"$f":"MD!$I6","v":40747},{"$f":"MD!$K6","v":"ΤΟΥΜΠΑΝΙΑΡΗ Μ"},{"$f":"IF(AE3>0,MD!$A6,\"\")","v":2},{"$f":"MD!$G6","v":14},null,{"$f":"SUBSTITUTE(SUBSTITUTE(Setup!$B$5&\"S-\"&Setup!$B$13&\"-\"&X3,\"Ανδ-\",\"\"),\"Γυν-\",\"\")","v":"Ε3S-14-2nd"},null,{"$error":"#N/A"},{"$error":"#N/A"},"ΜΑΚΡΥΓΕΩΡΓΟΥ Χ","ΣΑΚΚΕΛΑΡΟΠΟΥΛΟΥ Ε"]
[{"$f":"Setup!$B$3","v":"ΣΤ' ΕΝΩΣΗ"},{"$f":"Setup!$Z$6","v":294},{"$f":"Setup!$Z$5","v":"Ε3 19η (ΣΤ)"},{"$f":"SUBSTITUTE(TRIM(Setup!$B$6),\"-\",\"\")","v":"Κ14"},"Smd16",{"$f":"TEXT(Setup!$B$8,\"ΕΕΕΕ-ΜΜ-ΗΗ\")","v":"2018-05-12"},{"$f":"Setup!$T$7","v":{"$error":"#N/A"}},"R16",{"$f":"IF(OR(MD!$M$9=1,MD!$M$9=2), IF(MD!$M$9=1,MD!$I$9,MD!$I$10),\"\")","v":90169},{"$f":"IF(OR(MD!$M$9 =1,MD!$M$9 =2), IF(MD!$M$9 =2,MD!$I$9,MD!$I$10),\"\")","v":36781},{"$f":"TRIM(MD!$O10)","v":"41 40"},5,6,4,9,90169,36781,"",null,4,{"$f":"IF(NOT(OR(W4=0,W4=\" \",W4=\"\")),IF(INDIRECT(\"ALMD!B\"&MATCH(W4,ALMD!$C$3:$C$18,0)+2)>0,INDIRECT(\"ALMD!B\"&MATCH(W4,ALMD!$C$3:$C$18,0)+2),\"\"),\"\")","v":"alt"},{"$f":"Setup!$T$7","v":{"$error":"#N/A"}},{"$f":"J14","v":90169},"3_4",2,3,0,{"$f":"IF(OR($Z4=0,$Z4=\"\",$U4=\"DQ\"),0,VLOOKUP($AJ4,tables!$AF:$AG,2,FALSE))","v":9},{"$f":"IF(W4>0,YEAR(Setup!$B$8)-YEAR(VLOOKUP(W4,ALMD!$C:$F,3,FALSE)),0)","v":13},null,{"$f":"MD!$I7","v":41973},{"$f":"MD!$K7","v":"ΣΑΚΚΕΛΑΡΟΠΟΥΛΟΥ Ε"},{"$f":"IF(AE4>0,MD!$A7,\"\")","v":3},{"$f":"MD!$G7","v":15},null,{"$f":"SUBSTITUTE(SUBSTITUTE(Setup!$B$5&\"S-\"&Setup!$B$13&\"-\"&X4,\"Ανδ-\",\"\"),\"Γυν-\",\"\")","v":"Ε3S-14-3_4"},null,{"$error":"#N/A"},{"$error":"#N/A"},"ΑΣΕΝΟΒΑ Γ","ΚΟΚΚΙΝΟΥ Α"]
[{"$f":"Setup!$B$3","v":"ΣΤ' ΕΝΩΣΗ"},{"$f":"Setup!$Z$6","v":294},{"$f":"Setup!$Z$5","v":"Ε3 19η (ΣΤ)"},{"$f":"SUBSTITUTE(TRIM(Setup!$B$6),\"-\",\"\")","v":"Κ14"},"Smd16",{"$f":"TEXT(Setup!$B$8,\"ΕΕΕΕ-ΜΜ-ΗΗ\")","v":"2018-05-12"},{"$f":"Setup!$T$7","v":{"$error":"#N/A"}},"R16",{"$f":"IF(OR(MD!$M$11=1,MD!$M$11=2), IF(MD!$M$11=1,MD!$I$11,MD!$I$12),\"\")","v":34396},{"$f":"IF(OR(MD!$M$11=1,MD!$M$11=2), IF(MD!$M$11=2,MD!$I$11,MD!$I$12),\"\")","v":38845},{"$f":"TRIM(MD!$O12)","v":"41 53"},7,8,12,10,34396,38845,"",null,6,{"$f":"IF(NOT(OR(W5=0,W5=\" \",W5=\"\")),IF(INDIRECT(\"ALMD!B\"&MATCH(W5,ALMD!$C$3:$C$18,0)+2)>0,INDIRECT(\"ALMD!B\"&MATCH(W5,ALMD!$C$3:$C$18,0)+2),\"\"),\"\")","v":"alt"},{"$f":"Setup!$T$7","v":{"$error":"#N/A"}},{"$f":"J15","v":38948},"3_4",2,3,0,{"$f":"IF(OR($Z5=0,$Z5=\"\",$U5=\"DQ\"),0,VLOOKUP($AJ5,tables!$AF:$AG,2,FALSE))","v":9},{"$f":"IF(W5>0,YEAR(Setup!$B$8)-YEAR(VLOOKUP(W5,ALMD!$C:$F,3,FALSE)),0)","v":12},null,{"$f":"MD!$I8","v":35659},{"$f":"MD!$K8","v":"ΜΑΚΡΥΓΕΩΡΓΟΥ Χ"},{"$f":"IF(AE5>0,MD!$A8,\"\")","v":4},{"$f":"MD!$G8","v":7},null,{"$f":"SUBSTITUTE(SUBSTITUTE(Setup!$B$5&\"S-\"&Setup!$B$13&\"-\"&X5,\"Ανδ-\",\"\"),\"Γυν-\",\"\")","v":"Ε3S-14-3_4"},null,{"$error":"#N/A"},{"$error":"#N/A"},"ΜΗΤΡΟΠΟΥΛΟΥ Α","ΤΣΙΛΙΜΠΗ Δ"]
[{"$f":"Setup!$B$3","v":"ΣΤ' ΕΝΩΣΗ"},{"$f":"Setup!$Z$6","v":294},{"$f":"Setup!$Z$5","v":"Ε3 19η (ΣΤ)"},{"$f":"SUBSTITUTE(TRIM(Setup!$B$6),\"-\",\"\")","v":"Κ14"},"Smd16",{"$f":"TEXT(Setup!$B$8,\"ΕΕΕΕ-ΜΜ-ΗΗ\")","v":"2018-05-12"},{"$f":"Setup!$T$7","v":{"$error":"#N/A"}},"R16",{"$f":"IF(OR(MD!$M$13=1,MD!$M$13=2), IF(MD!$M$13=1,MD!$I$13,MD!$I$14),\"\")","v":38948},{"$f":"IF(OR(MD!$M$13=1,MD!$M$13=2), IF(MD!$M$13=2,MD!$I$13,MD!$I$14),\"\")","v":37337},{"$f":"TRIM(MD!$O14)","v":"54(1) 40"},10,9,6,3,38948,37337,"",null,7,{"$f":"IF(NOT(OR(W6=0,W6=\" \",W6=\"\")),IF(INDIRECT(\"ALMD!B\"&MATCH(W6,ALMD!$C$3:$C$18,0)+2)>0,INDIRECT(\"ALMD!B\"&MATCH(W6,ALMD!$C$3:$C$18,0)+2),\"\"),\"\")","v":""},{"$f":"Setup!$T$7","v":{"$error":"#N/A"}},{"$f":"J10","v":35659},"5_8",1,2,0,{"$f":"IF(OR($Z6=0,$Z6=\"\",$U6=\"DQ\"),0,VLOOKUP($AJ6,tables!$AF:$AG,2,FALSE))","v":6},{"$f":"IF(W6>0,YEAR(Setup!$B$8)-YEAR(VLOOKUP(W6,ALMD!$C:$F,3,FALSE)),0)","v":13},null,{"$f":"MD!$I9","v":90169},{"$f":"MD!$K9","v":"ΑΣΕΝΟΒΑ Γ"},{"$f":"IF(AE6>0,MD!$A9,\"\")","v":5},{"$f":"MD!$G9","v":4},null,{"$f":"IF(AND(OR(Y6=0,Y6=\"\"), Setup!$B$17>\"\"), Setup!$B$5&\"S-\"&Setup!$B$13&\"-\"&Setup!$B$17, Setup!$B$5&\"S-\"&Setup!$B$13&\"-\"&X6)","v":"Ε3S-14-5_8"},null,{"$error":"#N/A"},{"$error":"#N/A"},"ΠΑΠΑΚΩΝΣΤΑΝΤΙΝΟ Μ","ΔΕΛΗ Μ"]
[{"$f":"Setup!$B$3","v":"ΣΤ' ΕΝΩΣΗ"},{"$f":"Setup!$Z$6","v":294},{"$f":"Setup!$Z$5","v":"Ε3 19η (ΣΤ)"},{"$f":"SUBSTITUTE(TRIM(Setup!$B$6),\"-\",\"\")","v":"Κ14"},"Smd16",{"$f":"TEXT(Setup!$B$8,\"ΕΕΕΕ-ΜΜ-ΗΗ\")","v":"2018-05-12"},{"$f":"Setup!$T$7","v":{"$error":"#N/A"}},"R16",{"$f":"IF(OR(MD!$M$15=1,MD!$M$15=2), IF(MD!$M$15=1,MD!$I$15,MD!$I$16),\"\")","v":38401},{"$f":"IF(OR(MD!$M$15=1,MD!$M$15=2), IF(MD!$M$15=2,MD!$I$15,MD!$I$16),\"\")","v":40755},{"$f":"TRIM(MD!$O16)","v":"41 53"},11,12,11,16,38401,40755,"",null,12,{"$f":"IF(NOT(OR(W7=0,W7=\" \",W7=\"\")),IF(INDIRECT(\"ALMD!B\"&MATCH(W7,ALMD!$C$3:$C$18,0)+2)>0,INDIRECT(\"ALMD!B\"&MATCH(W7,ALMD!$C$3:$C$18,0)+2),\"\"),\"\")","v":""},{"$f":"Setup!$T$7","v":{"$error":"#N/A"}},{"$f":"J11","v":34396},"5_8",1,2,0,{"$f":"IF(OR($Z7=0,$Z7=\"\",$U7=\"DQ\"),0,VLOOKUP($AJ7,tables!$AF:$AG,2,FALSE))","v":6},{"$f":"IF(W7>0,YEAR(Setup!$B$8)-YEAR(VLOOKUP(W7,ALMD!$C:$F,3,FALSE)),0)","v":13},null,{"$f":"MD!$I10","v":36781},{"$f":"MD!$K10","v":"ΚΟΚΚΙΝΟΥ Α"},{"$f":"IF(AE7>0,MD!$A10,\"\")","v":6},{"$f":"MD!$G10","v":9},null,{"$f":"IF(AND(OR(Y7=0,Y7=\"\"), Setup!$B$17>\"\"), Setup!$B$5&\"S-\"&Setup!$B$13&\"-\"&Setup!$B$17, Setup!$B$5&\"S-\"&Setup!$B$13&\"-\"&X7)","v":"Ε3S-14-5_8"},null,{"$error":"#N/A"},{"$error":"#N/A"},"ΚΛΑΟΥΔΑΤΟΥ Δ","ΣΤΟΚΑ Ε"]
[{"$f":"Setup!$B$3","v":"ΣΤ' ΕΝΩΣΗ"},{"$f":"Setup!$Z$6","v":294},{"$f":"Setup!$Z$5","v":"Ε3 19η (ΣΤ)"},{"$f":"SUBSTITUTE(TRIM(Setup!$B$6),\"-\",\"\")","v":"Κ14"},"Smd16",{"$f":"TEXT(Setup!$B$8,\"ΕΕΕΕ-ΜΜ-ΗΗ\")","v":"2018-05-12"},{"$f":"Setup!$T$7","v":{"$error":"#N/A"}},"R16",{"$f":"IF(OR(MD!$M$17=1,MD!$M$17=2), IF(MD!$M$17=1,MD!$I$17,MD!$I$18),\"\")","v":40340},{"$f":"IF(OR(MD!$M$17=1,MD!$M$17=2), IF(MD!$M$17=2,MD!$I$17,MD!$I$18),\"\")","v":39327},{"$f":"TRIM(MD!$O18)","v":"40 42"},14,13,13,8,40340,39327,"",null,11,{"$f":"IF(NOT(OR(W8=0,W8=\" \",W8=\"\")),IF(INDIRECT(\"ALMD!B\"&MATCH(W8,ALMD!$C$3:$C$18,0)+2)>0,INDIRECT(\"ALMD!B\"&MATCH(W8,ALMD!$C$3:$C$18,0)+2),\"\"),\"\")","v":""},{"$f":"Setup!$T$7","v":{"$error":"#N/A"}},{"$f":"J12","v":38401},"5_8",1,2,0,{"$f":"IF(OR($Z8=0,$Z8=\"\",$U8=\"DQ\"),0,VLOOKUP($AJ8,tables!$AF:$AG,2,FALSE))","v":6},{"$f":"IF(W8>0,YEAR(Setup!$B$8)-YEAR(VLOOKUP(W8,ALMD!$C:$F,3,FALSE)),0)","v":11},null,{"$f":"MD!$I11","v":34396},{"$f":"MD!$K11","v":"ΜΗΤΡΟΠΟΥΛΟΥ Α"},{"$f":"IF(AE8>0,MD!$A11,\"\")","v":7},{"$f":"MD!$G11","v":12},null,{"$f":"IF(AND(OR(Y8=0,Y8=\"\"), Setup!$B$17>\"\"), Setup!$B$5&\"S-\"&Setup!$B$13&\"-\"&Setup!$B$17, Setup!$B$5&\"S-\"&Setup!$B$13&\"-\"&X8)","v":"Ε3S-14-5_8"},null,{"$error":"#N/A"},{"$error":"#N/A"},"ΝΙΚΟΛΑΚΟΠΟΥΛΟΥ Α","ΜΠΟΥΖΟΥ Ε"]
[{"$f":"Setup!$B$3","v":"ΣΤ' ΕΝΩΣΗ"},{"$f":"Setup!$Z$6","v":294},{"$f":"Setup!$Z$5","v":"Ε3 19η (ΣΤ)"},{"$f":"SUBSTITUTE(TRIM(Setup!$B$6),\"-\",\"\")","v":"Κ14"},"Smd16",{"$f":"TEXT(Setup!$B$8,\"ΕΕΕΕ-ΜΜ-ΗΗ\")","v":"2018-05-12"},{"$f":"Setup!$T$7","v":{"$error":"#N/A"}},"R16",{"$f":"IF(OR(MD!$M$19=1,MD!$M$19=2), IF(MD!$M$19=1,MD!$I$19,MD!$I$20),\"\")","v":37585},{"$f":"IF(OR(MD!$M$19=1,MD!$M$19=2), IF(MD!$M$19=2,MD!$I$19,MD!$I$20),\"\")","v":33668},{"$f":"TRIM(MD!$O20)","v":"41 41"},16,15,2,5,37585,33668,"",null,13,{"$f":"IF(NOT(OR(W9=0,W9=\" \",W9=\"\")),IF(INDIRECT(\"ALMD!B\"&MATCH(W9,ALMD!$C$3:$C$18,0)+2)>0,INDIRECT(\"ALMD!B\"&MATCH(W9,ALMD!$C$3:$C$18,0)+2),\"\"),\"\")","v":""},{"$f":"Setup!$T$7","v":{"$error":"#N/A"}},{"$f":"J13","v":40340},"5_8",1,2,0,{"$f":"IF(OR($Z9=0,$Z9=\"\",$U9=\"DQ\"),0,VLOOKUP($AJ9,tables!$AF:$AG,2,FALSE))","v":6},{"$f":"IF(W9>0,YEAR(Setup!$B$8)-YEAR(VLOOKUP(W9,ALMD!$C:$F,3,FALSE)),0)","v":12},null,{"$f":"MD!$I12","v":38845},{"$f":"MD!$K12","v":"ΤΣΙΛΙΜΠΗ Δ"},{"$f":"IF(AE9>0,MD!$A12,\"\")","v":8},{"$f":"MD!$G12","v":10},null,{"$f":"IF(AND(OR(Y9=0,Y9=\"\"), Setup!$B$17>\"\"), Setup!$B$5&\"S-\"&Setup!$B$13&\"-\"&Setup!$B$17, Setup!$B$5&\"S-\"&Setup!$B$13&\"-\"&X9)","v":"Ε3S-14-5_8"},null,{"$f":"IF(AO9>\" \", IF(OR(AM9=AM10,AM9=AM8), IF(AM9=AM10,AN9&\"/\"&AN10&\" - \"&AO9&\"/\"&AO10, AN8&\"/\"&AN9&\" - \"&AO8&\"/\"&AO9),AN9&\" - \"&AO9), IF(OR(AM9=AM10,AM9=AM8), IF(AM9=AM10,AN9&\"/\"&AN10, AN8&\"/\"&AN9),AN9))","v":{"$error":"#N/A"}},{"$f":"G9&H9&L9","v":{"$error":"#N/A"}},"ΣΤΡΑΤΗ Γ","ΚΑΛΤΕΖΙΩΤΗ Ε"]
[{"$f":"Setup!$B$3","v":"ΣΤ' ΕΝΩΣΗ"},{"$f":"Setup!$Z$6","v":294},{"$f":"Setup!$Z$5","v":"Ε3 19η (ΣΤ)"},{"$f":"SUBSTITUTE(TRIM(Setup!$B$6),\"-\",\"\")","v":"Κ14"},"Smd16",{"$f":"TEXT(Setup!$B$8,\"ΕΕΕΕ-ΜΜ-ΗΗ\")","v":"2018-05-12"},{"$f":"Setup!$T$7","v":{"$error":"#N/A"}},"R08",{"$f":"IF(OR(MD!$P$6=1,MD!$P$6=2), IF(MD!$P$6 =1,MD!$N$5,MD!$N$7),\"\")","v":26198},{"$f":"IF(OR(MD!$P$6 =1,MD!$P$6 =2), IF(MD!$P$6 =2,MD!$N$5,MD!$N$7),\"\")","v":35659},{"$f":"TRIM(MD!$R7)","v":"41 42"},1,4,1,7,26198,35659,"",null,14,{"$f":"IF(NOT(OR(W10=0,W10=\" \",W10=\"\")),IF(INDIRECT(\"ALMD!B\"&MATCH(W10,ALMD!$C$3:$C$18,0)+2)>0,INDIRECT(\"ALMD!B\"&MATCH(W10,ALMD!$C$3:$C$18,0)+2),\"\"),\"\")","v":""},{"$f":"Setup!$T$7","v":{"$error":"#N/A"}},{"$f":"J2","v":40747},"9_16",0,1,0,{"$f":"IF(OR($Z10=0,$Z10=\"\",$U10=\"DQ\"),0,VLOOKUP($AJ10,tables!$AF:$AG,2,FALSE))","v":3},{"$f":"IF(W10>0,YEAR(Setup!$B$8)-YEAR(VLOOKUP(W10,ALMD!$C:$F,3,FALSE)),0)","v":13},null,{"$f":"MD!$I13","v":37337},{"$f":"MD!$K13","v":"ΔΕΛΗ Μ"},{"$f":"IF(AE10>0,MD!$A13,\"\")","v":9},{"$f":"MD!$G13","v":3},null,{"$f":"IF(AND(OR(Y10=0,Y10=\"\"), Setup!$B$17>\"\"), Setup!$B$5&\"S-\"&Setup!$B$13&\"-\"&Setup!$B$17, Setup!$B$5&\"S-\"&Setup!$B$13&\"-\"&X10)","v":"Ε3S-14-17_32"},null,{"$error":"#N/A"},{"$error":"#N/A"},"ΛΑΜΠΡΟΠΟΥΛΟΥ Β","ΜΑΚΡΥΓΕΩΡΓΟΥ Χ"]
[{"$f":"Setup!$B$3","v":"ΣΤ' ΕΝΩΣΗ"},{"$f":"Setup!$Z$6","v":294},{"$f":"Setup!$Z$5","v":"Ε3 19η (ΣΤ)"},{"$f":"SUBSTITUTE(TRIM(Setup!$B$6),\"-\",\"\")","v":"Κ14"},"Smd16",{"$f":"TEXT(Setup!$B$8,\"ΕΕΕΕ-ΜΜ-ΗΗ\")","v":"2018-05-12"},{"$f":"Setup!$T$7","v":{"$error":"#N/A"}},"R08",{"$f":"IF(OR(MD!$P$10=1,MD!$P$10=2), IF(MD!$P$10=1,MD!$N$9,MD!$N$11),\"\")","v":90169},{"$f":"IF(OR(MD!$P$10=1,MD!$P$10=2), IF(MD!$P$10=2,MD!$N$9,MD!$N$11),\"\")","v":34396},{"$f":"TRIM(MD!$R11)","v":"41 42"},5,7,4,12,90169,34396,"",null,15,{"$f":"IF(NOT(OR(W11=0,W11=\" \",W11=\"\")),IF(INDIRECT(\"ALMD!B\"&MATCH(W11,ALMD!$C$3:$C$18,0)+2)>0,INDIRECT(\"ALMD!B\"&MATCH(W11,ALMD!$C$3:$C$18,0)+2),\"\"),\"\")","v":""},{"$f":"Setup!$T$7","v":{"$error":"#N/A"}},41973,"9_16",0,1,0,{"$f":"IF(OR($Z11=0,$Z11=\"\",$U11=\"DQ\"),0,VLOOKUP($AJ11,tables!$AF:$AG,2,FALSE))","v":3},{"$f":"IF(W11>0,YEAR(Setup!$B$8)-YEAR(VLOOKUP(W11,ALMD!$C:$F,3,FALSE)),0)","v":12},null,{"$f":"MD!$I14","v":38948},{"$f":"MD!$K14","v":"ΠΑΠΑΚΩΝΣΤΑΝΤΙΝΟ Μ"},{"$f":"IF(AE11>0,MD!$A14,\"\")","v":10},{"$f":"MD!$G14","v":6},null,{"$f":"IF(AND(OR(Y11=0,Y11=\"\"), Setup!$B$17>\"\"), Setup!$B$5&\"S-\"&Setup!$B$13&\"-\"&Setup!$B$17, Setup!$B$5&\"S-\"&Setup!$B$13&\"-\"&X11)","v":"Ε3S-14-17_32"},null,{"$error":"#N/A"},{"$error":"#N/A"},"ΑΣΕΝΟΒΑ Γ","ΜΗΤΡΟΠΟΥΛΟΥ Α"]
[{"$f":"Setup!$B$3","v":"ΣΤ' ΕΝΩΣΗ"},{"$f":"Setup!$Z$6","v":294},{"$f":"Setup!$Z$5","v":"Ε3 19η (ΣΤ)"},{"$f":"SUBSTITUTE(TRIM(Setup!$B$6),\"-\",\"\")","v":"Κ14"},"Smd16",{"$f":"TEXT(Setup!$B$8,\"ΕΕΕΕ-ΜΜ-ΗΗ\")","v":"2018-05-12"},{"$f":"Setup!$T$7","v":{"$error":"#N/A"}},"R08",{"$f":"IF(OR(MD!$P$14=1,MD!$P$14=2), IF(MD!$P$14=1,MD!$N$13,MD!$N$15),\"\")","v":38948},{"$f":"IF(OR(MD!$P$14=1,MD!$P$14=2), IF(MD!$P$14=2,MD!$N$13,MD!$N$15),\"\")","v":38401},{"$f":"TRIM(MD!$R15)","v":"40 40"},10,11,6,11,38948,38401,"",null,9,{"$f":"IF(NOT(OR(W12=0,W12=\" \",W12=\"\")),IF(INDIRECT(\"ALMD!B\"&MATCH(W12,ALMD!$C$3:$C$18,0)+2)>0,INDIRECT(\"ALMD!B\"&MATCH(W12,ALMD!$C$3:$C$18,0)+2),\"\"),\"\")","v":""},{"$f":"Setup!$T$7","v":{"$error":"#N/A"}},36781,"9_16",0,1,0,{"$f":"IF(OR($Z12=0,$Z12=\"\",$U12=\"DQ\"),0,VLOOKUP($AJ12,tables!$AF:$AG,2,FALSE))","v":3},{"$f":"IF(W12>0,YEAR(Setup!$B$8)-YEAR(VLOOKUP(W12,ALMD!$C:$F,3,FALSE)),0)","v":14},null,{"$f":"MD!$I15","v":38401},{"$f":"MD!$K15","v":"ΚΛΑΟΥΔΑΤΟΥ Δ"},{"$f":"IF(AE12>0,MD!$A15,\"\")","v":11},{"$f":"MD!$G15","v":11},null,{"$f":"IF(AND(OR(Y12=0,Y12=\"\"), Setup!$B$17>\"\"), Setup!$B$5&\"S-\"&Setup!$B$13&\"-\"&Setup!$B$17, Setup!$B$5&\"S-\"&Setup!$B$13&\"-\"&X12)","v":"Ε3S-14-17_32"},null,{"$error":"#N/A"},{"$error":"#N/A"},"ΠΑΠΑΚΩΝΣΤΑΝΤΙΝΟ Μ","ΚΛΑΟΥΔΑΤΟΥ Δ"]
[{"$f":"Setup!$B$3","v":"ΣΤ' ΕΝΩΣΗ"},{"$f":"Setup!$Z$6","v":294},{"$f":"Setup!$Z$5","v":"Ε3 19η (ΣΤ)"},{"$f":"SUBSTITUTE(TRIM(Setup!$B$6),\"-\",\"\")","v":"Κ14"},"Smd16",{"$f":"TEXT(Setup!$B$8,\"ΕΕΕΕ-ΜΜ-ΗΗ\")","v":"2018-05-12"},{"$f":"Setup!$T$7","v":{"$error":"#N/A"}},"R08",{"$f":"IF(OR(MD!$P$18=1,MD!$P$18=2), IF(MD!$P$18=1,MD!$N$17,MD!$N$19),\"\")","v":37585},{"$f":"IF(OR(MD!$P$18=1,MD!$P$18=2), IF(MD!$P$18=2,MD!$N$17,MD!$N$19),\"\")","v":40340},{"$f":"TRIM(MD!$R19)","v":"40 40"},16,14,2,13,37585,40340,"",null,10,{"$f":"IF(NOT(OR(W13=0,W13=\" \",W13=\"\")),IF(INDIRECT(\"ALMD!B\"&MATCH(W13,ALMD!$C$3:$C$18,0)+2)>0,INDIRECT(\"ALMD!B\"&MATCH(W13,ALMD!$C$3:$C$18,0)+2),\"\"),\"\")","v":""},{"$f":"Setup!$T$7","v":{"$error":"#N/A"}},38845,"9_16",0,1,0,{"$f":"IF(OR($Z13=0,$Z13=\"\",$U13=\"DQ\"),0,VLOOKUP($AJ13,tables!$AF:$AG,2,FALSE))","v":3},{"$f":"IF(W13>0,YEAR(Setup!$B$8)-YEAR(VLOOKUP(W13,ALMD!$C:$F,3,FALSE)),0)","v":13},null,{"$f":"MD!$I16","v":40755},{"$f":"MD!$K16","v":"ΣΤΟΚΑ Ε"},{"$f":"IF(AE13>0,MD!$A16,\"\")","v":12},{"$f":"MD!$G16","v":16},null,{"$f":"IF(AND(OR(Y13=0,Y13=\"\"), Setup!$B$17>\"\"), Setup!$B$5&\"S-\"&Setup!$B$13&\"-\"&Setup!$B$17, Setup!$B$5&\"S-\"&Setup!$B$13&\"-\"&X13)","v":"Ε3S-14-17_32"},null,{"$error":"#N/A"},{"$error":"#N/A"},"ΣΤΡΑΤΗ Γ","ΝΙΚΟΛΑΚΟΠΟΥΛΟΥ Α"]
[{"$f":"Setup!$B$3","v":"ΣΤ' ΕΝΩΣΗ"},{"$f":"Setup!$Z$6","v":294},{"$f":"Setup!$Z$5","v":"Ε3 19η (ΣΤ)"},{"$f":"SUBSTITUTE(TRIM(Setup!$B$6),\"-\",\"\")","v":"Κ14"},"Smd16",{"$f":"TEXT(Setup!$B$8,\"ΕΕΕΕ-ΜΜ-ΗΗ\")","v":"2018-05-12"},{"$f":"Setup!$T$7","v":{"$error":"#N/A"}},"Ημιτελ",{"$f":"IF(OR(MD!$S$8=1,MD!$S$8=2), IF(MD!$S$8=1,MD!$Q$6,MD!$Q$10),\"\")","v":26198},{"$f":"IF(OR(MD!$S$8 =1,MD!$S$8 =2), IF(MD!$S$8 =2,MD!$Q$6,MD!$Q$10),\"\")","v":90169},{"$f":"TRIM(MD!$U9)","v":"61 61"},1,5,1,4,26198,90169,"",null,3,{"$f":"IF(NOT(OR(W14=0,W14=\" \",W14=\"\")),IF(INDIRECT(\"ALMD!B\"&MATCH(W14,ALMD!$C$3:$C$18,0)+2)>0,INDIRECT(\"ALMD!B\"&MATCH(W14,ALMD!$C$3:$C$18,0)+2),\"\"),\"\")","v":""},{"$f":"Setup!$T$7","v":{"$error":"#N/A"}},37337,"9_16",0,1,0,{"$f":"IF(OR($Z14=0,$Z14=\"\",$U14=\"DQ\"),0,VLOOKUP($AJ14,tables!$AF:$AG,2,FALSE))","v":3},{"$f":"IF(W14>0,YEAR(Setup!$B$8)-YEAR(VLOOKUP(W14,ALMD!$C:$F,3,FALSE)),0)","v":14},null,{"$f":"MD!$I17","v":39327},{"$f":"MD!$K17","v":"ΜΠΟΥΖΟΥ Ε"},{"$f":"IF(AE14>0,MD!$A17,\"\")","v":13},{"$f":"MD!$G17","v":8},null,{"$f":"IF(AND(OR(Y14=0,Y14=\"\"), Setup!$B$17>\"\"), Setup!$B$5&\"S-\"&Setup!$B$13&\"-\"&Setup!$B$17, Setup!$B$5&\"S-\"&Setup!$B$13&\"-\"&X14)","v":"Ε3S-14-17_32"},null,{"$error":"#N/A"},{"$error":"#N/A"},"ΛΑΜΠΡΟΠΟΥΛΟΥ Β","ΑΣΕΝΟΒΑ Γ"]
[{"$f":"Setup!$B$3","v":"ΣΤ' ΕΝΩΣΗ"},{"$f":"Setup!$Z$6","v":294},{"$f":"Setup!$Z$5","v":"Ε3 19η (ΣΤ)"},{"$f":"SUBSTITUTE(TRIM(Setup!$B$6),\"-\",\"\")","v":"Κ14"},"Smd16",{"$f":"TEXT(Setup!$B$8,\"ΕΕΕΕ-ΜΜ-ΗΗ\")","v":"2018-05-12"},{"$f":"Setup!$T$7","v":{"$error":"#N/A"}},"Ημιτελ",{"$f":"IF(OR(MD!$S$16=1,MD!$S$16=2), IF(MD!$S$16=1,MD!$Q$14,MD!$Q$18),\"\")","v":37585},{"$f":"IF(OR(MD!$S$16=1,MD!$S$16=2), IF(MD!$S$16=2,MD!$Q$14,MD!$Q$18),\"\")","v":38948},{"$f":"TRIM(MD!$U17)","v":"62 62"},16,10,2,6,37585,38948,"",null,16,{"$f":"IF(NOT(OR(W15=0,W15=\" \",W15=\"\")),IF(INDIRECT(\"ALMD!B\"&MATCH(W15,ALMD!$C$3:$C$18,0)+2)>0,INDIRECT(\"ALMD!B\"&MATCH(W15,ALMD!$C$3:$C$18,0)+2),\"\"),\"\")","v":""},{"$f":"Setup!$T$7","v":{"$error":"#N/A"}},40755,"9_16",0,1,0,{"$f":"IF(OR($Z15=0,$Z15=\"\",$U15=\"DQ\"),0,VLOOKUP($AJ15,tables!$AF:$AG,2,FALSE))","v":3},{"$f":"IF(W15>0,YEAR(Setup!$B$8)-YEAR(VLOOKUP(W15,ALMD!$C:$F,3,FALSE)),0)","v":11},null,{"$f":"MD!$I18","v":40340},{"$f":"MD!$K18","v":"ΝΙΚΟΛΑΚΟΠΟΥΛΟΥ Α"},{"$f":"IF(AE15>0,MD!$A18,\"\")","v":14},{"$f":"MD!$G18","v":13},null,{"$f":"IF(AND(OR(Y15=0,Y15=\"\"), Setup!$B$17>\"\"), Setup!$B$5&\"S-\"&Setup!$B$13&\"-\"&Setup!$B$17, Setup!$B$5&\"S-\"&Setup!$B$13&\"-\"&X15)","v":"Ε3S-14-17_32"},null,{"$error":"#N/A"},{"$error":"#N/A"},"ΣΤΡΑΤΗ Γ","ΠΑΠΑΚΩΝΣΤΑΝΤΙΝΟ Μ"]
[{"$f":"Setup!$B$3","v":"ΣΤ' ΕΝΩΣΗ"},{"$f":"Setup!$Z$6","v":294},{"$f":"Setup!$Z$5","v":"Ε3 19η (ΣΤ)"},{"$f":"SUBSTITUTE(TRIM(Setup!$B$6),\"-\",\"\")","v":"Κ14"},"Smd16",{"$f":"TEXT(Setup!$B$8,\"ΕΕΕΕ-ΜΜ-ΗΗ\")","v":"2018-05-12"},{"$f":"Setup!$T$7","v":{"$error":"#N/A"}},"Τελικός",{"$f":"IF(OR(MD!$S$12=1,MD!$S$12=2), IF(MD!$S$12=1,MD!$T$8,MD!$T$16),\"\")","v":26198},{"$f":"IF(OR(MD!$S$12=1,MD!$S$12=2), IF(MD!$S$12=2,MD!$T$8,MD!$T$16),\"\")","v":37585},{"$f":"TRIM(MD!$U13)","v":"61 64"},1,16,1,2,26198,37585,"",null,8,{"$f":"IF(NOT(OR(W16=0,W16=\" \",W16=\"\")),IF(INDIRECT(\"ALMD!B\"&MATCH(W16,ALMD!$C$3:$C$18,0)+2)>0,INDIRECT(\"ALMD!B\"&MATCH(W16,ALMD!$C$3:$C$18,0)+2),\"\"),\"\")","v":""},{"$f":"Setup!$T$7","v":{"$error":"#N/A"}},39327,"9_16",0,1,0,{"$f":"IF(OR($Z16=0,$Z16=\"\",$U16=\"DQ\"),0,VLOOKUP($AJ16,tables!$AF:$AG,2,FALSE))","v":3},{"$f":"IF(W16>0,YEAR(Setup!$B$8)-YEAR(VLOOKUP(W16,ALMD!$C:$F,3,FALSE)),0)","v":13},null,{"$f":"MD!$I19","v":33668},{"$f":"MD!$K19","v":"ΚΑΛΤΕΖΙΩΤΗ Ε"},{"$f":"IF(AE16>0,MD!$A19,\"\")","v":15},{"$f":"MD!$G19","v":5},null,{"$f":"IF(AND(OR(Y16=0,Y16=\"\"), Setup!$B$17>\"\"), Setup!$B$5&\"S-\"&Setup!$B$13&\"-\"&Setup!$B$17, Setup!$B$5&\"S-\"&Setup!$B$13&\"-\"&X16)","v":"Ε3S-14-17_32"},null,{"$error":"#N/A"},{"$error":"#N/A"},"ΛΑΜΠΡΟΠΟΥΛΟΥ Β","ΣΤΡΑΤΗ Γ"]
[{"$f":"Setup!$B$3","v":"ΣΤ' ΕΝΩΣΗ"},{"$f":"Setup!$Z$6","v":294},{"$f":"Setup!$Z$5","v":"Ε3 19η (ΣΤ)"},{"$f":"SUBSTITUTE(TRIM(Setup!$B$6),\"-\",\"\")","v":"Κ14"},"Smd16",{"$f":"TEXT(Setup!$B$8,\"ΕΕΕΕ-ΜΜ-ΗΗ\")","v":"2018-05-12"},null,null,null,null,null,null,null,null,null,null,null,null,null,5,{"$f":"IF(NOT(OR(W17=0,W17=\" \",W17=\"\")),IF(INDIRECT(\"ALMD!B\"&MATCH(W17,ALMD!$C$3:$C$18,0)+2)>0,INDIRECT(\"ALMD!B\"&MATCH(W17,ALMD!$C$3:$C$18,0)+2),\"\"),\"\")","v":""},{"$f":"Setup!$T$7","v":{"$error":"#N/A"}},33668,"9_16",0,1,0,{"$f":"IF(OR($Z17=0,$Z17=\"\",$U17=\"DQ\"),0,VLOOKUP($AJ17,tables!$AF:$AG,2,FALSE))","v":3},{"$f":"IF(W17>0,YEAR(Setup!$B$8)-YEAR(VLOOKUP(W17,ALMD!$C:$F,3,FALSE)),0)","v":14},null,{"$f":"MD!$I20","v":37585},{"$f":"MD!$K20","v":"ΣΤΡΑΤΗ Γ"},{"$f":"IF(AE17>0,MD!$A20,\"\")","v":16},{"$f":"MD!$G20","v":2},null,{"$f":"IF(AND(OR(Y17=0,Y17=\"\"), Setup!$B$17>\"\"), Setup!$B$5&\"S-\"&Setup!$B$13&\"-\"&Setup!$B$17, Setup!$B$5&\"S-\"&Setup!$B$13&\"-\"&X17)","v":"Ε3S-14-17_32"}]